Workbook

Sheet Administrative Info
D2: ADMINISTRATIVE INFORMATION Please enter data in white blocks in format indicated Information will automatically update in other Worksheets
E4: Description of data to be entered | F4: Data Entry Fields | BZ4: REFRESH TAB
B6: National Flood Insurance Program (NFIP) | D6: Community Information | E6: Community: | F6: <enter community name here> | BZ6: <enter community name here>
E7: County: | F7: <enter county here> | BZ7: <enter county here>
E8: Date of Diagnostic Assessment: | F8: <enter diagnostic date MM/DD/YYYY> | BZ8: <enter diagnostic date MM/DD/YYYY>
E9: Community Contact Date (Diagnostic) | F9: <enter date of community contact MM/DD/YYYY> | BZ9: <enter date of community contact MM/DD/YYYY>
E10: Date of Audit: | F10: <enter audit date MM/DD/YYYY> | BZ10: <enter audit date MM/DD/YYYY>
E11: State (2-Letter ID): | F11: <enter 2-letter state ID here> | BZ11: <enter 2-letter state ID here>
E12: CID: | F12: <enter 6-digit CID here> | BZ12: <enter 6-digit CID here>
E13: Floodplain Administrator (FPA) Name: | F13: <Enter FPA Name Here> | BZ13: <Enter FPA Name Here>
B14: PRE-DECISIONAL DRAFT | E14: FPA Phone: | F14: <enter FPA phone number> | BZ14: <enter FPA phone number>
E15: FPA Email: | F15: <enter FPA email address> | BZ15: <enter FPA email address>
E16: CEO Name: | F16: <enter CEO name here> | BZ16: <enter CEO name here>
E17: CEO Phone: | F17: <enter CEO phone here> | BZ17: <enter CEO phone here>
E18: CEO Email: | F18: <enter CEO Email here> | BZ18: <enter CEO Email here>
E19: Community Website | F19: <enter community web URL here> | BZ19: <enter community web URL here>
B20: NOT FOR DISTRIBUTION
D21: Audit Points of Contact | E21: Agency Conducting Audit: | F21: <enter name of agency> | BZ21: <enter name of agency>
B22: Compliance | E22: Audit Conducted By: | F22: <enter name of auditor and title> | BZ22: <enter name of auditor and title>
E23: Auditor Phone: | F23: <enter auditor phone> | BZ23: <enter auditor phone>
B24: Audit Toolkit V2.0 | E24: Auditor Email: | F24: <enter auditor email address> | BZ24: <enter auditor email address>
E25: Audit Reviewed By: | F25: <enter audit reviewer name> | BZ25: <enter audit reviewer name>
E26: Audit Reviewer Phone: | F26: <enter audit reviewer phone number> | BZ26: <enter audit reviewer phone number>
E27: Audit Reviewer Email: | F27: <enter audit reviewer email address> | BZ27: <enter audit reviewer email address>
D30: Audit Status and Follow On | E30: Referred Audit to FEMA: | F30: <enter date audit referred to FEMA> | BZ30: <enter date audit referred to FEMA>
E31: Date Audit Closed: | F31: <enter date audit closed> | BZ31: <enter date audit closed>
E32: CRS Community?: | F32: <enter Yes/No> | BZ32: <enter Yes/No>
E33: CRS Candidate?: | F33: <enter Yes/No> | BZ33: <enter Yes/No>

Sheet Self Assessment
F2: Self-Assessment Form - PRE-DECISIONAL DRAFT
H3: Compliance Audit Community Self Assessment V2.0
H5: Community Information
K7: Community Name: | N7: State:
K8: County: | N8: CID: | V8: Scoring Table - Summary (Hidden/Locked from user view)
K9: Date Assessment Done (e.g., 10/15/2022): | N9: Date Assessment Sent: | V9: Contact Info | W9: Value
K10: Local official completing Self-Assessment Name: | N10: Title: | V10: Self Assmnt=NFIP Official | W10: FALSE
K11: Local official completing Self-Assessment Email: | N11: Phone | V11: 1.1 Scoring | W11: Value
K12: Official responsible for NFIP enforcement Name: | N12: Title: | V12: POC=FPA | W12: FALSE
K13: Official responsible for NFIP enforcement Email: | N13: Phone | V13: POC/FPA | W13: FALSE
K14: Chief Executive Officer (CEO) Name: | N14: Additional Title: | V14: POC?FPA | W14: FALSE
K15: Chief Executive Officer (CEO) Email: | N15: Phone | V15: 1.2 Scoring | W15: Value
V16: Vacant | W16: FALSE | Y16: =IF(W16=TRUE,-1,0) -> 0 | AA16: =IF(W16=TRUE,1,"") -> 
V17: 0-2 | W17: FALSE | Y17: =IF(W17=TRUE,1,0) -> 0
G18: 1 | H18: 1. | I18: Floodplain Administrator Capability, Capacity and Institutional Support | V18: 2to5 | W18: FALSE | Y18: =IF(W18=TRUE,2,0) -> 0
I19: (Does the official responsible for regulating/enforcing the NFIP have the required expertise, knowledge, technical capabilities and institutional support?) | V19: 5to10 | W19: FALSE | Y19: =IF(W19=TRUE,3,0) -> 0
V20: Greater 10 | W20: FALSE | Y20: =IF(W20=TRUE,4,0) -> 0
A21: Quest | B21: Category | C21: Q in Eval Tool | H21: 1.1 | K21: Is the local official completing the self-assessment the Flood Plain Administrator (FPA)? | V21: 1.3 Scoring | W21: Value
A22: 1.1 | B22: Admin | C22: 1.1 | V22: POC=CFM | W22: FALSE
H23: 1.2 | K23: How long has this official (FPA) been responsible for regulating/enforcing the NFIP in this community? | V23: POC/CFM | W23: FALSE
A24: 1.2 | B24: Admin | C24: 1.4.2 | N24: Notes: | V24: POC Pursuing | W24: FALSE
H25: 1.3 | K25: Is the FPA a Certified Floodplain Manager (CFM)?: | V25: 1.4 Scoring | W25: Value
V26: Yes | W26: FALSE
H27: 1.4 | K27: Does the community use Geographic Information System (GIS) tools to collect and/or analyze data? | V27: NO | W27: FALSE
H30: 2. | I30: Floodplain Management Regulations
I31: (Is the community's ordinance up to date and how is it being enforced?)
N32: 2.1a Enter the title of current floodplain management regulations | V32: Diff Org | W32: TRUE
A33: 2.1 | B33: Regs | C33: context - relates to 3.4 in eval | H33: 2.1 | J33: FALSE | K33: Does the community have current Floodplain Management Regulations? | V33: FPA not known | W33: FALSE
J34: FALSE | N34: 2.1b Enter the current floodplain management regulations effective date | V34: Other Reason | W34: FALSE
A35: 2.2 | B35: unscored context | H35: 2.2 | J35: FALSE | K35: Does the community have other regulations related to floodplain management? | V35: 2 Scoring | W35: Value
J36: FALSE | K36: (e.g., Drainage Regulations, Building Codes, Wind Codes, etc.)? | N36: 2.2 Enter other regulations related to floodplain management | V36: 2.1 | W36: FALSE
V37: 2.1.1 | W37: FALSE
A38: 2.3 | B38: Unscored context | H38: 2.3 | K38: Over the last three (3) calendar years, how many development permits were granted for new structures in the designated flood hazard areas as shown on your community’s Flood Insurance Rate Map (FIRM)? | N38: 2.3 Enter the number of development permits for new structures: enter as a number (0-1000) | V38: 2.1a | W38: =N33 -> 0
J39: FALSE | K39: designated flood hazard areas as shown on your community’s Flood Insurance Rate Map (FIRM)? | V39: 2.1b
J40: FALSE | V40: 2.2 | W40: FALSE
A41: 2.4 | B41: Unscored context | H41: 2.4 | K41: Of development permits granted within the last three (3) calendar years; how many were for substantial improvements to existing structures? | N41: 2.4 Enter the number of permits for substantial improvements to existing structures (0-1000) | V41: 2.2.1 | W41: FALSE
J42: FALSE | V42: 2.2 | W42: =N37 -> 0
J43: FALSE | V43: 2.3 | W43: =N39 -> 0
A44: 2.5 | B44: Regs | C44: 3.6 | H44: 2.5 | K44: Over the last three (3) calendar years, how many local Floodplain Management Regulations variances were | N44: 2.5 Enter the number of floodplain management regulation variances (0-1000) | V44: 2.4 | W44: =N42 -> 0
J45: FALSE | K45: granted in the designated flood hazard areas—as shown on your community's FIRM—for any floodplain development? | V45: 2.5 | W45: =N45 -> 0
V46: 2.6 | W46: FALSE
A47: 2.6 | B47: regs? | C47: (yes is bad) | H47: 2.6 | K47: Have any new structures been built with a lowest floor below the Base Flood Elevation (BFE) since your | N47: Notes: | V47: 2.6.1 | W47: FALSE
J48: FALSE | K48: community’s latest FEMA FIRM effective date? | V48: 2.6.2 (Unk) | W48: FALSE
V49: 2.7 (state) | W49: FALSE
A50: 2.7 | B50: Regs | C50: relates to 3.8 | H50: 2.7 | K50: Has your community adopted higher standards? (i.e., exceeding the minimum | V50: 2.7.1 (local) | W50: FALSE
K51: NFIP floodplain management requirements)? | V51: 2.7.2 (No) | W51: FALSE
N52: 2.8 Indicate the other standard(s) that exceed(s) minimums | V52: 2.7.1a-Freeboard | W52: FALSE
H53: 2.8 | K53: If yes to question 2.7, indicate the type of standard(s). | V53: 2.7.1b-Smaller SD | W53: FALSE
V54: 2.7.1c-No MF | W54: FALSE
V55: 2.7.1d-Other | W55: FALSE
H56: 3. | I56: Map Availability and Accuracy | V56: 3 Scoring | W56: Value
I57: (Is the community regulating/enforcing against its most accurate risk assessment?) | V57: 3.1 | W57: =N59 -> 00:00:00
N58: 3.1 Date of most recent FEMA FIRM: (MO/DA/YEAR - e.g., 01/24/2020) | V58: 3.1.1 (Date Unk) | W58: FALSE
A59: 3.1 | B59: context - unscored in eval tool | H59: 3.1 | K59: What is date of most recent FEMA Flood Insurance Rate Map (FIRM)? (MO/DA/YEAR) | V59: 3.2 | W59: =N61 -> 00:00:00
N60: 3.2 Date of most recent FIS: (MO/DA/YEAR - e.g., 01/24/2020) | V60: 3.2.1 (Date Unk) | W60: FALSE
A61: 3.2 | B61: context - unscored in eval tool | H61: 3.2 | K61: What is date of your community's most recent Flood Insurance Study (FIS)? (MO/DA/YEAR) | V61: 3.3 | W61: =N63 -> 00:00:00
N62: 3.3 Date for pre-/post-FIRM Determination: | V62: 3.3.1(Date UNK) | W62: FALSE
A63: 3.3 | B63: context - unscored in eval tool | H63: 3.3 | K63: What initial FIRM date are you using for pre-/post-FIRM determination? | V63: 3.3.1 | W63: =N63-N59 -> 00:00:00
V64: 3.4 | W64: FALSE
H65: 3.4 | K65: Has there been a change to your community’s territorial or extraterritorial boundaries that affected your designated flood hazard areas (this may include recent annexations) since your current FIRMs? | N65: 3.4 When was the change to community boundaries (MO/DA/YEAR) | V65: 3.4.1 | W65: FALSE
A66: 3.4 | B66: Maps | C66: relates to 2.2 | V66: =N66 -> 00:00:00
V67: 3.5 | W67: FALSE
A68: 3.5 | B68: Maps | C68: relates to 2.1 | H68: 3.5 | K68: Has your community experienced an event (e.g., flood, fire, etc.,) in the past ten (10) calendar years, resulting in substantially damaged structures? | N68: Notes: | V68: 3.5.1 | W68: FALSE
V69: 3.6 | W69: Value (Selected)
H70: 3.6 | K70: Please indicate all of the flood zones within the community’s boundary or jurisdiction: | V70: 3.6.1 (A) | W70: FALSE
V71: 3.6.2 (AE) | W71: FALSE
V72: 3.6.3 (AO) | W72: FALSE
V73: 3.6.4 (AH) | W73: FALSE
V74: 3.6.5(AE-Flood) | W74: FALSE
V75: 3.6.6 (V) | W75: FALSE
H77: 4. | I77: Standardized Processes | V77: 3.6.7 (VE) | W77: FALSE
I78: (Does the community have an effective record-keeping process?) | V78: 3.6.8 (D) | W78: FALSE
V79: 3.6.9(A99) | W79: FALSE
A80: 4.1 | B80: context - unscored in eval tool | H80: 4.1 | J80: FALSE | K80: Does your community use an electronic/software permitting process? | N80: Notes: | V80: 3.6.10(X-Shade) | W80: FALSE
V81: 3.6.11(X) | W81: FALSE
A82: 4.2 | B82: Admin | C82: relates to 1.4.2? | H82: 4.2 | K82: If yes to question 4.1, is the permitting process system GIS-Based? | V82: 3.6.12(AR) | W82: FALSE
V83: 4 Scoring | W83: Value
A84: 4.3 | B84: Process | C84: 4.1.5 & 4.1.6 | H84: 4.3 | K84: Does your community have a documented Standard Operating Procedure(s) to guide | V84: 4.1 | W84: FALSE
K85: the determination process for the following? (Check all that apply) | V85: 4.1.1 | W85: FALSE
V86: 4.2 | W86: FALSE
A87: 4.4 | B87: Process | C87: relates to 4.4, 4.6 | H87: 4.4 | K87: Does your community have a documented Standard Operating Procedure(s) to guide | V87: 4.2.1 | W87: FALSE
K88: the permitting process for the following? (Check all that apply) | V88: 4.2.2 | W88: FALSE
V89: 4.3 | W89: Response
A90: 4.5 | B90: Process | C90: relates to 4.2 | H90: 4.5 | J90: FALSE | K90: Does your community have a documented Standard Operating Procedure(s) to guide | V90: 4.3.1 | W90: FALSE
K91: the inspection process for the following? (Check all that apply) | V91: 4.3.2 | W91: FALSE
V92: 4.3.3 | W92: FALSE
V93: 4.3.4 | W93: FALSE
H94: 5. | I94: Auditor Validation (Note: the auditor and not the local community should complete this section) | V94: 4.4 | W94: Response
I95: Has the auditor validated all information provided through the Self Assessment? | V95: 4.4.1 | W95: FALSE
V96: 4.4.2 | W96: FALSE
A97: 5.1 | B97: Context | H97: 5.1 | I97: Have all data provided by the community been reviewed by the auditor via phone call or face to face? | N97: Notes: | V97: 4.4.3 | W97: FALSE
V98: 4.4.4 | W98: FALSE
A99: 5.2 | B99: Context | H99: 5.2 | I99: Are there any specific questions or answers that were incomplete or inaccurate? | N99: 5.2 Identify any specific questions or inaccuracies | V99: 4.5 | W99: Response
V100: 4.5.1 | W100: FALSE
V101: 4.5.2 | W101: FALSE
A102: 5.3 | B102: Context | H102: 5.3 | I102: If there are any additional details that were revealed during the validation annotate them in the box below. | V102: 4.5.3 | W102: FALSE
V103: 4.5.4 | W103: FALSE
V104: 5 Scoring | W104: Value
V105: 5.1 | W105: FALSE
V106: 5.1.1 | W106: FALSE
V107: 5.2 | W107: FALSE
V108: 5.2.1 | W108: FALSE
V109: =N100 -> 0
V110: 5.3
V111: =N103 -> 0

Sheet Ordinance Checklist
B2: Ordinance Checklist PRE-DECISIONAL DRAFT V2
C3: 1 Ordinance Review Summary and Overview
E5: Community Information: | H5: Summary of Findings (provide key observations that lead to the determination below): | Q5: Scoring Table - Summary (Hidden/Locked from user view)
E6: Community: | F6: ='Administrative Info'!F6 -> <enter community name here> | S6: Actions | T6: Score | U6: Fast Track To Audit | V6: Flag | W6: Off-Ramp
E7: County: | F7: ='Administrative Info'!F7 -> <enter county here> | Q7: 1 Scoring | R7: Value
E8: State: | F8: ='Administrative Info'!F11 -> <enter 2-letter state ID here> | Q8: 1.1 Location | R8: TRUE
E9: CID: | F9: ='Administrative Info'!F12 -> <enter 6-digit CID here> | Q9: Standalone | R9: FALSE
E10: Weblink to online location of regulations/ordinance: | Q10: Codified | R10: FALSE
Q11: Zoning O | R11: FALSE
Q12: Subdivision | R12: FALSE
Q13: Other | R13: FALSE
D14: 1.1 | E14: Location of Regulations/Ordinance: | G14: 1.2 | H14: Reviewer's Determination (Select after ordinance checklist is complete) | Q14: Building C | R14: FALSE
E15: (selections are based on CIS, check as many as apply.) | H15: (Check one, and enter the same corresponding check in Diagnostic Assessment tab, Question 13.1) | Q15: 1.3 Type
E16: Standalone Ordinance (based on state model) | Q16: IBC | R16: FALSE
E17: Codified | Q17: IRC | R17: FALSE
E18: Zoning Ordinance | I18: The floodplain management regulations are fully compliant. | Q18: State | R18: FALSE
E19: Subdivision Ordinance | Q19: Other | R19: FALSE
E20: Other Ordinances/Regulations | I20: Minor issues were identified. | Q20: 1.2 Determination
E21: Building Code | Q21: Compliant | R21: FALSE
I22: Noncompliant: There are significant issues with the regulations. | Q22: Minor | R22: FALSE
D23: 1.3 | E23: Type of Bldg. Code Adopted (Select one) | Q23: Non Compliant | R23: FALSE
E24: International Building Code (IBC)
E25: International Residential Code (IRC) | Q25: 2 Scoring | R25: Value
E26: State Building Code | Q26: 2.1 Yes | R26: FALSE
E27: Other I-Codes | Q27: 2.1 No | R27: FALSE
Q28: 2.2 Yes | R28: FALSE
C30: 2 Ordinance Provisions | Q30: 2.2 No | R30: FALSE
D31: Do the ordinances contain the following provisions? | Q31: 2.3 Yes | R31: FALSE
Q32: 2.3 No | R32: FALSE
D34: Instructions: Identify the filing section number in the local ordinance or regulation where the identified provision is contained. | Q34: 2.4 Yes | R34: FALSE
D35: Indicate whether this local reference is compliant. Add any additional reviewer comments as to the adequacy of the local citation. | Q35: 2.4 No | R35: FALSE
D36: Section references to the NFIP Regulations | Q36: 2.5 Date | R36: =H47 -> 00:00:00
Q37: 2.6 Date | R37: =H49 -> 00:00:00
E38: NFIP Ordinance Provision/Other: | H38: Local ordinance section | I38: Compliant? | J38: Reviewer comments | Q38: 2.7 Yes | R38: FALSE
D39: 2.1 | E39: Citation of Statutory Authority for regulating land use [59.22(a)(2)] | Q39: 2.7 No | R39: FALSE
Q40: 2.8 Yes | R40: FALSE
D41: 2.2 | E41: Framework for administering the ordinance (including permit system, establishment of the office for administering the ordinance, record keeping, etc.). | Q41: 2.8 No | R41: FALSE
Q42: 2.9 Yes | R42: FALSE
D43: 2.3 | E43: Adequate enforcement provisions (including a violation and penalty section specifying actions the community will take to assure compliance). | Q43: 2.9 No | R43: FALSE
Q44: 2.10 Yes | R44: FALSE
D45: 2.4 | E45: Variance section with evaluation criteria and insurance notice. [60.6(a)] | Q45: 2.10 No | R45: FALSE
H46: 2.5 - Enter data below
D47: 2.5 | E47: Adoption date of ordinance (MO/DA/YEAR - 01/12/2022)
H48: 2.6 - Enter date below
D49: 2.6 | E49: Effective date of ordinance (MO/DA/YEAR - 01/12/2022)
D51: 2.7 | E51: Purpose section citing health, safety, and welfare reasons for adoption.
D53: 2.8 | E53: Disclaimer of Liability section
D55: 2.9 | E55: Abrogation and Greater Restriction section.
D57: 2.10 | E57: Severability section.
C60: 3 Minimum NFIP Criteria
D61: Which definitions are included?
F63: Note: The "check here if all present" capability is not currently functional here or 3.2 | S63: Actions | T63: Score | U63: Fast Track To Audit | V63: Flag | W63: Off-Ramp
D64: 3.1 | E64: Primary Definitions [59.1] - Check here if all present: | G64: Identify filing location - If all the same enter here: | Q64: 3 Scoring | R64: Value | S64: File Location
E66: 3.1a | F66: Base Flood | H66: =IFERROR($J$64,"") -> 0 | J66: Notes: | Q66: ALL PRESENT | R66: FALSE | S66: =H66 -> 0
E67: 3.1b | F67: Base flood elevation | H67: =IFERROR($J$64,"") -> 0 | Q67: 3.1a | R67: FALSE | S67: =H67 -> 0
E68: 3.1c | F68: Development | H68: 0 | Q68: 3.1b | R68: FALSE | S68: =H68 -> 0
E69: 3.1d | F69: Flood insurance rate map | H69: 0 | Q69: 3.1c | R69: FALSE | S69: 0
E70: 3.1e | F70: Flood insurance study | H70: 0 | Q70: 3.1d | R70: FALSE | S70: 0
E71: 3.1f | F71: Floodway | H71: 0 | Q71: 3.1e | R71: FALSE | S71: 0
E72: 3.1g | F72: Lowest floor | H72: 0 | Q72: 3.1f | R72: FALSE | S72: 0
E73: 3.1h | F73: Manufactured home | H73: 0 | Q73: 3.1g | R73: FALSE | S73: 0
E74: 3.1i | F74: Manufactured home park or subdivision | H74: 0 | Q74: 3.1h | R74: FALSE | S74: 0
E75: 3.1j | F75: New construction | H75: 0 | Q75: 3.1i | R75: FALSE | S75: 0
E76: 3.1k | F76: Recreational vehicle | H76: 0 | Q76: 3.1j | R76: FALSE | S76: 0
E77: 3.1l | F77: Special flood hazard area | H77: 0 | Q77: 3.1k | R77: FALSE | S77: 0
E78: 3.1m | F78: Start of construction | H78: 0 | Q78: 3.1l | R78: FALSE | S78: 0
E79: 3.1n | F79: Structure | H79: 0 | Q79: 3.1m | R79: FALSE | S79: 0
E80: 3.1o | F80: Substantial damage | H80: 0 | Q80: 3.1n | R80: FALSE | S80: 0
E81: 3.1p | F81: Substantial improvement | H81: 0 | Q81: 3.1o | R81: FALSE | S81: 0
E82: 3.1q | F82: Variance | H82: 0 | Q82: 3.1p | R82: FALSE | S82: 0
E83: 3.1r | F83: Violation | H83: 0 | Q83: 3.1q | R83: FALSE | S83: 0
D84: 3.2 | E84: Other Definitions as Appropriate - Check here if all present: | Q84: 3.1r | R84: FALSE | S84: 0
E85: 3.2a | F85: Basement | H85: 0 | Q85: ALL PRESENT | R85: FALSE
E86: 3.2b | F86: Breakaway walls | H86: 0 | Q86: 3.2a | R86: FALSE | S86: =H86 -> 0
E87: 3.2c | F87: Floodproofing | H87: 0 | Q87: 3.2b | R87: FALSE | S87: 0
E88: 3.2d | F88: Functionally dependent use | H88: 0 | Q88: 3.2c | R88: FALSE | S88: 0
E89: 3.2e | F89: Freeboard | H89: 0 | Q89: 3.2d | R89: FALSE | S89: 0
E90: 3.2f | F90: Highest adjacent grade (if AO zones present) | H90: 0 | Q90: 3.2e | R90: FALSE | S90: 0
E91: 3.2g | F91: Historic structures | H91: 0 | Q91: 3.2f | R91: FALSE | S91: 0
E92: 3.2h | F92: Levee | H92: 0 | Q92: 3.2g | R92: FALSE | S92: 0
H94: Local ordinance section | I94: Compliant: | J94: Reviewer comments (as appropriate) | Q94: 3.2h | R94: FALSE
D95: 3.3 | E95: Adopt or reference correct map and date. [60.3(b)] | J95: If the community has an automatic adoption provision in its ordinance, is it a valid provision? | Q95: 3.3 Yes | R95: FALSE
Q96: 3.3 No | R96: FALSE
D97: 3.4 | E97: Adopt or reference correct Flood Insurance Study and date. [60.3(c), (d), and/or (e)] | J97: If the community has an automatic adoption provision in its ordinance, is it a valid provision? | Q97: 3.4 Yes | R97: FALSE
Q98: 3.4 No | R98: FALSE
D99: 3.5 | E99: Require permits If unmapped [60.3(a)(1)]: for all proposed construction or other development, to determine whether such construction or development is in a floodplain] | Q99: 3.5 Yes | R99: FALSE
Q100: 3.5 No | R100: FALSE
D101: 3.6 | E101: Require permits for all proposed construction and other development within SFHAs. [60.3(b)(1): for (b), (c), (d), and/or (e)] | Q101: 3.6 Yes | R101: FALSE
Q102: 3.6 No | R102: FALSE
C104: 4 Section 60.3(a)
E108: Review permits to assure sites are reasonably safe from flooding [60.3(a)(3)] | H108: Local ordinance section | I108: Compliant: | J108: Reviewer comments (as appropriate) | S108: Actions | T108: Score | U108: Fast Track To Audit | V108: Flag | W108: Off-Ramp
D109: 4.1 | E109: Anchoring (including manufactured homes) of New and SI construction to prevent flotation, collapse, or lateral movement of the structure. [60.3(a)(3)(i)] | Q109: 4 Scoring | R109: Value
Q110: 4.1 Yes | R110: FALSE | S110: =H110 -> 0
D111: 4.2 | E111: Use of flood-resistant materials. [60.3(a)(3)(ii)] | Q111: 4.1 No | R111: FALSE | S111: =H111 -> 0
Q112: 4.2 Yes | R112: FALSE
D113: 4.3 | E113: Construction methods and practices that minimize flood damage. [60.3(a)(3)(iii)] | Q113: 4.2 No | R113: FALSE
Q114: 4.3 Yes | R114: FALSE
D115: 4.4 | E115: Electrical, heating, ventilation, plumbing, air conditioning equipment, and other service facilities designed and/or located to prevent water entry to accumulation. [60.3(a)(3)(iv)] | Q115: 4.3 No | R115: FALSE
Q116: 4.4 Yes | R116: FALSE
E117: Review subdivision proposals and other development, including manufactured home parks or subdivisions, to determine whether such proposals will be reasonably safe from flooding [60.3(a)(4)]. | H117: Notes: | Q117: 4.4 No | R117: FALSE
Q118: 4.5 Yes | R118: FALSE
Q119: 4.5 No | R119: FALSE
D120: 4.5 | E120: If a subdivision or other development proposal is in a flood-prone area, assure that such proposals minimize flood damage. [60.3(a)(4)(i)] | Q120: 4.6 Yes | R120: FALSE
Q121: 4.6 No | R121: FALSE
D122: 4.6 | E122: Ensure public utilities and facilities are constructed so as to minimize flood damage. [60.3(a)(4)(ii)] | Q122: 4.7 Yes | R122: FALSE
Q123: 4.7 No | R123: FALSE
D124: 4.7 | E124: Adequate drainage is provided in subdivisions to reduce exposure to flood hazards. [60.3(a)(4)(iii)] | Q124: 4.8 Yes | R124: FALSE
Q125: 4.8 No | R125: FALSE
D126: 4.8 | E126: Require new and replacement water supply and sanitary sewage systems to be designed to minimize or eliminate infiltration. [60.3(a)(5) and 60.3(a)(6)] | Q126: 4.9 Yes | R126: FALSE
Q127: 4.9 No | R127: FALSE
D128: 4.9 | E128: Require onsite waste disposal systems be designed to avoid impairment or contamination. [60.3(a)(6)(ii)] | Q128: 4.10 Yes | R128: FALSE
Q129: 4.10 No | R129: FALSE
D130: 4.10 | E130: Assure that all other State and Federal permits are obtained. [60.3(a)(2)]
C133: 5 Section 60.3(b)
H136: Local ordinance section | I136: Compliant: | J136: Reviewer comments (as appropriate) | S136: Actions | T136: Score | U136: Fast Track To Audit | V136: Flag | W136: Off-Ramp
D137: 5.1 | E137: Require base flood elevation data for subdivision proposals or other developments greater than 50 lots or 5 acres. [60.3(b)(3)] | Q137: 5 Scoring | R137: Value
Q138: 5.1 Yes | R138: FALSE | S138: =H138 -> 0
D139: 5.2 | E139: In A Zones, in the absence of FEMA BFE data and floodway data, obtain, review, and reasonably utilize other BFE and floodway data as a basis for elevating residential structures to or above the base flood level, and for floodproofing or elevating non-residential structures to or above the base flood level. [60.3(b)(4)] | Q139: 5.1 No | R139: FALSE | S139: =H139 -> 0
Q141: 5.2 Yes | R141: FALSE
D142: 5.3 | E142: Where BFE data are utilized in Zone A, obtain and maintain records of the lowest floor and floodproofing elevations for new and substantially improved construction. [60.3(b)(5)] | Q142: 5.2 No | R142: FALSE
Q144: 5.3 Yes | R144: FALSE
D145: 5.4 | E145: In riverine areas, notify adjacent communities of watercourse alterations and relocations. [60.3(b)(6)] | Q145: 5.3 No | R145: FALSE
Q146: 5.4 Yes | R146: FALSE
D147: 5.5 | E147: Maintain the carrying capacity of an altered or relocated watercourse. [60.3(b)(7)] | Q147: 5.4 No | R147: FALSE
Q148: 5.5 Yes | R148: FALSE
D149: 5.6 | E149: Require all manufactured homes to be elevated and anchored to resist flotation, collapse, or lateral movement. [60.3(b)(8)] | Q149: 5.5 No | R149: FALSE
Q150: 5.6 Yes | R150: FALSE
B151: New Priority | D151: 5.7 | E151: Substantial Improvement/Substantial Damage determination procedures (Cost of Work, Market Value, Calculate %, issue determination letters) | Q151: 5.6 No | R151: FALSE
Q152: 5.7 Yes | R152: FALSE
B153: New Priority | D153: 5.8 | E153: Require LOMC process: Within 6 months, notify FEMA of changes in the Base Flood Elevation by submitting technical or scientific data, so that insurance rates & floodplain management requirements will be based on current data. [65.3] | Q153: 5.7 No | R153: FALSE
Q154: 5.8 Yes | R154: FALSE
Q155: 5.8 No | R155: FALSE
C157: 6 Section 60.3(c)
H160: Local ordinance section | I160: Compliant: | J160: Reviewer comments (as appropriate) | S160: Actions | T160: Score | U160: Fast Track To Audit | V160: Flag | W160: Off-Ramp
D161: 6.1 | E161: Require all new and substantially improved residential structures within A1-30, AE, and AH Zones have their lowest floor (including basement) elevated to or above the Base Flood Elevation. [60.3(c)(2)] | Q161: 6 Scoring | R161: Value
Q162: 6.1 Yes | R162: FALSE
Q163: 6.1 No | R163: FALSE | S163: =H163 -> 0
D164: 6.2 | E164: In AO Zones2, require that new and substantially improved residential structures have their lowest floor (including basement) to or above the highest adjacent grade at least as high as the FIRM’s depth number. [60.3(c)(7)] | Q164: 6.2 Yes | R164: FALSE | S164: =H164 -> 0
Q165: 6.2 No | R165: FALSE
Q166: 6.3 Yes | R166: FALSE
D167: 6.3 | E167: Require that new and substantially improved non-residential structures within A1-30, AE, and AH Zones have their lowest floor elevated or floodproofed to or above the Base Flood Elevation. [60.3(c)(3)] | Q167: 6.3 No | R167: FALSE
Q168: 6.4 Yes | R168: FALSE
Q169: 6.4 No | R169: FALSE
D170: 6.4 | E170: In AO Zones2, require new and substantially improved non-residential structures have their lowest floor elevated or completely floodproofed above the highest adjacent grade to at least as high as the depth number on the FIRM. [60.3(c)(8)] | Q170: 6.5 Yes | R170: FALSE
Q171: 6.5 No | R171: FALSE
Q172: 6.6 Yes | R172: FALSE
D173: 6.5 | E173: Require that for floodproofed non-residential structures, a registered professional engineer/architect certify that the design and methods of construction meet requirements at 60.3(c)(3)(ii). [60.3(c)(4)] | Q173: 6.6 No | R173: FALSE
Q174: 6.7 Yes | R174: FALSE
Q175: 6.7 No | R175: FALSE
D176: 6.6 | E176: Require, for all new construction and substantial improvements, that fully enclosed areas below the lowest floor that are used solely for parking of vehicles, building access or storage in an area other than a basement and which is subject to flooding shall be designed to automatically equalize hydrostatic flood forces on exterior walls by allowing the entry and exit of floodwaters in accordance with the specifications in 60.3(c)(5). (Openings requirement) | Q176: 6.8 Yes | R176: FALSE
Q177: 6.8 No | R177: FALSE
Q178: 6.9 Yes | R178: FALSE
Q179: 6.9 No | R179: FALSE
D180: 6.7 | E180: Until a regulatory floodway is designated, no encroachment may increase the Base Flood level more than 1 foot. [60.3(c)(10)] | Q180: 6.10 Yes | R180: FALSE
Q181: 6.10 No | R181: FALSE
D182: 6.8 | E182: In Zones AO and AH2, require drainage paths around structures on slopes to guide water away from structures. [60.3(c)(11)] | Q182: 6.11 Yes | R182: FALSE
Q183: 6.11 No | R183: FALSE
D184: 6.9 | E184: Require that manufactured homes placed or substantially improved within A1-30, AH, and AE Zones, which meet one of the following location criteria, to be elevated such that the lowest floor is to or above the BFE and be securely anchored: (i) outside a manufactured home park or subdivision; (ii) in a new manufactured home park or subdivision; (iii) in an expansion to an existing manufactured home park or subdivision; (iv) on a site in an existing park which a manufactured home has incurred substantial damage as a result of a flood. [60.3(c)(6)]
D187: 6.10 | E187: In A-1-30, AH, and AE Zones, require that manufactured homes to be placed or substantially improved in an existing manufactured home park to be elevated so that (i) the lowest floor is at or above the BFE; (ii) OR the chassis is supported by reinforced piers no less than 36 inches in height above grade and securely anchored. [60.3(c)(12)]
D190: 6.11 | E190: In A1-30, AH, and AE Zones, all recreational vehicles to be placed on a site must (i) be elevated and anchored; OR (ii) be on the site for less than 180 consecutive days; OR (iii) be fully licensed and highway ready. [60.3(c)(14)]
D193: 7 Section 60.3(d)
S195: Actions | T195: Score | U195: Fast Track To Audit | V195: Flag | W195: Off-Ramp
Q196: 7 Scoring | R196: Value
D197: 7.1 | E197: Designate a regulatory floodway which will not increase the Base Flood level more than 1 foot. [60.3(d)(2)] | Q197: 7.1 Yes | R197: FALSE
Q198: 7.1 No | R198: FALSE | S198: =H198 -> 0
D199: 7.2 | E199: In a regulatory floodway, prohibit any encroachment, unless hydrologic and hydraulic analyses prove that the proposed encroachment would not result in any increase in flood levels during the Base Flood discharge. [60.3(d)(3)] | Q199: 7.2 Yes | R199: FALSE | S199: =H199 -> 0
Q200: 7.2 No | R200: FALSE
D203: 8 Section 60.3(e)
H206: Local ordinance section | I206: Compliant: | J206: Reviewer comments (as appropriate) | S206: Actions | T206: Score | U206: Fast Track To Audit | V206: Flag | W206: Off-Ramp
D207: 8.1 | E207: In V1-30, VE, and V Zones, obtain and maintain the elevation of the bottom of the lowest horizontal structural member of the lowest floor of all new and substantially improved structures. [60.3(e)(2)] | Q207: 8 Scoring | R207: Value
Q208: 8.1 Yes | R208: FALSE
D209: 8.2 | E209: In V1-30, VE, and V Zones, require that all new construction and substantial improvements: | Q209: 8.1 No | R209: FALSE | S209: =H212 -> 0
S210: =H213 -> 0
D212: 8.2a | E212: Are elevated and secured to anchored pilings or columns so that the bottom of the lowest horizontal structural member is at or above the Base Flood Elevation. [60.3(e)(4)] | Q212: 8.2a Yes | R212: FALSE
Q213: 8.2a No | R213: FALSE
D214: 8.2b | E214: A registered professional engineer/architect certify that the design and methods of construction meet elevation and anchoring requirements at 60.3(e)(4)(i) and (ii). [60.3(e)(4)] | Q214: 8.2b Yes | R214: FALSE
Q215: 8.2b No | R215: FALSE
D216: 8.2c | E216: Have the space below the lowest floor either free of obstruction or constructed with breakaway walls. Any enclosed space shall be used solely for parking, building access, or storage. [60.3(e)(5)] | Q216: 8.2c Yes | R216: FALSE
Q217: 8.2c No | R217: FALSE
D218: 8.2d | E218: All new construction is landward of mean high tide. [60.3(e)(3)] | Q218: 8.2d Yes | R218: FALSE
Q219: 8.2d No | R219: FALSE
D220: 8.2e | E220: Prohibit use of fill for structural support. [60.3(e)(6)] | Q220: 8.2e Yes | R220: FALSE
Q221: 8.2e No | R221: FALSE
D222: 8.2f | E222: Prohibit alteration of sand dunes and mangrove stands. [60.3(e)(7)] | Q222: 8.2f Yes | R222: FALSE
Q223: 8.2f No | R223: FALSE
D224: 8.3 | E224: Require that manufactured homes placed or substantially improved within V1-30, VE, and V Zones, which meet one of the following location criteria, meet the V Zone standards in 60.3(e)(2) through (e)(7): (i) outside a manufactured home park or subdivision; (ii) in a new manufactured home park or subdivision; (iii) in an expansion to an existing manufactured home park or subdivision; (iv) on a site in an existing park which a manufactured home has incurred substantial damage as a result of a flood. [60.3(e)(8)] | Q224: 8.3 Yes | R224: FALSE
Q225: 8.3 No | R225: FALSE
H226: Notes: | Q226: 8.4 Yes | R226: FALSE
Q227: 8.4 No | R227: FALSE
Q230: 8.5 Yes | R230: FALSE
D231: 8.4 | E231: In V1-30, VE, and V Zones, require that manufactured homes to be placed or substantially improved in an existing manufactured home park to be elevated so that (i) the lowest floor is at or above the BFE; (ii) OR the chassis is supported by reinforced piers no less than 36 inches in height above grade and securely anchored. [60.3(e)(8)(iv)] | Q231: 8.5 No | R231: FALSE
D235: 8.5 | E235: In V1-30, VE, and V zones, all recreational vehicles to be placed on a site must (i) be elevated and anchored; OR (ii) be on the site for less than 180 consecutive days; OR (iii) be fully licensed and highway ready. [60.3(e)(9)]
F242: For Future Consideration
F243: HIGHER STANDARDS | J243: Notes:
F244: Freeboard (more than BFE + 1)
F245: Cumulative Substantial Improvement (years = ____ )
F246: Dwelling design to ASCE 24
F247: Limit Size of Enclosures
F248: Limitation on use of fill
F249: Nonconversion agreement
... 15 more rows

Sheet Diagnostic Assessment OLD (hidden)
CI1: Data Visualization Examples:
G2: Diagnostic Assessment PRE-DECISIONAL DRAFT | CA2: DO NOT ALTER TEXT OR GRAPHICS IN ANY WAY | CJ2: Community Score | CK2: Compliance Baseline | CL2: Below Threshold Flag | CM2: Display Label
D3: Summary | I3: Assessment Summary and Overview | AB3: Critical Process Evaluation: | AE3: Red Flag Evaluation | AG3: Red Flag Score | AI3: Graphics Summary | AK3: Weight
H5: Instructions: Have Flood Plain Administrator (FPA) describe their processes (e.g. permitting). As the elements are identified use this tool to annotate responses. Overall diagnostic assessment score and sub scores (permit review, critical process, ordinance health, and red flag) are provided in the table to the right. | Q5: Overall Diagnostic Assessment Score: | W5: =AK11 -> 52% | AC5: Lacking=1 | AF5: Yes=1
D6: Category | E6: Number of Questions/Critical/Flags | Q6: Diagnostic Assessment Summary: | AA6: P | AB6: Q2, | AC6: =IF(OR(AJ44=TRUE, (AND(AJ45=TRUE,AJ46=TRUE))),1,0) -> 0 | AD6: P | AE6: 1.4, | AF6: =IF(AJ38=TRUE,1,0) -> 1 | AG6: Count | AH6: =SUM(AF6:AF15) -> 9 | AI6: Critical Process | AJ6: =SUM(AC16/AC18) -> 89% | AK6: 2
D7: Capability | E7: 16/1/1 | Q7: Permit Review Score | S7: =AJ9 -> 84% | V7: Ordinance Health Score | X7: =AJ10 -> 0% | AA7: P | AB7: Q4, | AC7: =IF(OR(AJ68=TRUE,AJ69=TRUE),1,0) -> 1 | AD7: P | AE7: 2.4, | AF7: =IF(AJ47=TRUE,1,0) -> 0 | AG7: % | AH7: =SUM(AH6/10) -> 90% | AI7: Red Flags | AJ7: =AH8 -> 10% | AK7: 2 | CI7: =AI6 -> Critical Process | CJ7: =AJ6 -> 89% | CK7: 60% | CL7: =IF(CJ7<CK7,"*","") ->  | CM7: =_xlfn.CONCAT(TEXT(CJ7,"0%"),CL7) -> 89%
D8: Map | E8: 5/0/1 | Q8: Critical Process Score | S8: =AJ6 -> 89% | V8: Red Flag Score | X8: =AH8 -> 10% | AA8: P | AB8: Q6, | AC8: =IF(AND(AJ90=TRUE, AJ91=TRUE),1,0) -> 1 | AD8: P | AE8: 8.3, | AF8: =IF(AJ116=TRUE,1,0) -> 1 | AG8: Score | AH8: =SUM(AH7-1)*-1 -> 0.1 | AI8: Permit Review Score | AJ8: =SUM(AL18:AL20,AL22:AL36,AL38,AL43:AL47,AL56:AL60,AL67:AL70,AL76:AL86,AL88:AL96,AL100,AL102:AL108,AL113:AL121,AL130:AL133,AL140:AL144,AL148:AL159) -> 31.00 | CI8: =AI7 -> Red Flags | CJ8: =AJ7 -> 10% | CK8: 80% | CL8: =IF(CJ8<CK8,"*","") -> * | CM8: =_xlfn.CONCAT(TEXT(CJ8,"0%"),CL8) -> 10%*
D9: Regulations | E9: 2002-11-02 | H9: Legend: The letter to the left of the question number corresponds to the following primary categories: C = FPA Capability, Capacity and Institutional Support; M = Map Availability and Accuracy; R = Floodplain Management Regulations; P = Standardized Processes. X = Context and is not one of the evaluation tool categories. = critical process; = red flag | Q9: Lacking Critical Processes (#/9) | S9: =IFERROR(_xlfn.TEXTJOIN(" ",TRUE,_xlfn.ANCHORARRAY(AB20)),"None Missing") -> Q2, | V9: Red Flags Present (#/9) | X9: =IFERROR(_xlfn.TEXTJOIN(" ",TRUE,_xlfn.ANCHORARRAY(AE19)),"None Missing") -> 13.1 13.6 1.4, 10.2, 11.1, 3.4, 5.6, 6.4, 8.3, | AA9: P | AB9: Q8.5, | AC9: =IF(AJ118=TRUE,1,0) -> 1 | AD9: P | AE9: 10.2, | AF9: =IF(AJ141=TRUE,1,0) -> 1 | AI9: Permit Review Score % | AJ9: =AJ8/37 -> 84% | AK9: 2 | CI9: =AI8 -> Permit Review Score | CJ9: =AJ9 -> 84% | CK9: 70% | CM9: 84%
D10: Process | E10: 27/5/5 | Q10: - FPA Capability, Capacity, Support (1) | S10: =IFERROR(_xlfn.TEXTJOIN(" ",TRUE,_xlfn.ANCHORARRAY(AB40)),"None Missing") -> None Missing | V10: - FPA Capability, Capacity, Support (1) | X10: =IFERROR(_xlfn.TEXTJOIN(" ",TRUE,AE40),"None Missing") -> 3.4, | AA10: P | AB10: Q10.1, | AC10: =IF(AJ140=TRUE,1,0) -> 1 | AD10: P | AE10: 11.1, | AF10: =IF(AJ148=TRUE,1,0) -> 1 | AG10: Ordinance Health | AI10: Ordinance Health | AJ10: =AG17 -> 0% | AK10: 1 | CI10: Ordinance Health | CJ10: =AJ10 -> 0% | CK10: 55% | CL10: * | CM10: 0%*
D11: Context | E11: 10/0/0 | Q11: - Map Availability and Accuracy (0) | S11: N/A | V11: - Map Availability and Accuracy (1) | X11: =IFERROR(_xlfn.TEXTJOIN(" ",TRUE,AE35),"None Missing") -> 5.6, | AA11: R | AB11: Q5.5, | AC11: =IF(AJ81=TRUE,1,0) -> 1 | AD11: C | AE11: 3.4, | AF11: =IF(AJ60=TRUE,1,0) -> 1 | AG11: 13.1 | AH11: =IF(AJ185,3,IF(AJ186,2,IF(AJ187,0,""))) -> 0 | AI11: Diagnostic Assessment score: | AK11: =SUM((AJ6*AK6)+(AJ7*AK7)+(AJ9*AK9)+(AJ10*AK10))/7 -> 52%
D12: None | E12: 3 | Q12: - Floodplain Management Regs (2) | S12: =IFERROR(_xlfn.TEXTJOIN(" ",TRUE,_xlfn.ANCHORARRAY(AB37)),"None Missing") -> None Missing | V12: - Floodplain Management Regs (2) | X12: =IFERROR(_xlfn.TEXTJOIN(" ",TRUE,_xlfn.ANCHORARRAY(AE37)),"None Missing") -> None Missing | AA12: R | AB12: Q8.6, | AC12: =IF(AJ119=TRUE,1,0) -> 1 | AD12: M | AE12: 5.6, | AF12: =IF(AJ88=TRUE,1,0) -> 1 | AG12: 13.2-Require | AH12: =IF(AJ189,1,0) -> 1
Q13: - Standardized Processes (5) | S13: =IFERROR(_xlfn.TEXTJOIN(" ",TRUE,_xlfn.ANCHORARRAY(AB31)),"None Missing") -> Q2, | V13: - Standardized Processes (5) | X13: =IFERROR(_xlfn.TEXTJOIN(" ",TRUE,_xlfn.ANCHORARRAY(AE29)),"None Missing") -> 1.4, 8.3, 10.2, 11.1, | AA13: C | AB13: Q9.1, | AC13: =IF(AJ130=TRUE,1,0) -> 1 | AD13: R | AE13: 6.4, | AF13: =IF(AJ100=TRUE,1,0) -> 1 | AG13: 13.2-Have | AH13: =IF(AJ191,1,0) -> 1
C14: Quest | D14: Category | E14: Q in Eval Tool | AA14: C | AB14: Q9.2 | AC14: =IF(AJ131=TRUE,1,0) -> 1 | AD14: R | AE14: 13.1 | AF14: =IF(AJ187=TRUE,1,0) -> 1 | AG14: 13.5 | AH14: =IF(AJ197,1,0) -> 1
AD15: R | AE15: 13.6 | AF15: =IF(AJ202=TRUE,1,0) -> 1
I16: 1 | J16: Permitting Process: Overview | AB16: Total | AC16: =SUM(AC4:AC14) -> 8 | AG16: Score: | AI16: Scoring Table - Summary (Hidden/Locked from user view) | AP16: Check Boxes | AQ16: Fill in Blanks | AR16: Notes | CA16: Check Boxes | CB16: Fill in Blanks | CC16: Notes
J17: Who does the permitting process? | AG17: =IF(AND(AH11=1,AH12=1,AH13=0,AH14=0),0.1,IF(AND(AH11=1,AH12=0,AH13=0,AH14=0),0.25,IF(AND(AH11=1,AH12=1,AH13=1,AH14=1),0.35,IF(AND(AH11=2,AH12=1,AH13=0,AH14=0),0.55,IF(AND(AH11=2,AH12=0,AH13=0,AH14=0),0.65,IF(AND(AH11=2,AH12=1,AH13=1,AH14=1),0.75,IF(AND(AH11=3,AH12=1,AH13=0,AH14=0),0.8,IF(AND(AH11=3,AH12=0,AH13=0,AH14=0),0.9,IF(AND(AH11=3,AH12=1,AH13=1,AH14=1),1,0))))))))) -> 0 | AK17: Actions | AL17: Score | AM17: Fast Track To Audit | AN17: Flag | AO17: Off-Ramp | AP17: RESET VALUES | AQ17: RESET VALUES | AR17: RESET VALUES | CA17: RESET VALUES | CB17: RESET VALUES | CC17: RESET VALUES
AB18: 100% Score | AC18: 9 | AE18: ALL | AI18: 1 Scoring | AJ18: Value
F19: LOCATION IN NEW DIAGNOSTIC TOOL (Q Number) | U19: Instructions will appear when corresponding responses are selected | AB19: All | AD19: Don’t Erase In "AA" | AE19: =_xlfn._xlws.SORT(_xlfn._xlws.FILTER(AE6:AE15,AF6:AF15=1)) -> 13.1 | AI19: 1.0 CRS | AJ19: TRUE | AL19: =IF(AJ19=TRUE,1,0) -> 1 | AP19: FALSE | CA19: FALSE
B20: S | C20: 1.0 | D20: Context - unscored in eval tool | H20: X | I20: 1.0 | L20: Is this a Community Rating System (CRS) community? | U20: 1.0 Enter Current CRS Class - number (1-10) | AA20: Don’t Erase In "X" | AB20: =_xlfn._xlws.SORT(_xlfn._xlws.FILTER(AB6:AB14,AC6:AC14=0)) -> Q2, | AE20: 13.6 | AI20: 1.0 Not CRS | AJ20: FALSE | AL20: =IF(AJ20=TRUE,0,0) -> 0 | AP20: FALSE | CA20: FALSE
K21: FALSE | M21: YES | O21: NO | AE21: 1.4, | AI21: =U21 -> 0
AE22: 10.2, | AI22: 1.1 | AJ22: FALSE | AL22: =IF(AJ22=TRUE,2,0) -> 0 | AP22: FALSE | CA22: FALSE
I23: For Questions 1.1-1.4 check the one that best describes the process | AE23: 11.1, | AH23: 1.2 Dept: | AI23: 1.2 | AJ23: FALSE | AL23: =IF(AJ23=TRUE,1,0) -> 0 | AP23: FALSE | CA23: FALSE
B24: S | C24: 1.1 | D24: Capability | E24: relates to 1.7 | H24: C | I24: 1.1 | K24: FALSE | L24: The community permitting process is through FPA's department/office | AE24: 3.4, | AH24: =U26 -> 0 | AI24: 1.2a Yes | AJ24: FALSE | AL24: =IF(AJ24=TRUE,1,0) -> 0 | AP24: FALSE | CA24: FALSE
B25: S | C25: 1.2 | D25: Capability | E25: relates to 1.7 | H25: C | I25: 1.2 | K25: TRUE | L25: The community permitting process is through multiple departments/offices | R25: (list in spaces to right) | U25: 1.2 List the offices below for community permitting: | Y25: =K25 -> TRUE | AE25: 5.6, | AH25: 0 | AI25: 1.2a No | AJ25: FALSE | AL25: =IF(AJ25=TRUE,-0.5,0) -> 0 | AP25: FALSE | CA25: FALSE
T26: 1 | AE26: 6.4, | AH26: 0 | AI26: 1.2b | AJ26: Value
K27: FALSE | L27: 1.2a If "Yes" to 1.2, does FPA receive notice of floodplain permit changes by other departments and reviews for compliance? | T27: 2 | AE27: 8.3, | AH27: 0 | AI27: ER | AJ27: FALSE | AP27: FALSE | CA27: FALSE
M28: Yes | O28: No | T28: 3 | AE28: Process | AH28: 0 | AI28: Subdivide | AJ28: FALSE | AP28: FALSE | CA28: FALSE
T29: 4 | AE29: =_xlfn._xlws.FILTER(AE6:AE10,AF6:AF10=1) -> 1.4, | AH29: 0 | AI29: Other | AJ29: FALSE | AP29: FALSE | CA29: FALSE
L30: 1.2b If "Yes" to 1.2, which areas/departments coordinate floodplain development permits? | T30: 5 | AB30: Process | AE30: 8.3, | AI30: Insp | AJ30: FALSE | AP30: FALSE | CA30: FALSE
M31: Engineering | O31: Subdivisions | Q31: Other (Identify other detpartments that coordinate) | T31: 6 | AB31: =_xlfn._xlws.FILTER(AB6:AB10,AC6:AC10=0) -> Q2, | AE31: 10.2, | AI31: Code Enf | AJ31: FALSE | AP31: FALSE | CA31: FALSE
M32: Inspections | O32: Code Enforcement/Variance/Appeals | AE32: 11.1, | AI32: 1.3 | AJ32: FALSE | AL32: =IF(AJ32=TRUE,1,0) -> 0 | AP32: FALSE | CA32: FALSE
AI33: County | AJ33: FALSE | AP33: FALSE | CA33: FALSE
B34: S | C34: 1.3 | D34: Capability | E34: context but may relate to 1.5 | H34: C | I34: 1.3 | K34: TRUE | L34: Community contracts out permitting (select one from below) | U34: 1.3 Explain how community contracts out permitting | Y34: =K25 -> TRUE | AE34: Map | AI34: State | AJ34: FALSE | AP34: FALSE | CA34: FALSE
M35: County | O35: State | Q35: Private | S35: Other (explain in more detail to right) | Y35: =K25 -> TRUE | AE35: =_xlfn._xlws.FILTER(AE12,AF12=1) -> 5.6, | AI35: Private | AJ35: FALSE | AP35: FALSE | CA35: FALSE
AB36: Regs | AE36: Regs | AI36: Other | AJ36: FALSE | AP36: FALSE | CA36: FALSE
B37: S | C37: 1.4 | D37: Process | E37: 4.4 - "not used"? | H37: P | I37: 1.4 | K37: TRUE | L37: Community does not have a permitting process (explain in more detail to the right) | U37: 1.4 Explain other/lack of permitting process, indicate NONE if no process | Y37: =K25 -> TRUE | AB37: =_xlfn._xlws.FILTER(AB11:AB12,AC11:AC12=0) ->  | AE37: =_xlfn._xlws.FILTER(AE13:AE15,AF13:AF15=1) ->  | AI37: =U35 -> 0
AI38: 1.4 | AJ38: TRUE | AL38: =IF(AJ38=TRUE,-1,0) -> -1 | AN38: =AL38 -> -1 | AP38: FALSE | CA38: FALSE
Y39: =K25 -> TRUE | AB39: Admin | AE39: Admin
AB40: =_xlfn._xlws.FILTER(AB13:AB14,AC13:AC14=0) ->  | AE40: =_xlfn._xlws.FILTER(AE11,AF11=1) -> 3.4, | AI40: =U38 -> 0
I42: 2 | J42: Permitting Forms | Y42: =K25 -> TRUE
J43: How is the permitting process documented? (Check 2.1, 2.4, or 2.2 & 2.3) | AI43: 2 Scoring | AJ43: Value
AH44: =IF(AJ44=TRUE,"2","") ->  | AI44: 2.1 | AJ44: FALSE | AL44: =IF(AJ44=TRUE,2,0) -> 0 | AP44: FALSE | CA44: FALSE
U45: Notes: | AH45: =IF(AJ45=TRUE,"2","") ->  | AI45: 2.2 | AJ45: FALSE | AL45: =IF(AND(AJ45=TRUE,AJ46=TRUE),1,0) -> 0 | AP45: FALSE | AR45: Notes: | CA45: FALSE | CC45: Notes:
B46: S | C46: 2.1 | D46: Process | E46: relates to 4.1 | H46: P | I46: 2.1 | K46: FALSE | L46: Permitting using single/comprehensive floodplain development permit for ALL development types | Y46: =K25 -> TRUE | AI46: 2.3 | AJ46: FALSE | AP46: FALSE | CA46: FALSE
B47: S | C47: 2.2 | D47: Process | E47: relates to 4.1 | H47: P | I47: 2.2 | K47: FALSE | L47: Separate building permit form used for new and existing structures | U47: 2.4 Describe what type(s) of development is(are) not reviewed | Y47: FALSE | AH47: =IF(AJ47=TRUE,"1","") ->  | AI47: 2.4 | AJ47: FALSE | AL47: =IF(AJ47=TRUE,-1,0) -> 0 | AN47: =AL47 -> 0 | AP47: FALSE | CA47: FALSE
B48: S | C48: 2.3 | D48: Process | E48: relates to 4.1 | H48: P | I48: 2.3 | K48: FALSE | L48: Separate non-structural development (fill/grade, environmental), as defined by 44 CFR 59.1 permit form | U48: (i.e., buildings are permitted, but non-structural development is not) | AI48: =U49 -> 0
B49: S | C49: 2.4 | D49: Process | H49: P | I49: 2.4 | K49: TRUE | L49: Other - community does not permit/review all types of development (identify in more detail to the right)
I53: 3 | J53: SFHA Determination
J54: How is the flood zone and regulatory flood height determined? (Check one only) | AP54: Check Boxes | AQ54: Fill in Blanks | AR54: Notes | CA54: Check Boxes | CB54: Fill in Blanks | CC54: Notes
AK55: Actions | AL55: Score | AM55: Fast Track To Audit | AN55: Flag | AO55: Off-Ramp | AP55: RESET VALUES | AQ55: RESET VALUES | AR55: RESET VALUES | CA55: RESET VALUES | CB55: RESET VALUES | CC55: RESET VALUES
U56: Notes: | AI56: 3 Scoring | AJ56: Value | AR56: Notes: | CC56: Notes:
B57: S | C57: 3.1 | D57: Capability | E57: 1.3.1 & 1.3.2 | H57: C | I57: 3.1 | K57: FALSE | L57: Using digital effective FIRMs and FIS (In GIS) | AI57: 3.1 | AJ57: TRUE | AL57: =IF(AJ57=TRUE,1,0) -> 1 | AP57: FALSE | CA57: FALSE
B58: S | C58: 3.2 | D58: Capability | E58: 1.3.1 & 1.3.2 | H58: C | I58: 3.2 | K58: FALSE | L58: Using paper effective FIRMs and FIS | AI58: 3.2 | AJ58: TRUE | AL58: =IF(AJ58=TRUE,1,0) -> 1 | AP58: FALSE | CA58: FALSE
B59: S | C59: 3.3 | D59: context | E59: 1.3.1 Yes & 1.3.2 No | H59: X | I59: 3.3 | K59: FALSE | L59: Using FIRMs only (digital or paper) but not FIS | U59: 3.4 Describe other means of determining flood zone/height or: "does not determine" | AI59: 3.3 | AJ59: TRUE | AL59: 1 | AP59: FALSE | CA59: FALSE
B60: S | C60: 3.4 | D60: Capability | E60: 1.3.5 | H60: C | I60: 3.4 | K60: FALSE | L60: Other method (identify)-or community does not determine correctly | AH60: =IF(AJ60=TRUE,"1","") -> 1 | AI60: 3.4 | AJ60: TRUE | AL60: =IF(AJ60=TRUE,-1,0) -> -1 | AN60: =AL60 -> -1 | AP60: FALSE | CA60: FALSE
AI61: =U60 -> 0
I64: 4 | J64: BFE and Elevations
J65: How are the BFE and regulatory flood height checked during plan review? (Check one only) | AP65: Check Boxes | AQ65: Fill in Blanks | AR65: Notes | CA65: Check Boxes | CB65: Fill in Blanks | CC65: Notes
AK66: Actions | AL66: Score | AM66: Fast Track To Audit | AN66: Flag | AO66: Off-Ramp | AP66: RESET VALUES | AQ66: RESET VALUES | AR66: RESET VALUES | CA66: RESET VALUES | CB66: RESET VALUES | CC66: RESET VALUES
U67: Notes: | AI67: 4 Scoring | AJ67: Value | AR67: Notes: | CC67: Notes:
B68: S | C68: 4.1 | D68: Process | E68: context | H68: P | I68: 4.1 | K68: FALSE | L68: BFE determined by FPA office and provided to applicant at permit initiation | AH68: =IF(AJ68=TRUE,"2","") -> 2 | AI68: 4.1 | AJ68: TRUE | AL68: =IF(AJ68=TRUE,2,0) -> 2 | AP68: FALSE | CA68: FALSE
B69: S | C69: 4.2 | D69: Process | E69: context | H69: P | I69: 4.2 | K69: FALSE | L69: BFE generated by applicant/surveyor, verified before permit issued | U69: 4.3 How does the community assure elevations are appropriate relative to adjacent ground level? | AH69: 2 | AI69: 4.2 | AJ69: TRUE | AL69: =IF(AJ69=TRUE,1,0) -> 1 | AP69: FALSE | CA69: FALSE
B70: S | C70: 4.3 | D70: Admin | E70: may relate to 1.3.5 | H70: C | I70: 4.3 | K70: FALSE | L70: Only ZONE A (no BFE) | AI70: 4.3 | AJ70: TRUE | AL70: =IF(AJ70=TRUE,1,0) -> 1 | AP70: FALSE | CA70: FALSE
AI71: =U70 -> 0
I74: 5 | J74: Other Permitting Actions | AP74: Check Boxes | AQ74: Fill in Blanks | AR74: Notes | CA74: Check Boxes | CB74: Fill in Blanks | CC74: Notes
J75: Which of these are the community actively applying? (Check as many as apply to the community) | AK75: Actions | AL75: Score | AM75: Fast Track To Audit | AN75: Flag | AO75: Off-Ramp | AP75: RESET VALUES | AQ75: RESET VALUES | AR75: RESET VALUES | CA75: RESET VALUES | CB75: RESET VALUES | CC75: RESET VALUES
AI76: 5 Scoring | AJ76: Value
U77: Notes: | AI77: 5.1 | AJ77: TRUE | AL77: =IF(AJ77=TRUE,1,0) -> 1 | AP77: FALSE | AR77: Notes: | CA77: FALSE | CC77: Notes:
B78: S | C78: 5.1 | D78: Process | E78: context | H78: P | I78: 5.1 | K78: FALSE | L78: Subdivisions and large developments checked for 50 lot/5 acre threshold? | AI78: 5.2 | AJ78: TRUE | AL78: =IF(AJ78=TRUE,1,0) -> 1 | AP78: FALSE | CA78: FALSE
B79: S | C79: 5.2 | D79: Process | E79: context | H79: P | I79: 5.2 | K79: FALSE | L79: Engineering staff regularly involved in review of floodplain proposals? | AI79: 5.3 | AJ79: TRUE | AL79: =IF(AJ79=TRUE,1,0) -> 1 | AP79: FALSE | CA79: FALSE
B80: S | C80: 5.3 | D80: Regs | E80: context | H80: R | I80: 5.3 | K80: FALSE | L80: Elevation certificates required pre-construction? | AI80: 5.4 | AJ80: TRUE | AL80: =IF(AJ80=TRUE,1,0) -> 1 | AP80: FALSE | CA80: FALSE
B81: S | C81: 5.4 | D81: Regs | E81: context | H81: R | I81: 5.4 | K81: FALSE | L81: Other state and federal permits obtained and checked by FPA office? | AH81: =IF(AJ81=TRUE,"Critical","") -> Critical | AI81: 5.5 | AJ81: TRUE | AL81: =IF(AJ81=TRUE,1,0) -> 1 | AP81: FALSE | CA81: FALSE
L82: (e.g. EPA, USACE 404 Permit, state environmental permits) | AI82: 5.6 Scoring | AJ82: Value
B83: S | C83: 5.5 | D83: Regs | E83: 3.5.7? | H83: R | I83: 5.5 | K83: FALSE | L83: Lowest Floor and utilities checked against BFE (or grade) to ensure proper elevation? | AI83: Natural LAG>BFE | AJ83: TRUE | AL83: ? | AP83: FALSE | CA83: FALSE
B84: NS | C84: 5.6 | D84: Maps | E84: 2.3 (also rel to 4.1.8) | H84: M | I84: 5.6 | L84: When does the community require/initiate Letters of Map Change? (check one only) | AI84: Floodway Impact | AJ84: TRUE | AL84: ? | AP84: FALSE | CA84: FALSE
M85: If natural LAG>BFE, advise LOMA | O85: If floodway impact, CLOMR and LOMR | Q85: If fill used, LOMR-F | S85: If proposal changes BFE/SFHA, require CLOMR and LOMR | U85: Never/ none of these | AI85: Fill used | AJ85: TRUE | AL85: ? | AP85: FALSE | CA85: FALSE
AI86: Prop Change | AJ86: TRUE | AL86: ? | AP86: FALSE | CA86: FALSE
I88: 6 | J88: Substantial Improvement (SI) and Substantial Damage (SD) Administered Consistently | AH88: =IF(AJ88=TRUE,"1","") -> 1 | AI88: Never/NA | AJ88: TRUE | AL88: =IF(AJ88=TRUE,-1,0) -> -1 | AN88: =AL88 -> -1 | AP88: FALSE | CA88: FALSE
J89: Which of these best describe SI/SD administration? (Check either 6.1 & 6.2 or 6.3. or 6.4) | AI89: 6 Scoring | AJ89: Value
AH90: =IF(AJ90=TRUE,"2","") -> 2 | AI90: 6.1 | AJ90: TRUE | AL90: =IF(AND(AJ90=TRUE,AJ91=TRUE),1,0) -> 1 | AP90: FALSE | CA90: FALSE
U91: 6.1 Explain how SI is being properly administered | AH91: 2 | AI91: 6.2 | AJ91: TRUE | AP91: FALSE | CA91: FALSE
B92: S | C92: 6.1 | D92: Process | E92: 4.1.5 | H92: P | I92: 6.1 | K92: FALSE | L92: SI: For all work on existing structures improvement cost is calculated by dividing cost by market value. | AI92: 6.3
B93: S | C93: 6.2 | D93: Process | E93: 4.1.6 | H93: P | I93: 6.2 | K93: FALSE | L93: SD: For repairs of damages cost is calculated by dividing cost by market value. | AI93: Pro Appraisal | AJ93: TRUE | AP93: FALSE | CA93: FALSE
B94: NS | C94: 6.3 | D94: context - unscored in eval tool | H94: X | I94: 6.3 | K94: FALSE | L94: Indicate the market value source that community uses or requires from applicant: | U94: 6.2 Explain how SD is being properly administered | AI94: Tax Asses Value | AJ94: TRUE | AP94: FALSE | CA94: FALSE
M95: Professional Appraisal | O95: Tax Assessed Value (adjusted) | Q95: Actual Cash Value | S95: Other (identify) | AI95: Actual cash | AJ95: TRUE | AP95: FALSE | CA95: FALSE
B96: S | C96: 6.4 | D96: Regs | E96: 3.5.8 | H96: R | I96: 6.4 | K96: FALSE | L96: SI/SD not administered | U96: 6.3 Identify the other market value source | AI96: Other | AJ96: TRUE | AP96: FALSE | CA96: FALSE
AI97: =U92 -> 0
AI98: =U95 -> 0
AI99: =U97 -> 0
I100: 7 | J100: For Communities with Floodway Development, V-Zones, and Coastal A-Zones | AH100: =IF(AJ100=TRUE,"1","") -> 1 | AI100: 6.4 | AJ100: TRUE | AL100: =IF(AJ100=TRUE,-1,0) -> -1 | AN100: =AL100 -> -1 | AP100: FALSE | CA100: FALSE
J101: Which of these apply? (Check as many as apply to the community) | AI101: =U96 -> 6.3 Identify the other market value source
AI102: 7 Scoring
U103: Notes: | AI103: 7.1 | AJ103: TRUE | AL103: =IF(AJ103=TRUE,1,0) -> 1 | AP103: FALSE | AR103: Notes: | CA103: FALSE | CC103: Notes:
B104: S | C104: 7.1 | D104: Process | E104: relates to 3.5.1 | H104: P | I104: 7.1 | K104: FALSE | L104: Floodway administration: Hydrologic and Hydraulic (H&H) Study conducted with no rise determination | AI104: 7.2 | AJ104: TRUE | AL104: =IF(AJ104=TRUE,1,0) -> 1 | AP104: FALSE | CA104: FALSE
B105: S | C105: 7.2 | D105: Process | E105: context - unscored in eval | H105: P | I105: 7.2 | K105: FALSE | L105: Engineering staff review of the H&H Study and supporting documentation materials submitted to the community | AI105: 7.3 | AJ105: TRUE | AL105: =IF(AJ105=TRUE,1,0) -> 1 | AP105: FALSE | CA105: FALSE
B106: S | C106: 7.3 | D106: Process | E106: relates to 3.5.2 | H106: P | I106: 7.3 | K106: FALSE | L106: V and Coastal A Zones: siting and foundation design checked at plan review (indicate specifics) | AI106: Prohibit Fill | AJ106: TRUE | AP106: FALSE | CA106: FALSE
L107: FALSE | M107: Prohibit Fill | O107: Open Foundation (or breakaway walls) | S107: Lowest Horizontal Structural Member (LHSM) above BFE | AI107: Open Foundation | AJ107: TRUE | AP107: FALSE | CA107: FALSE
AI108: LHSM above BFE | AJ108: TRUE | AP108: FALSE | CA108: FALSE
I110: 8 | J110: Inspections
J111: Indicate specifics during the inspection process. | AP111: Check Boxes | AQ111: Fill in Blanks | AR111: Notes | CA111: Check Boxes | CB111: Fill in Blanks | CC111: Notes
AK112: Actions | AL112: Score | AM112: Fast Track To Audit | AN112: Flag | AO112: Off-Ramp | AP112: RESET VALUES | AQ112: RESET VALUES | AR112: RESET VALUES | CA112: RESET VALUES | CB112: RESET VALUES | CC112: RESET VALUES
AI113: 8 Scoring
I114: 8.1 | J114: Indicate for what structures inspections are done (Check one for 8.1: a-c) | U114: Notes: | AI114: 8.1 | AJ114: TRUE | AL114: =IF(AJ114=TRUE,2,0) -> 2 | AP114: FALSE | AR114: Notes: | CA114: FALSE | CC114: Notes:
B115: S | C115: 8.1 | D115: Process | E115: 4.2 - "yes" | H115: P | I115: 8.1a | K115: FALSE | L115: NFIP Inspections done on all structures always by FPA (including contractors) (Evaluation Tool Q4.2) | AI115: 8.2 | AJ115: TRUE | AL115: =IF(AJ115=TRUE,2,0) -> 2 | AP115: FALSE | CA115: FALSE
B116: S | C116: 8.2 | D116: Process | E116: 4.2 - "yes" | H116: P | I116: 8.1b | K116: FALSE | L116: NFIP Inspections done on all structures by other staff who must know and look for NFIP standards | AH116: =IF(AJ116=TRUE,"1","") -> 1 | AI116: 8.3 | AJ116: TRUE | AL116: =IF(AJ116=TRUE,-1,0) -> -1 | AN116: =AL116 -> -1 | AP116: FALSE | CA116: FALSE
B117: S | C117: 8.3 | D117: Process | E117: 4.2 - "sometimes" | H117: P | I117: 8.1c | K117: FALSE | L117: NFIP Inspections only done for new structures (not other development) | AI117: 8.4 | AJ117: TRUE | AL117: =IF(AJ117=TRUE,2,0) -> 2 | AP117: FALSE | CA117: FALSE
I118: 8.2 | J118: Indicate when during the process inspections are done (Check as many as apply: 8.2: a-e) (Evaluation Tool Q4.3) | AH118: =IF(AJ118=TRUE,"2","") -> 2 | AI118: 8.5 | AJ118: TRUE | AL118: =IF(AJ118=TRUE,2,0) -> 2 | AP118: FALSE | CA118: FALSE
B119: S | C119: 8.4 | D119: Process | E119: relates to 4.3 | H119: P | I119: 8.2a | K119: FALSE | L119: NFIP Inspections done at framing or foundation set (e.g. during construction) | AH119: 2 | AI119: 8.6 | AJ119: TRUE | AL119: =IF(AJ119=TRUE,1,0) -> 1 | AP119: FALSE | CA119: FALSE
B120: S | C120: 8.5 | D120: Process | E120: relates to 4.3 | H120: P | I120: 8.2b | K120: FALSE | L120: NFIP Inspections done at finished construction/"As-Built" before Certificate of Owner Occupancy (COO) | AI120: 8.7 | AJ120: TRUE | AL120: 1 | AP120: FALSE | CA120: FALSE
B121: S | C121: 8.6 | D121: Regs | E121: 3.3 "maint but do not use Elevation Certs | H121: R | I121: 8.2c | K121: FALSE | L121: As-built elevations for structures are collected and reviewed (Evaluation Tool Q3.3) | AI121: 8.8 | AJ121: TRUE | AL121: 1 | AP121: FALSE | CA121: FALSE
B122: S | C122: 8.7 | D122: Regs | E122: 3.3 "with Elevation Certs' | H122: R | I122: 8.2d | K122: FALSE | L122: Elevation certificates are collected and reviewed with as-builts (best practice)
B123: S | C123: 8.8 | D123: Process | E123: context | H123: P | I123: 8.2e | K123: FALSE | L123: Floodproofing certifications are collected for non-residential structures.
I126: 9 | J126: Enforcement
J127: Indicate procedures in place or processes followed if any critical issues (Check as many as apply to the community) | AP127: Check Boxes | AQ127: Fill in Blanks | AR127: Notes | CA127: Check Boxes | CB127: Fill in Blanks | CC127: Notes
AK128: Actions | AL128: Score | AM128: Fast Track To Audit | AN128: Flag | AO128: Off-Ramp | AP128: RESET VALUES | AQ128: RESET VALUES | AR128: RESET VALUES | CA128: RESET VALUES | CB128: RESET VALUES | CC128: RESET VALUES
AI129: 9 Scoring
B130: S | C130: 9.1 | D130: Capability | H130: C | I130: 9.1 | K130: FALSE | L130: Stop work orders are issued if any significant problems identified | U130: Notes: | AH130: =IF(AJ130=TRUE,"2","") -> 2 | AI130: 9.1 | AJ130: TRUE | AL130: =IF(AJ130=TRUE,1,0) -> 1 | AP130: FALSE | AR130: Notes: | CA130: FALSE | CC130: Notes:
B131: S | C131: 9.2 | D131: Capability | E131: relates to 1.7 | H131: C | I131: 9.2 | K131: FALSE | L131: FPA has code enforcement (violations) authority | AI131: 9.2 | AJ131: TRUE | AL131: 1 | AP131: FALSE | CA131: FALSE
B132: S | C132: 9.3 | D132: Capability | H132: C | I132: 9.3 | K132: FALSE | L132: Appeals: FPA reviews or is involved | AI132: 9.3 | AJ132: TRUE | AL132: 1 | AP132: FALSE | CA132: FALSE
B133: S | C133: 9.4 | D133: Capability | H133: C | I133: 9.4 | K133: FALSE | L133: Variances: FPA involved in variance request reviews/approvals | AI133: 9.4 | AJ133: TRUE | AL133: 1 | AP133: FALSE | CA133: FALSE
I136: 10 | J136: Recordkeeping
J137: Indicate how NFIP Permitting Records are managed (Check as many as apply to the community) | AP137: Check Boxes | AQ137: Fill in Blanks | AR137: Notes | CA137: Check Boxes | CB137: Fill in Blanks | CC137: Notes
AK138: Actions | AL138: Score | AM138: Fast Track To Audit | AN138: Flag | AO138: Off-Ramp | AP138: RESET VALUES | AQ138: RESET VALUES | AR138: RESET VALUES | CA138: RESET VALUES | CB138: RESET VALUES | CC138: RESET VALUES
AI139: 10 Scoring
B140: S | C140: 10.1 | D140: Process | E140: 4.5 | H140: P | I140: 10.1 | K140: FALSE | L140: Records are maintained in perpetuity, and are readily accessible | U140: Notes: | AH140: =IF(AJ140=TRUE,"2","") -> 2 | AI140: 10.1 | AJ140: TRUE | AL140: =IF(AJ140=TRUE,2,0) -> 2 | AP140: FALSE | AR140: Notes: | CA140: FALSE | CC140: Notes:
B141: S | C141: 10.2 | D141: Process | E141: 4.5 | H141: P | I141: 10.2 | K141: FALSE | L141: Records are not maintained indefinitely (are disposed at some determined interval); or are not accessible | AH141: =IF(AJ141=TRUE,"1","") -> 1 | AI141: 10.2 | AJ141: TRUE | AL141: =IF(AJ141=TRUE,-1,0) -> -1 | AN141: =AL141 -> -1 | AP141: FALSE | CA141: FALSE
B142: S | C142: 10.3 | D142: Capability | E142: unscored | H142: C | I142: 10.3 | K142: FALSE | L142: Hard copy records are maintained | AI142: 10.3 | AJ142: TRUE | AL142: =IF(AJ142=TRUE,1,0) -> 1 | AP142: FALSE | CA142: FALSE
B143: S | C143: 10.4 | D143: Capability | E143: unscored | H143: C | I143: 10.4 | K143: FALSE | L143: Digital copy records are maintained | AI143: 10.4 | AJ143: TRUE | AL143: 1 | AP143: FALSE | CA143: FALSE
B144: S | C144: 10.5 | D144: context - unscored in eval tool | H144: X | I144: 10.5 | K144: FALSE | L144: A permit tracking log is maintained (e.g., Excel) as best practice (required for CRS) | AI144: 10.5 | AJ144: TRUE | AL144: =IF(AJ144=TRUE,2,0) -> 2 | AP144: FALSE | CA144: FALSE
AK145: Actions | AL145: Score | AM145: Fast Track To Audit | AN145: Flag | AO145: Off-Ramp | AP145: RESET VALUES | CA145: RESET VALUES
I147: 11 | J147: Additional Processes | AI147: 11 Scoring
J148: Indicate other floodplain development projects that may be relevant and may require review (Check as many as apply to the community) | AH148: =IF(AJ148=TRUE,"1","") -> 1 | AI148: 11.1 | AJ148: TRUE | AL148: =IF(AJ148=TRUE,-1,0) -> -1 | AN148: =AL148 -> -1 | AP148: FALSE | CA148: FALSE
AI149: 11.2 | AJ149: TRUE | AP149: FALSE | CA149: FALSE
AI150: 11.3 | AJ150: TRUE | AP150: FALSE | CA150: FALSE
B151: S | C151: 11.1 | D151: Process | E151: relates to 4.1.8 | H151: P | I151: 11.1 | K151: FALSE | L151: Watercourse alterations that change the BFE and/or location of SFHA | AI151: 11.4 | AJ151: TRUE | AP151: FALSE | CA151: FALSE
B152: NS | C152: 11.2 | D152: context - unscored in eval tool | H152: X | I152: 11.2 | K152: FALSE | L152: Recent construction of capitial improvement (e.g., roads and bridges, etc.) from last five (5) years or since last open audit. | U152: 11.1 Describe any/all of these additional processes to a level of detail that confirms NFIP Standards | AI152: 11.5 | AJ152: TRUE | AP152: FALSE | CA152: FALSE
B153: NS | C153: 11.3 | D153: context - unscored in eval tool | H153: X | I153: 11.3 | K153: FALSE | L153: Recent construction of larger projects from last five (5) years or since last open audit. | AI153: =M156 -> Fill/Grading | AJ153: TRUE | AP153: FALSE | CA153: FALSE
B154: NS | C154: 11.4 | D154: context - unscored in eval tool | H154: X | I154: 11.4 | K154: FALSE | L154: Recent construction of critical facilities from last five (5) years or since last open audit. | AI154: =O156 -> Storage of Equipment/Materials | AJ154: TRUE | AP154: FALSE | CA154: FALSE
B155: NS | C155: 11.5 | D155: Process | E155: relates to 4.1.13 | H155: P | I155: 11.5 | K155: FALSE | L155: Non-structural development - items not typically covered by building permit, Identify: | AI155: =S156 -> Paving | AJ155: FALSE | AP155: FALSE | CA155: FALSE
M156: Fill/Grading | O156: Storage of Equipment/Materials | S156: Paving | AI156: =M157 -> Other 1 | AJ156: TRUE | AP156: FALSE | CA156: FALSE
M157: Other 1 | O157: Other 2 | Q157: Other 3 | S157: Other 4 | AI157: =O157 -> Other 2 | AJ157: TRUE | AP157: FALSE | CA157: FALSE
B158: NS | C158: 11.6 | D158: Process | H158: P | I158: 11.6 | K158: FALSE | L158: None - There are no other relevant processes | AI158: =Q157 -> Other 3 | AJ158: TRUE | AP158: FALSE | CA158: FALSE
AI159: =S157 -> Other 4 | AJ159: FALSE | AP159: FALSE | CA159: FALSE
AI160: 11.6 | AJ160: TRUE
G161: Diagnostic Tool | AI161: Comment | AJ161: =IF(OR(AJ148,AJ149,AJ150,AJ151,AJ152),"TRUE","") -> TRUE | AK161: This allows the comment box to appear if any of 11.1-11.5 are selected
I162: Community Contact - V4.0
U165: Enhanced Community Contact Review
I166: Instructions: This section goes into more detail with the expanded community contact questions. | U166: Are all Critical Processes In place? | W166: =IF(AC174=8,"YES", "NO") -> NO | X166: None Identified
I167: These questions build upon and ask greater detail than the process overview and may be done at another time. | U167: Which Critical Processes are lacking: | W167: =IFERROR(_xlfn.TEXTJOIN(" ",TRUE,_xlfn.ANCHORARRAY(AB176))," None") -> None
I168: An overall permit process review and expanded community contact will be provided in the table to the right | U168: Critical Process Evaluation Score | W168: =SUM(AC174/AC175) -> 
I169: and summarized with the permit process review at the top of this page. | U169: Red Flags: | V169: =IFERROR(_xlfn.TEXTJOIN(" ",TRUE,AE174:AE205),"None") -> 
U170: Overall Community Contact Score | W170: =SUM(AL301:AL303,AL247:AL250,AL183:AL187,AL191:AL201,AL205:AL216,AL218:AL222,AL224:AL228,AL236:AL241,AL177:AL178,AL255:AL264,AL268:AL273,AL275:AL294) -> 34 | X170: Max Possible Score (41)
U171: Overall Community Contact Score % | W171: =W170/41 -> 83%
I173: 12 | J173: Permitting Process | AI173: =U153 -> 0 | AP173: Check Boxes | AQ173: Fill in Blanks | AR173: Notes | CA173: Check Boxes | CB173: Fill in Blanks | CC173: Notes
J174: Expanded Questions - Please Answer All Questions | AK174: Actions | AL174: Score | AM174: Fast Track To Audit | AN174: Flag | AO174: Off-Ramp | AP174: RESET VALUES | AQ174: RESET VALUES | AR174: RESET VALUES | CA174: RESET VALUES | CB174: RESET VALUES | CC174: RESET VALUES
AI175: 12 Scoring
AI176: 12.1 | AJ176: FALSE | AP176: FALSE | CA176: FALSE
B177: NS | C177: 12.1 | D177: Capability | E177: relates to 1.5, 1.6 | H177: C | I177: 12.1 | K177: FALSE | L177: How does the community (directly or indirectly) describe the support from the CEO and officials | U177: 12.1 Please describe the lack of support | AI177: Well | AJ177: TRUE | AL177: =IF(AJ177=TRUE,4,"") -> 4 | AP177: FALSE | CA177: FALSE
L178: to enforce its ordinances? (Evaluation Tool Q1.8) | AI178: Not Well | AJ178: TRUE | AL178: =IF(AJ178=TRUE,0,"") -> 0 | AP178: FALSE | CA178: FALSE
M179: Well-Supported | O179: Not Well-Supported | AI179: =U178 -> 0
AI180: 12.2 Yes | AJ180: TRUE | AL180: =IF(AJ180=TRUE,4,2) -> 4 | AP180: FALSE | CA180: FALSE
AI181: 12.2 No | AJ181: TRUE | AP181: FALSE | CA181: FALSE
B183: NS | C183: 12.2 | D183: Capability | E183: 1.3.3 | H183: C | I183: 12.2 | K183: FALSE | L183: Does the community use historic FIRM and FIS for permitting to verify the structure was built in compliance at the time of new construction? | AI183: 13.1 Scoring | AJ183: Value
M184: YES | O184: NO
AI185: None | AJ185: FALSE | AL185: =IF(AJ185=TRUE,4,"") ->  | AP185: FALSE | CA185: FALSE
I186: 13 | J186: Ordinance Review Process | AI186: Minor | AJ186: FALSE | AL186: =IF(AJ186=TRUE,2,"") ->  | AP186: FALSE | CA186: FALSE
J187: Expanded Questions - Please Answer All Questions | AH187: =IF(AJ187=TRUE,"1","") -> 1 | AI187: Significant | AJ187: TRUE | AL187: =IF(AJ187=TRUE,-1,"") -> -1 | AN187: =AL187 -> -1 | AP187: FALSE | CA187: FALSE
AI188: =U191 -> 0
AI189: 13.2-Yes | AJ189: TRUE | AP189: FALSE | CA189: FALSE
B190: NS | C190: 13.1 | D190: Regs | E190: 3.4 | H190: R | I190: 13.1 | K190: FALSE | L190: An ordinance review was completed and can best be summarized by (select one): (Evaluation Tool Q3.4) | U190: 13.1 Summarize the ordinance review findings (detailed findings are in Auditor’s review checklist) | AI190: 13.2-No | AJ190: TRUE | AP190: FALSE | CA190: FALSE
M191: No missing or conflicting language was identified across the regulations | AI191: 13.2-Adopt | AJ191: TRUE | AL191: =IF(AJ191=TRUE,1,"") -> 1 | AP191: FALSE | CA191: FALSE
M192: Minor errors (e.g., typos); if joining into NFIP today, these errors would not prevent entry into NFIP | AI192: 13.2-Not adopt | AJ192: TRUE | AL192: =IF(AJ192=TRUE,-1,"") -> -1 | AN192: =AL192 -> -1 | AP192: FALSE | CA192: FALSE
M193: Significant errors/section missing (e.g., subdivisions, V zone certs, RV standards) - would prevent NFIP entry | AI193: 13.3-Yes | AJ193: TRUE | AK193: Provide CY | AL193: =IF(AJ193=TRUE,1,"") -> 1 | AP193: FALSE | CA193: FALSE
B194: NS | C194: 13.2 | D194: Regs | E194: relates to 3.8 | H194: R | I194: 13.2 | K194: FALSE | L194: Does the state require higher standards (for ordinances) than FEMA? | AI194: 13.3-No | AJ194: TRUE | AP194: FALSE | CA194: FALSE
M195: YES | O195: NO | U195: Notes: | AI195: 13.4-Yes | AJ195: TRUE | AL195: =IF(AJ195=TRUE,1,"") -> 1 | AP195: FALSE | AR195: Notes: | CA195: FALSE | CC195: Notes:
I196: 13.2.1 | L196: Has the community adopted these higher standards? (Automatically updates from Self-Assessment Q 2.7) | AI196: 13.4-No | AJ196: TRUE | AP196: FALSE | CA196: FALSE
M197: YES | O197: NO | AI197: 13.5-Yes | AJ197: TRUE | AL197: =IF(AJ197=TRUE,1,"") -> 1 | AP197: FALSE | CA197: FALSE
B198: NS | C198: 13.3 | D198: context - unscored in eval tool | H198: X | I198: 13.3 | K198: FALSE | L198: Are the local ordinances based on the most recent state model language? | AI198: 13.5-No | AJ198: TRUE | AP198: FALSE | CA198: FALSE
M199: YES | O199: NO | U199: 13.4 Describe how these regulations are related/interrelated | AI199: FIRM | AJ199: =U203 -> 00:00:00
B200: NS | C200: 13.4 | D200: Regs | E200: relates to 3.8 | H200: R | I200: 13.4 | K200: FALSE | L200: Are other regulations in the community coordinated with the floodplain ordinance(s)? | AI200: Regs | AJ200: =U205 -> 00:00:00
M201: YES | O201: NO | AI201: Difference | AJ201: =U205-U203 -> 0
B202: NS | C202: 13.5 | D202: Maps | E202: 2.2 | H202: M | I202: 13.5 | K202: FALSE | L202: Are the most recent FIRMs / FIS cited in the ordinance? (Evaluation Tool 2.2) | U202: 13.5 Date of most recent FIRMs (auto populates from Self Assessment Q 3.1) | AI202: 13.6-Yes | AJ202: TRUE | AP202: FALSE | CA202: FALSE
M203: YES | O203: NO | U203: ='Self Assessment'!N59 -> 00:00:00 | AI203: 13.6-No | AJ203: TRUE | AK203: Actions | AL203: Score | AM203: Fast Track To Audit | AN203: Flag | AO203: Off-Ramp | AP203: FALSE | CA203: FALSE
H204: R | I204: 13.6 | L204: Does your state exempt certain classes of development from NFIP Regulations? | U204: 13.5 Date of current ordinance(s) | AH204: =_xlfn._xlws.FILTER(AI205:AI216,AK205:AK216=1) ->  | AI204: 14.1 Scoring | AJ204: Value | AK204: =SUM(AK205:AK216) -> 0 | AO204: =_xlfn.IFS(AK204<=3,"Low Complexity Community",AK204<=6,"Medium Complexity Community",AK204>=7,"High Complexity Community") -> Low Complexity Community
M205: YES | O205: NO | AI205: A, | AJ205: FALSE | AK205: =IF(AJ205=TRUE,1,"") ->  | AO205: =IF(AND(AJ205=TRUE,AJ206=FALSE,AJ207=FALSE,AJ208=FALSE,AJ209=FALSE,AJ210=FALSE,AJ211=FALSE,AJ212=FALSE,AJ213=FALSE,AJ214=FALSE,AJ215=FALSE),1,"") ->  | AP205: FALSE | CA205: FALSE
AI206: AE, | AJ206: FALSE | AK206: =IF(AJ206=TRUE,1,"") ->  | AP206: FALSE | CA206: FALSE
I207: 14 | J207: Special Flood Hazard Area (SFHA) Zones | AI207: AO, | AJ207: FALSE | AP207: FALSE | CA207: FALSE
J208: Community Summary - Issues - Please Answer All Questions | AI208: AH, | AJ208: FALSE | AP208: FALSE | CA208: FALSE
AI209: AE Flood, | AJ209: FALSE | AP209: FALSE | CA209: FALSE
AI210: V, | AJ210: FALSE | AP210: FALSE | CA210: FALSE
B211: NS | C211: 14.1 | D211: context - unscored in Eval Tool | H211: X | I211: 14.1 | K211: FALSE | L211: Indicate all of the flood zones within the community’s boundary or jurisdiction: | U211: Notes: | AI211: VE, | AJ211: FALSE | AP211: FALSE | AR211: Notes: | CA211: FALSE | CC211: Notes:
M212: A | O212: AE | Q212: AO | S212: AH | AI212: D, | AJ212: FALSE | AP212: FALSE | CA212: FALSE
M213: AE-Floodway | O213: V | Q213: VE | S213: D | AI213: A99, | AJ213: FALSE | AP213: FALSE | CA213: FALSE
M214: A99 | O214: X-Shaded | Q214: X | S214: AR | AI214: X-Shaded, | AJ214: FALSE | AP214: FALSE | CA214: FALSE
B215: NS | C215: 14.2 | D215: context - unscored in Eval Tool | H215: X | I215: 14.2 | K215: FALSE | L215: Indicate the approximate percentage of recent development (e.g., relative building pressure in last five years) in the SFHA (Select one) | AI215: X, | AJ215: FALSE | AO215: =IF(AND(AJ205=FALSE,AJ206=FALSE,AJ207=FALSE,AJ208=FALSE,AJ209=FALSE,AJ210=FALSE,AJ211=FALSE,AJ212=FALSE,AJ213=FALSE,AJ214=FALSE,AJ215=TRUE),1,"") ->  | AP215: FALSE | CA215: FALSE
M216: 0-20% | O216: 21-40% | Q216: 41-60% | AI216: AR, | AJ216: FALSE | AP216: FALSE | CA216: FALSE
M217: 61-80% | O217: 81-100% | AI217: 14.2 Scoring | AJ217: Value
B218: NS | C218: 14.3 | D218: context - unscored in Eval Tool | H218: R | I218: 14.3 | K218: FALSE | L218: Indicate the approximate number of permits granted for development in the SFHA in last three years (select one) | AI218: 0-20 | AJ218: FALSE | AP218: FALSE | CA218: FALSE
M219: 0 | O219: 1-99 | Q219: 100-499 | S219: (Evaluation Tool Q3.2) | AI219: 21-40 | AJ219: FALSE | AP219: FALSE | CA219: FALSE
M220: 500-999 | O220: 1000 or more | Q220: An exact count from the permit log is available | AI220: 41-60 | AJ220: FALSE | AP220: FALSE | CA220: FALSE
... 94 more rows

Sheet Diagnostic Assessment ReportOLD (hidden)
B2: Diagnostic Assessment Report | F2: PRE-DECISIONAL DRAFT | I2: National Flood Insurance Program (NFIP)
B3: Audit Determination Decision Tool
C4: This report provides a summary of information from the Diagnostic Assessment to assist the auditor in deciding the path forward for audit determination. This summary is meant as a guide and to provide the means to document the decision. This report can be saved as a PDF or Printed
B6: Community: | F6: ='Administrative Info'!F6 -> <enter community name here> | J6: Agency Conducting Audit: | M6: ='Administrative Info'!F21 -> <enter name of agency>
B7: County: | F7: ='Administrative Info'!F7 -> <enter county here> | J7: Audit Conducted By: | M7: ='Administrative Info'!F22 -> <enter name of auditor and title>
B8: State: | F8: ='Administrative Info'!F11 -> <enter 2-letter state ID here> | J8: Audit Reviewed By: | M8: ='Administrative Info'!F25 -> <enter audit reviewer name>
B9: CID: | F9: ='Administrative Info'!F12 -> <enter 6-digit CID here> | J9: Audit Auditor Phone: | M9: ='Administrative Info'!F23 -> <enter auditor phone>
B10: Date: | F10: ='Self Assessment'!N11 -> Phone | J10: Audit Auditor Email: | M10: ='Administrative Info'!F24 -> <enter auditor email address>
B11: Floodplain Administrator (FPA) Name: | F11: ='Administrative Info'!F13 -> <Enter FPA Name Here> | J11: Audit Reviewer Phone: | M11: ='Administrative Info'!F26 -> <enter audit reviewer phone number>
B12: FPA Phone Number: | F12: ='Administrative Info'!F14 -> <enter FPA phone number> | J12: Audit Reviewer Email: | M12: ='Administrative Info'!F27 -> <enter audit reviewer email address>
B13: FPA Email: | F13: ='Administrative Info'!F15 -> <enter FPA email address> | J13: Date of this Report:
B14: Date Audit Next Needed: | F14: ='Administrative Info'!#REF! ->  | J14: Date Community Contact:
B17: Auditor Determination
B18: Summary of Auditor's Determination for Current Audit Process
J19: 1. Details/explanation behind compliance determination | T19: Compliance Determination
C20: 1. Diagnostic Outcome (Select One): | T20: Continue | U20: TRUE
D21: Compliance Determined at Community Contact (Off-Ramp) | T21: Off-Ramp | U21: TRUE
D22: Compliance Determined at Enhanced Community Contact (Off-Ramp) | T22: Other | U22: TRUE
D23: Full Evaluation Needed
D24: Other | T24: Process Continuation
T25: Community Contact | U25: FALSE
C26: 2. If Full Evaluation Needed (Select all that apply): | J26: 2. Details/explanation behind full evaluation determination | T26: Enhanced Community Contact | U26: FALSE
D27: Diagnostic assessment scores indicated need for full evaluation | T27: Full Evaluation | U27: TRUE
D28: Significant Red Flag issues identified during the Assessment
D29: Site Specifically requested a full evaluation | T29: Full Evaluation
D30: Post Disaster Substantial Damage | T30: Diagnostic | U30: FALSE
D31: Reason 5 | E31: Input Requested: Potential reasons why a full evaluation might be needed. Add details to comment box to right | T31: Red Flag | U31: FALSE
D32: Reason 6 | T32: Request | U32: FALSE
T33: Reason 4 | U33: FALSE
C34: 3. Audit Follow up and Assistance Needed? | J34: 3. Details/explanation about additional assistance required | T34: Reason 5 | U34: FALSE
D35: Yes | T35: Reason 6 | U35: FALSE
D36: No | T36: F/U Yes | U36: FALSE
T37: F/U No | U37: TRUE
B39: Summary Findings
B40: Critical Process that are lacking and Red Flags that are present will automatically populate into this section (Blank means no critical processes or red flags)
B42: Critical Processes Lacking: | I42: Red Flags Present: | T42: Critical Process Summary | AF42: Red Flag Summary
C43: =IFERROR(IF(T58=0,"",T58),"") -> Q2.1 Permitting using single/comprehensive Floodplain Development Permit for ALL development types | J43: =IFERROR(IF(AF54=0,"",AF54),"") -> Q1.4 Community does not have a permitting process | T43: 2.1 | U43: =IF('Diagnostic Assessment OLD'!AC6,0,1) -> 1 | V43: Q2.1 Permitting using single/comprehensive Floodplain Development Permit for ALL development types | AF43: 1.4 | AG43: =IF('Diagnostic Assessment OLD'!AJ38,1,0) -> 1 | AH43: Q1.4 Community does not have a permitting process
C44: =IF(T59=0,"",T59) ->  | J44: =IF(AF55=0,"",AF55) -> Q3.4 The community does not use digital or paper FIRMs or FIS or does not determine flood zone or regulatory flood height. | T44: 2.2 | U44: 0 | V44: Q2.2 Separate Building Permit form used for new and existing structures | AF44: 2.4 | AG44: =IF('Diagnostic Assessment OLD'!AJ47,1,0) -> 0 | AH44: Q2.4 Community does not permit/review all types of development
J45: =IF(AF56=0,"",AF56) -> Q5.6 The community does not require or initiate Letters of Map Change | T45: 2.3 | U45: 0 | V45: Q2.3 Separate Non-Structural development (Fill/Grade, Environmental) permit form | AF45: 3.4 | AG45: =IF('Diagnostic Assessment OLD'!AJ60,1,0) -> 1 | AH45: Q3.4 The community does not use digital or paper FIRMs or FIS or does not determine flood zone or regulatory flood height.
J46: Q6.4 SI/SD not administered | T46: 4.1 | U46: =IF('Diagnostic Assessment OLD'!AJ68,0,1) -> 0 | V46: Q4.1 BFE Determined by FPA office and provided to applicant at permit initiation | AF46: 5.6 | AG46: =IF('Diagnostic Assessment OLD'!AJ88,1,0) -> 1 | AH46: Q5.6 The community does not require or initiate Letters of Map Change
J47: Q8.3 NFIP Inspections only done for new structures (not other development) | T47: 4.2 | U47: =IF(U46=0,0,IF('Diagnostic Assessment OLD'!AJ69,0,1)) -> 0 | V47: Q4.2 BFE Generated by applicant/surveyor, verified before permit issued | AF47: 6.4 | AG47: =IF('Diagnostic Assessment OLD'!AJ100,1,0) -> 1 | AH47: Q6.4 SI/SD not administered
J48: Q10.2 Records are not maintained indefinitely (are disposed at some determined interval); or are not accessible | T48: 5.5 | U48: =IF('Diagnostic Assessment OLD'!AJ81,0,1) -> 0 | V48: Q5.5 Lowest Floor and utilities checked against BFE (or grade) to ensure proper elevation | AF48: 8.3 | AG48: =IF('Diagnostic Assessment OLD'!AJ116,1,0) -> 1 | AH48: Q8.3 NFIP Inspections only done for new structures (not other development)
J49: Q11.1 Recent floodplain development projects include watercourse alterations that change the BFE and/or location of SFHA | T49: 6.1 | U49: =IF('Diagnostic Assessment OLD'!AJ90,0,1) -> 0 | V49: Q6.1 S.Improvement: For all work on existing structures, improvement cost is collected/checked against market value | AF49: 10.2 | AG49: =IF('Diagnostic Assessment OLD'!AJ141,1,0) -> 1 | AH49: Q10.2 Records are not maintained indefinitely (are disposed at some determined interval); or are not accessible
J50: Q13.1 An Ordinance review was completed and there were significant errors/sections mission (e.g., subdivisions, V zone Certs, RV standards) that would prevent entry into NFIP. | T50: 6.2 | U50: =IF('Diagnostic Assessment OLD'!AJ91,0,1) -> 0 | V50: Q6.2 S.Damage: For repairs of damages, cost is collected/checked against market value | AF50: 11.1 | AG50: =IF('Diagnostic Assessment OLD'!AJ148,1,0) -> 1 | AH50: Q11.1 Recent floodplain development projects include watercourse alterations that change the BFE and/or location of SFHA
J51: Q13.6 State exempts certain classes of development from NFIP Regulations | T51: 8.5 | U51: =IF('Diagnostic Assessment OLD'!AJ118,0,1) -> 0 | V51: Q8.5 NFIP Inspections done at Finished Construction/"As-Built" before Certificate of Owner Occupancy (COO) | AF51: 13.1 | AG51: =IF('Diagnostic Assessment OLD'!AJ187,1,0) -> 1 | AH51: Q13.1 An Ordinance review was completed and there were significant errors/sections mission (e.g., subdivisions, V zone Certs, RV standards) that would prevent entry into NFIP.
T52: 8.6 | U52: =IF('Diagnostic Assessment OLD'!AJ119,0,1) -> 0 | V52: Q8.6 As-built elevations for structures are collected and reviewed (Scorecard Q3.3) | AF52: 13.6 | AG52: =IF('Diagnostic Assessment OLD'!AJ202,1,0) -> 1 | AH52: Q13.6 State exempts certain classes of development from NFIP Regulations
J53: =IF(AF64=0,"",AF64) ->  | T53: 9.1 | U53: =IF('Diagnostic Assessment OLD'!AJ130,0,1) -> 0 | V53: Q9.1 Stop Work orders are issued if any significant problems identified | AF53: 15.1 | AG53: =IF(AND('Self Assessment'!W64,'Diagnostic Assessment OLD'!AJ258),1,0) -> 0 | AH53: Q15.1 There has been a change to the community’s territorial or extraterritorial boundaries that effected the designated flood hazard areas and the corrected flood maps were not adopted.
T54: 10.1 | U54: =IF('Diagnostic Assessment OLD'!AJ140,0,1) -> 0 | V54: Q10.1 Records are maintained in perpetuity, and are readily accessible | AF54: =_xlfn._xlws.FILTER(AH43:AH53,AG43:AG53=1) -> Q1.4 Community does not have a permitting process
AF55: Q3.4 The community does not use digital or paper FIRMs or FIS or does not determine flood zone or regulatory flood height.
AF56: Q5.6 The community does not require or initiate Letters of Map Change
AF57: Q6.4 SI/SD not administered
T58: =_xlfn._xlws.FILTER(V43:V54,U43:U54=1) -> Q2.1 Permitting using single/comprehensive Floodplain Development Permit for ALL development types | AF58: Q8.3 NFIP Inspections only done for new structures (not other development)
B59: Graphics Summary: | AF59: Q10.2 Records are not maintained indefinitely (are disposed at some determined interval); or are not accessible
B60: Graphics that summarize the findings and compare these to baseline values are presented in a table and two different graphics. The same data is used for all visuals | AF60: Q11.1 Recent floodplain development projects include watercourse alterations that change the BFE and/or location of SFHA
F61: Compliance Baseline | H61: Community Score | AF61: Q13.1 An Ordinance review was completed and there were significant errors/sections mission (e.g., subdivisions, V zone Certs, RV standards) that would prevent entry into NFIP.
C62: Score Summary: | H62: Community Score | AF62: Q13.6 State exempts certain classes of development from NFIP Regulations
C63: Critical Process | F63: ='Diagnostic Assessment OLD'!CK7 -> 60% | H63: ='Diagnostic Assessment OLD'!CJ7 -> 89% | K63: Overall Diagnostic Assessment Summary Score | O63: ='Diagnostic Assessment OLD'!AK11 -> 52%
C64: Red Flags | F64: ='Diagnostic Assessment OLD'!CK8 -> 80% | H64: ='Diagnostic Assessment OLD'!CJ8 -> 10%
C65: Permit Review Score | F65: ='Diagnostic Assessment OLD'!CK9 -> 70% | H65: ='Diagnostic Assessment OLD'!CJ9 -> 84%
C66: Ordinance Health | F66: ='Diagnostic Assessment OLD'!CK10 -> 55% | H66: ='Diagnostic Assessment OLD'!CJ10 -> 0%
U207: FALSE
U237: FALSE

Sheet Diagnostic Assessment NEW
E1: Diagnostic Assessment V2 (NEW)- | G1: Reference (CFR) | M1: Your Response (Auditor Data Entry) | N1: Score (Hidden) | O1: Findings and notes (Auditor Data Entry) | P1: Raw Score | Q1: Weighted Score | R1: Assigned Weight | S1: Max Possible Weighted Score | T1: Severity | U1: Severity Score (Hidden) | V1: Critical Element? | W1: Area of Concern (AOC)? | X1: Complete? | Y1: Recommendation(s) (Auditor Data Entry) | Z1: Estimated Close Out Date (Auditor Data Entry)
E2: PRE-DECISIONAL DRAFT
D3: # | E3: Required to complete diagnostic? | F3: Diagnostic Assessment Question
B4: Cross Ref to Diagnostic V1 | D4: Community Contact Questions (Sections 1-4) | G4: The intent is to provide the closest reference; may be a placeholder for later | H4: Response Options (Hidden) | I4: Response Options (Hidden) | J4: Response Options (Hidden) | K4: Response Options (Hidden) | L4: Response Options (Hidden) | N4: This is the value from the selected response. This column will be hidden. | P4: This may be the same as Column O, may reveal it for transparency or may not include | R4: . | T4: The severity indicated by the response (not really sure??) | U4: Score associated with the severity (5 to -2, higher number is more severe | V4: Is this a critical program element (CPE) and should be implemented? (Green cells are CPE if scored 1). | X4: This is the section that determines if the question has been answered or not to identify in the "Section Status" on the Diagnostic Assessment Report
D5: 1. FPA Capability, Capacity and Institutional Support: (Does the official responsible for regulating/enforcing the NFIP have the required expertise, knowledge, technical capabilities and institutional support?)
D6: 1 | E6: Yes | F6: 1.1 Since the last audit (CAV or CAC), has there been any development in the SFHA or is any currently planned? | H6: Yes (0) | I6: No (2) | M6: No (0) | Q6: =IFERROR(P6*R6,"") -> 0 | R6: 1 | S6: =IFERROR(RIGHT(LEFT(H6,LEN(H6)-1)),"")*R6 -> 0 | W6: =IF(N6="0", 1,"") -> 
B7: 1.1, 1.2, 1.3, 1.4 ET-4.8 | D7: 1 | E7: Yes | F7: 1.2 How does the community accomplish permit development? (Select the response that best fits the community's situation or current practices). | H7: The community permitting process is through the FPA's department or office (3) | I7: The community permitting process is through a single department other than the FPA's department or office (3) | J7: The community permitting process is through multiple departments or offices (2) | K7: The community contracts out the permitting process (1) | L7: The community does not have a permitting process for all development (explain in findings and notes) (0) | N7: =IFERROR(RIGHT(LEFT(M7,LEN(M7)-1)),"") ->  | P7: =N7 ->  | Q7: =IFERROR(P7*R7,"") ->  | R7: 1 | S7: =IFERROR(RIGHT(LEFT(H7,LEN(H7)-1)),"")*R7 -> 3 | U7: =IFERROR(RIGHT(LEFT(T7,LEN(T7)-1)),"") ->  | W7: =IF(N7="0", 1,"") ->  | X7: =IF(AND(E7="yes",OR(N7="0",N7="1",N7="2",N7="3",N7="4")),1,0) -> 0
B8: 1.2 | D8: 2 | E8: =IFERROR(IF(N7="2","Yes"," "),"") ->  | F8: 1.2a If the community permitting process is through multiple departments or offices, list the departments/offices in the space shaded gold to the right. | N8: =ISBLANK(M8) -> TRUE | U8: =IFERROR(RIGHT(LEFT(T8,LEN(T8)-1)),"") ->  | X8: =IF(OR(E8<>"Yes",AND(E8="yes",N8=FALSE)),1,0) -> 1
B9: 1.3 | D9: 3 | E9: =IFERROR(IF(N7="1","Yes"," "),"") ->  | F9: 1.2.b If the community contracts out the permitting process, describe your contractor selection criteria. | H9: Contract is through the county (2) | I9: Contract is through the state (1) | J9: Contract is through a private entity (1) | K9: Contract is done through other means (explain in findings and notes) (0) | N9: =IFERROR(RIGHT(LEFT(M9,LEN(M9)-1)),"") ->  | P9: =N9 ->  | Q9: =IFERROR(P9*R9,"") ->  | R9: 0 | S9: =IFERROR(RIGHT(LEFT(H9,LEN(H9)-1)),"")*R9 -> 0 | X9: =IF(OR(E9<>"Yes",AND(E9="yes",OR(N9="0",N9="1",N9="2",N9="3",N9="4"))),1,0) -> 1
B10: 1.2 | D10: 4 | E10: Yes | F10: 1.3 How does the community coordinate permit development? If coordination is through a single department select "Full Coordination". | H10: Full coordination across all other departments (4) | I10: Coordination across some but not all departments (2) | J10: No coordination across departments (0) | P10: =N10 ->  | Q10: =IFERROR(P10*R10,"") ->  | R10: 0.5 | S10: 2 | X10: =IF(AND(E10="yes",OR(N10="0",N10="1",N10="2",N10="3",N10="4")),1,0) -> 0
B11: 1.2a | D11: 5 | E11: =IFERROR(IF(OR(N10="4", N10="2"),"Yes",""),"") ->  | F11: 1.3a If the coordination is across departments, or via contract, does the FPA receive notice of floodplain permit changes by other departments and reviews them for compliance? | H11: Yes (4) | I11: No (0) | Q11: =IFERROR(P11*R11,"") ->  | R11: 0.5 | S11: 2 | X11: =IF(OR(E11<>"Yes",AND(E11="yes",OR(N11="0",N11="1",N11="2",N11="3",N11="4"))),1,0) -> 1
B12: ET-1.7 | D12: 6 | E12: Yes | F12: 1.4 Is the FPM program's position in the organization appropriate to ensure effectiveness in carrying out its duties? | H12: Yes (4) | I12: No (explain in findings and notes) (0) | Q12: =IFERROR(P12*R12,"") ->  | R12: 1 | S12: 4 | W12: =IF(N12="0",1,"") ->  | X12: 0
B13: 9.1 | D13: 7 | E13: Yes | F13: 1.5 With regard to enforcement, are stop work orders issued if any significant problems are identified? | H13: Yes (4) | I13: No (0) | Q13: =IFERROR(P13*R13,"") ->  | R13: 1.5 | S13: 6 | V13: =IF(N13="4",1,"") ->  | X13: 0
B14: 9.2 | D14: 8 | E14: Yes | F14: 1.6 With regard to enforcement, does the community have and use code enforcement authority? | H14: Yes (4) | I14: No (0) | R14: 1 | S14: 4 | V14: =IF(N14="4",1,"") ->  | X14: 0
B15: 9.3 | D15: 9 | E15: Yes | F15: 1.7 With regard to enforcement, does the FPA review or is otherwise involved in appeals? | H15: Yes (4) | I15: No (0) | R15: 0.5 | S15: 2 | X15: 0
B16: 9.4 | D16: 10 | E16: Yes | F16: 1.8 With regard to enforcement, does the FPA review variance request reviews or approvals? | H16: Yes (4) | I16: No (0) | R16: 0.5 | S16: 2 | X16: 0
B17: 14.4 | D17: 11 | E17: Yes | F17: 1.9 Have there been any variances from local floodplain management ordinances in the SFHA for new and substantial improvement to structures since the last CAV? (Evaluation Tool Q3.7) | H17: No (3) | I17: Yes, fewer than five (1) | J17: Yes, five or more (0) | R17: 0.5 | S17: 1.5 | X17: 0
B18: 14.4.1 | D18: 12 | E18: =IFERROR(IF(OR(N17="1", N17="0"),"Yes",""),"") ->  | F18: 1.9a If yes to Q 1.8, were the variances issued in complance with 44CFR 60.6? (e.g., Historic Structures, Agricultural Structures, Accessory Structures, other). Please list details in the space shaded gold to the right. (Evaluation Tool Q3.8) | N18: =ISBLANK(M18) -> TRUE | X18: =IF(OR(E18<>"Yes",AND(E18="yes",N18=FALSE)),1,0) -> 1
B19: 14.4.1 | D19: 13 | E19: =IFERROR(IF(OR(N17="1", N17="0"),"Yes",""),"") ->  | F19: 1.9b If yes to Q 1.8, if there were variances, indicate the type and approximate number of variances from local floodplain management criteria in the SFHA in the space shaded gold to the right. | N19: =ISBLANK(M19) -> TRUE | X19: =IF(OR(E19<>"Yes",AND(E19="yes",N19=FALSE)),1,0) -> 1
B20: 10.1, 10.2, 10.3, 10.4, 10.5 | D20: 14 | E20: Yes | F20: 1.10 How does the community maintain records of floodplain development (Select the response that best fits the community's situation or current practices). | H20: Digital and or paper records are maintained in perpetuity, are readily accessible, and identified in permit tracking log (4) | I20: Digital and or paper records are maintained and are readily accessible (3) | J20: Digital or paper records are maintained (2) | K20: Some digital or paper records are maintained (but not all) (1) | L20: Records are not maintained indefinitely (are disposed at some determined interval); or are not accessible (0) | N20: =IFERROR(RIGHT(LEFT(M20,LEN(M20)-1)),"") ->  | Q20: =IFERROR(P20*R20,"") ->  | R20: 2 | S20: 8 | V20: =IF(N20="4",1,"") ->  | W20: =IF(N20="0",1,"") ->  | X20: 0
B21: 12.1 | D21: 15 | E21: Yes | F21: 1.11 How does the community describe the support (direct and indirect) from the CEO and officials to enforce its ordinances? (Evaluation Tool Q1.8) | H21: Well supported (4) | I21: Not well supported (explain in findings and notes) (0) | N21: =IFERROR(RIGHT(LEFT(M21,LEN(M21)-1)),"") ->  | R21: 0 | S21: 0 | X21: 0
B22: 12.2 | D22: 16 | E22: Yes | F22: 1.12 Where applicable, does the community use historic FIRM and FIS for permitting to verify the structure was built in compliance at the time of new construction? | H22: Yes (4) | I22: No (0) | N22: =IFERROR(RIGHT(LEFT(M22,LEN(M22)-1)),"") ->  | R22: 0 | S22: 0 | X22: 0
B23: 15.4 | D23: 17 | E23: Yes | F23: 1.13 Does the community maintain copies of Letters of Map Changes (LOMCs)? (Select the response that best fits the community's situation or current practices). | H23: Copies of LOMCs are maintained locally, and FEMA's online resource is regularly accessed (MSC or NFHL) (4) | I23: N/A; no LOMCs in community (3) | J23: LOMCs are not regularly maintained locally or accessed online (via MSC or NFHL) (2) | K23: LOMCs are not used or are unknown to the community (0) | N23: =IFERROR(RIGHT(LEFT(M23,LEN(M23)-1)),"") ->  | R23: 0 | S23: 0 | X23: 0
O24: Subtotals of: FPA Capability, Capacity and Institutional Support (Section 1 above): | Q24: =SUM(Q7:Q23)*'Diagnostic Assessment Graphics'!S9*'Diagnostic Assessment Graphics'!W8 -> 0 | S24: =SUM(S7:S23)*'Diagnostic Assessment Graphics'!S9*'Diagnostic Assessment Graphics'!W8 -> 15 | V24: =SUM(V13,V14,V20) -> 0 | W24: =SUM(W7,W12,W20) -> 0 | X24: =COUNTIF(X7:X23,"0") -> 12
D25: 2. Map Availability and Accuracy: (Is the community regulating/enforcing against its most accurate risk assessment?)
B26: 3.1, 3.2, 3.3, 3.4 | D26: 18 | E26: Yes | F26: 2.1 During permitting, how are the flood zone and Base Flood Elevation (BFE), or regulatory flood height determined by the FPA or designee? (Select the response that best fits the community's situation or current practices). | H26: Using all effective products in digital format: effective FIRMs and FIS (4) | I26: Using all effective products in paper format: FIRMs and/or FIS (3) | J26: Using FIRMs only (digital or paper); but community not using its published FIS (2) | K26: Using best available data if no FEMA data is present (explain in findings and notes) (1) | L26: BFE/flood height is not determined or the community does not determine it correctly (explain in findings and notes) (0) | N26: =IFERROR(RIGHT(LEFT(M26,LEN(M26)-1)),"") ->  | P26: =N26 ->  | R26: 2 | S26: 8 | W26: =IF(N26="0",1,"") ->  | X26: 0
B27: 4.1 | D27: 19 | E27: Yes | F27: 2.2 In reference to how the BFE and regulatory flood are height checked during plan review: is the BFE determined by the FPA office and provided to the applicant at permit initiation? | H27: Yes (4) | I27: No (0) | N27: =IFERROR(RIGHT(LEFT(M27,LEN(M27)-1)),"") ->  | P27: =N27 ->  | R27: 1.5 | S27: 6 | V27: =IF(OR($N$27="4",$N$28="4"),1,"") ->  | X27: 0
B28: 4.2 | D28: 20 | E28: Yes | F28: 2.3 In reference to how the BFE and regulatory flood height are checked during plan review: is the BFE generated by the applicant/surveyor and verified before the permit is issued? | H28: Yes (4) | I28: No (0) | N28: =IFERROR(RIGHT(LEFT(M28,LEN(M28)-1)),"") ->  | R28: 1.5 | S28: 6 | X28: 0
B29: 4.3 | D29: 21 | E29: Yes | F29: 2.4 Is there Base Flood Elevation (BFE) in this community (e.g., AE, Numbered A zones , only zone A,etc.)? | H29: Yes (4) | I29: No (0) | N29: =IFERROR(RIGHT(LEFT(M29,LEN(M29)-1)),"") ->  | P29: =N29 ->  | R29: 0 | S29: 0
B30: 4.3 | D30: 22 | E30: =IFERROR(IF(N29="4","Yes",""),"") ->  | F30: 2.4a. If yes to Q 2.4, describe how the community assures elevations are appropriate relative to adjacent ground level in the space shaded gold to the right. | N30: =ISBLANK(M30) -> TRUE | X30: =IF(OR(E30<>"Yes",AND(E30="yes",N30=FALSE)),1,0) -> 1
B31: 13.5 | D31: 23 | E31: Yes | F31: 2.5 Are the most recent FIRMs and or FIS cited in the ordinance (for those communities without auto-adopt)? (Select the response that best fits the community's situation or current practices). (in guidance: if 60.3a community where no FEMA maps or data exist choose N/A) | H31: Yes, and the community also adopts more restrictive state or local maps (4) | I31: Yes or auto-adopt (3) | J31: N/A - The community does not have FEMA maps or data (2) | K31: No, the map reference is out of date or noncompliant for other reasons (0) | N31: =IFERROR(RIGHT(LEFT(M31,LEN(M31)-1)),"") ->  | R31: 0 | S31: 0 | X31: =IF(E31<>"Yes",1,IF(AND(E31="YES",OR(N31="FALSE",N31="0",N31="1",N31="2",N31="3",N31="4")),1,0)) -> 0
B32: 13.5 | D32: 24 | E32: =IFERROR(IF(OR(N31="4",N31="3"),"Yes",""),"") ->  | F32: 2.5a. If the most recent FIRMs are cited, please indicate the date in the space shaded gold to the right . | N32: =ISBLANK(M32) -> TRUE | X32: =IF(OR(E32<>"Yes",AND(E32="yes",N32=FALSE)),1,0) -> 1
D33: 25 | E33: =IFERROR(IF(OR(N31="4",N31="3"),"Yes",""),"") ->  | F33: 2.5b. If the most recent FISs are cited, please indicate the date in the space shaded gold to the right . | N33: =ISBLANK(M33) -> TRUE | X33: =IF(OR(E33<>"Yes",AND(E33="yes",N33=FALSE)),1,0) -> 1
B34: 15.5 | D34: 26 | E34: Yes | F34: 2.6 Does the FPA use the MSC and/or NFHL when working with flood hazard map products, in addition to digital/paper FIRMs & FIS (where present)? | H34: Yes (3) | I34: Sometimes (2) | J34: No (1) | N34: =IFERROR(RIGHT(LEFT(M34,LEN(M34)-1)),"") ->  | Q34: =IFERROR(P34*R34,"") ->  | R34: 0 | S34: 0 | X34: 0
B35: 15.6 | D35: 27 | E35: Yes | F35: 2.7 Is the community using other maps or studies for regulating the floodplain? | H35: No (4) | I35: Yes and adopted (3) | J35: Yes but they are not in ordinances or regulations (1) | K35: Yes and they are LESS restrictive than the FEMA maps (0) | R35: 0 | S35: 0 | W35: =IF(N35="0",1,"") ->  | X35: 0
B36: 15.1 | D36: 28 | E36: Yes | F36: 2.8 Has the community completed necessary actions (44CFR 64.4) if there has been a recent change to the community’s territorial or extraterritorial boundaries that affected SFHA? | H36: No (3) | I36: Yes and the correct maps were adopted (3) | J36: Yes but the correct maps were not adopted (0) | R36: 0 | S36: 0 | W36: =IF(N36="0",1,"") ->  | X36: 0
B37: 5.6 | D37: 29 | E37: Yes | F37: 2.9 Does the community require and initiate Letters of Map Change (LOMC) when appropriate? | G37: 44 CFR 65.3 | H37: Yes (4) | I37: Sometimes (2) | J37: No (0) | R37: 1 | S37: 4 | W37: =IF(N37="0",1,"") ->  | X37: 0
B38: 5.6 | D38: 30 | E38: =IFERROR(IF(OR(N37="4",N37="2"),"Yes",""),"") ->  | F38: 2.9a if Yes or Sometimes was selected in 2.9, indicate those instances when they are used in the space shaded gold to the right (e.g., If natural LAG>BFE, advise LOMA; If floodway impact, CLOMR and LOMR; If fill used, LOMR-F; If proposal changes BFE/SFHA, require CLOMR and LOMR) | N38: =ISBLANK(M38) -> TRUE | X38: =IF(OR(E38<>"Yes",AND(E38="yes",N38=FALSE)),1,0) -> 1
O39: Subtotals of: Map Availability and Accuracy (Section 2 above): | P39: =SUM(P22:P38) -> 0 | Q39: =SUM(Q26:Q38)*'Diagnostic Assessment Graphics'!S10*'Diagnostic Assessment Graphics'!W8 -> 0 | S39: =SUM(S26:S38)*'Diagnostic Assessment Graphics'!S10*'Diagnostic Assessment Graphics'!W8 -> 15 | V39: =SUM(V27) -> 0 | W39: =SUM(W26,W35,W36,W37) -> 0 | X39: =COUNTIF(X26:X38,"0") -> 8
D40: 3. Floodplain Management Regulations: (Is the community's ordinance up to date and how is it being enforced?)
B41: 5.3 | D41: 31 | E41: Yes | F41: 3.1 Is the community actively ensuring as-built elevations are collected and reviewed? | H41: Yes using finished-construction elevation certificates (4) | I41: As-built elevations are collected but not using EC certificates (3) | J41: Certificates are collected but not reviewed by FPA office (1) | K41: As-built information is not collected or used (0) | N41: =IFERROR(RIGHT(LEFT(M41,LEN(M41)-1)),"") ->  | P41: =N41 ->  | Q41: =IFERROR(P41*R41,"") ->  | R41: 1.5 | S41: 6 | W41: =IF(N41="0",1,"") ->  | X41: 0
B42: 5.4 | D42: 32 | E42: Yes | F42: 3.2 Are other state and federal permits obtained and checked by the FPA office? (e.g. EPA, USACE 404 Permit, state environmental permits) | H42: Yes (4) | I42: No (0) | N42: =IFERROR(RIGHT(LEFT(M42,LEN(M42)-1)),"") ->  | R42: 1 | S42: 4 | X42: 0
B43: 5.5 | D43: 33 | E43: Yes | F43: 3.3 During permit review, are lowest floor and utilities checked against BFE (or grade) to ensure proper elevation is proposed? | H43: Yes with pre-construction elevation certificates (4) | I43: Yes but not necessarily with construction elevation certificates (3) | J43: No (0) | N43: =IFERROR(RIGHT(LEFT(M43,LEN(M43)-1)),"") ->  | R43: 1.5 | S43: 6 | V43: =IF(N43="4",1,"") ->  | X43: 0
B44: 13.1 | D44: 34 | E44: Yes | F44: 3.4 An ordinance review was completed and can best be summarized as: (Select the response that best fits the community's situation or current practices). | H44: Fully compliant and contains higher standards (4) | I44: Fully compliant, no missing or conflicting language was identified (3) | J44: Minor (mainly typographical) errors were identified, i.e., if the community were joining NFIP today these errors would not prevent entry (1) | K44: Significant errors were identified or sections were missing (e.g., subdivisions, V zone certificates, RV standards), i.e., if the community were joining NFIP today these errors would prevent entry (0) | N44: =IFERROR(RIGHT(LEFT(M44,LEN(M44)-1)),"") ->  | R44: 2 | S44: 8 | W44: =IF(N44="0",1,"") ->  | X44: 0
B45: 13.1 | D45: 35 | E45: Yes | F45: 3.4a Briefly summarize ordinance review findings in the space to the right, under your response, if needed. | N45: =ISBLANK(M45) -> TRUE | X45: =IF(OR(E45<>"Yes",AND(E45="yes",N45=FALSE)),1,0) -> 0
B46: 13.2 | D46: 36 | E46: Yes | F46: 3.5 For ordinances, does the state require higher standards than FEMA? | H46: Yes (4) | I46: No (0) | N46: =IFERROR(RIGHT(LEFT(M46,LEN(M46)-1)),"") ->  | R46: 0 | S46: 0 | X46: 0
B47: 13.2 | D47: 37 | E47: =IFERROR(IF(N46="4","Yes",""),"") ->  | F47: 3.5a If Yes to 3.5, has the community adopted these higher standards? | H47: Yes (4) | I47: No (0) | N47: =IFERROR(RIGHT(LEFT(M47,LEN(M47)-1)),"") ->  | R47: 0 | S47: 0 | X47: =IF(OR(E47<>"Yes",AND(E47="yes",OR(N47="0",N47="1",N47="2",N47="3",N47="4"))),1,0) -> 1
B48: 13.4 | D48: 38 | E48: Yes | F48: 3.6 Are other regulations in the community coordinated with the floodplain ordinance(s)? | H48: Yes (4) | I48: N/A, no other relevant codes (3) | J48: No (0) | N48: =IFERROR(RIGHT(LEFT(M48,LEN(M48)-1)),"") ->  | R48: 0 | S48: 0 | X48: 0
B49: 13.4 | D49: 39 | E49: =IFERROR(IF(N48="4","Yes",""),"") ->  | F49: 3.6a If yes to 3.6, describe how these regulations are related/interrelated in the space shaded gold to the right. | N49: =ISBLANK(M49) -> TRUE | X49: =IF(OR(E49<>"Yes",AND(E49="yes",N49=FALSE)),1,0) -> 1
B50: 13.6 | D50: 40 | E50: Yes | F50: 3.7 Are certain classes of development exempted from NFIP regulations (at state/county/local level)? | H50: No (4) | I50: Yes (0) | N50: =IFERROR(RIGHT(LEFT(M50,LEN(M50)-1)),"") ->  | R50: 0.5 | S50: 2 | W50: =IF(N50="0",1,"") ->  | X50: 0
B51: 13.6 | D51: 41 | E51: =IFERROR(IF(N50="0","Yes",""),"") ->  | F51: 3.7a If yes to 3.7, describe these exemptions in the space shaded gold to the right. | N51: =ISBLANK(M51) -> TRUE | X51: =IF(OR(E51<>"Yes",AND(E51="yes",N51=FALSE)),1,0) -> 1
B52: 14.3 | D52: 42 | E52: Yes | F52: 3.8 Indicate the approximate number of permits granted for development in the SFHA in the last three (3) years in the space to the right. If there were zero (0) indicate as such. | N52: =ISBLANK(M52) -> TRUE | X52: =IF(OR(E52<>"Yes",AND(E52="yes",N52=FALSE)),1,0) -> 0
O53: Subtotals of: Floodplain Management Regulations (Section 3 above): | P53: =SUM(P41:P52) -> 0 | Q53: =SUM(Q41:Q52)*'Diagnostic Assessment Graphics'!S11*'Diagnostic Assessment Graphics'!W8 -> 0 | S53: =SUM(S41:S52)*'Diagnostic Assessment Graphics'!S11*'Diagnostic Assessment Graphics'!W8 -> 40 | V53: =SUM(V43) -> 0 | W53: =SUM(W41,W44,W50) -> 0 | X53: =COUNTIF(X41:X52,"0") -> 9
D54: 4. Standardized Processes: (Does the community have an effective record-keeping process?)
B55: 2.1, 2,2, 2.3, 2.4, 1.4 | D55: 43 | E55: Yes | F55: 4.1 Which option best describes the community's permitting documentation? | G55: 44 CFR 59.1 | H55: The permitting process is complete with form(s) and well documented Standard Operating Procedures (SOPs) (3) | I55: The permitting process is complete with a single form used for floodplain permitting (2) | J55: The permitting process is complete with separate forms used for buildings and non-structural development (2) | K55: The permitting process is incomplete, e.g., the community does not permit or review all types of development (1) | N55: =IFERROR(RIGHT(LEFT(M55,LEN(M55)-1)),"") ->  | Q55: =IFERROR(P55*R55,"") ->  | R55: 1.5 | S55: 4.5 | V55: =IF(OR(N55="3",N55="2"),1,"") ->  | W55: =IF(N55="1",1,"") ->  | X55: =IF(AND(E55="yes",OR(N55="0",N55="1",N55="2",N55="3",N55="4")),1,0) -> 0
B56: 1.2a, b | D56: 44 | E56: Yes | F56: 4.1a Describe the permitting process narrative and coordination (e.g., through other departments/offices) and identify any gaps (e.g., types of developments that are not reviewed) in the process in the space to the right. | N56: =ISBLANK(M56) -> TRUE | X56: =IF(OR(E56<>"Yes",AND(E56="yes",N56=FALSE)),1,0) -> 0
B57: 7.1 | D57: 45 | E57: Yes | F57: 4.2 With regard to the community permitting process, and if the zones apply to the community, are floodway proposals reviewed and documented correctly? | H57: Yes (4) | I57: No (explain in findings and notes) (0) | N57: =IFERROR(RIGHT(LEFT(M57,LEN(M57)-1)),"") ->  | R57: 1 | S57: 4 | X57: 0
B58: 7.3 | D58: 46 | E58: Yes | F58: 4.3 With regard to the community permitting process, and if the zones apply to the community, are coastal high hazard areas V zones foundation and design standards met? | H58: Yes (4) | I58: No (explain in findings and notes) (0) | N58: =IFERROR(RIGHT(LEFT(M58,LEN(M58)-1)),"") ->  | R58: 1 | S58: 4 | X58: 0
B59: 7.3 | D59: 47 | E59: =IFERROR(IF(N58="4","Yes",""),"") ->  | F59: 4.3a If yes to question 4.3, please indicate specifics (e.g., prohibit fill, open foundation or breakaway wall, lowest horizontal structural member (LHSM) above BFE )in the space shaded gold to the right. | N59: =ISBLANK(M59) -> TRUE | X59: =IF(OR(E59<>"Yes",AND(E59="yes",N59=FALSE)),1,0) -> 1
B60: 6.1, 6.2, 6.3, 6.4 | D60: 48 | E60: Yes | F60: 4.4 Which option best describes the community's Substantial Improvement, Substantial Damage (SI/SD) administration? | H60: Fully compliant and regulated to a higher standard (Cumulative SI or lower percentage threshold) (4) | I60: Fully compliant: SI is calculated for all work on existing structures and SD is calculated for all damage repairs (3) | J60: Sometimes compliant: Both SI and SD are implemented but inconsistently or there are gaps in implementation (2) | K60: Partially compliant: one is calculated regularly but the other is not (e.g., SI is calculated regularly, but SD determinations are not done) (1) | L60: Missing or not compliant: Neither SI nor SD are administered by the community (0) | N60: =IFERROR(RIGHT(LEFT(M60,LEN(M60)-1)),"") ->  | R60: 1.5 | S60: 6 | V60: =IF(OR(N60="4", N60="3",N60="2"),1,"") ->  | W60: =IF(OR(N60="1", N60="0"),1,"") ->  | X60: 0
B61: 6.1, 6.2, 6.3 | D61: 49 | E61: Yes | F61: 4.4a Describe the community's SI/SD administration if the options in 4.2 are not fully descriptive or if there are gaps identified in the administration of the program (in the space to the right). | N61: =ISBLANK(M61) -> TRUE | X61: =IF(OR(E61<>"Yes",AND(E61="yes",N61=FALSE)),1,0) -> 0
B62: 6.3 | D62: 50 | E62: Yes | F62: 4.5 With regard to the market value source that the community uses or requires from applicant for SI/SD, what source does the community use? | H62: Professional Appraisal, recent (4) | I62: Actual Cash Value (3) | J62: Tax Assessed Value, Adjusted (3) | K62: FEMA SDE Tool (3) | L62: Other Means (explain in findings and notes) (1) | N62: =IFERROR(RIGHT(LEFT(M62,LEN(M62)-1)),"") ->  | R62: 0 | S62: 0 | X62: 0
B63: 4.1, 4.2, 4.3 | D63: 51 | E63: Yes | F63: 4.6 How are the BFE and or the regulatory flood height checked during plan review? | H63: BFE is determined by FPA office and provided to applicant at permit initiation (3) | I63: There is only ZONE A in the community (No BFE) and adjacent grade information is provided to applicant (2) | J63: BFE is generated by applicant or surveyor and verified by FPA before permit is issued (1) | K63: The BFE and or the regulatory flood height is not checked during plan review (0) | R63: 2 | S63: 6 | W63: =IF(N63="0",1,"") ->  | X63: 0
B64: 5.2, 7.2 | D64: 52 | E64: Yes | F64: 4.7 Does the community have engineering staff or similar capacity at the permit review process, including floodway development reviews (H&H Study and supporting no-rise documentation) as applicable? | H64: Yes (4) | I64: Not applicable (2) | J64: No (explain in findings and notes if needed) (0) | R64: 1 | S64: 4 | X64: 0
B65: 8.1a, 8.1b, 8.1c, 8.2a, 8.2b | D65: 53 | E65: Yes | F65: 4.8 When are inspections of floodplain development performed by responsible community officials? (Select the response that best fits the community's situation or current practices). | H65: At framing or foundation set (e.g., during construction), AND at finished construction/"as-built" for all structures (4) | I65: At finished construction/"as-built" before certificate of owner occupancy (COO) for all structures (3) | J65: Checked during construction, but not at as-built (2) | K65: Inspections are only done for new structures; work on existing structures is not inspected for floodplain compliance (1) | L65: No floodplain inspections are performed (0) | N65: =IFERROR(RIGHT(LEFT(M65,LEN(M65)-1)),"") ->  | R65: 1.5 | S65: 6 | V65: =IF(OR($N$65="4", $N$65="3", N65="2"),1,"") ->  | W65: =IF(OR($N$65="1", $N$65="0"),1,"") ->  | X65: 0
B66: 8.2e | D66: 54 | E66: Yes | F66: 4.9 Are floodproofing certifications collected for non-residential structures? | H66: Yes (4) | I66: No (0) | R66: 1 | S66: 4 | X66: 0
B67: 11.1 | D67: 55 | E67: Yes | F67: 4.10 Does the community have recent (within the last five years, or since the last audit) projects of the following type that may require review: watercourse alterations that change the BFE and/or location of SFHA? | H67: No (2) | I67: Yes (describe in notes) (0) | R67: 0 | S67: 0 | X67: 0
B68: 11.2 | D68: 56 | E68: Yes | F68: 4.11 Has the community had any watercourse alterations that change the BFE and/or location of SFHA have relevant/recent (within the last five years, or since the last CAV)? | H68: No (2) | I68: Yes (describe in notes) (0) | R68: 0 | S68: 0 | X68: 0
B69: 11.3 | D69: 57 | E69: Yes | F69: 4.12 Has the community had any capital improvement projects (e.g., roads and bridges) that may require review within the last five years of since the last CAV? | H69: No (2) | I69: Yes (describe in notes) (0) | R69: 0 | S69: 0 | U69: =IFERROR(RIGHT(LEFT(T69,LEN(T69)-1)),"") ->  | X69: 0
B70: 11.4 | D70: 58 | E70: Yes | F70: 4.13 Has the community had any large construction projects that may require review within the SFHA over the last 5 years or since the last CAV? | H70: No (2) | I70: Yes (describe in notes) (0) | R70: 0 | S70: 0 | X70: 0
D71: 59 | E71: Yes | F71: 4.14 Has the community had any projects that involve critical facilities within the SFHA that may require review over the last 5 years or since the last CAV. | H71: No (2) | I71: Yes (describe in notes) (0)
B72: 5.1 | D72: 60 | E72: Yes | F72: 4.15 With regard to the community permitting process, and if the zones apply to the community, are subdivisions and large developments in Zone A checked for 50 lot/5-acre threshold? | H72: Yes (4) | I72: N/A to the community (4) | J72: No (0) | R72: 1 | S72: 4 | X72: 0
B73: 11.5 | D73: 61 | E73: Yes | F73: 4.16 Has the community had any Non-structural development - items not typically covered by building permit (e.g., fill/grading, storage of equipment/materials, paving) within the last 5 years or since the last CAV? | H73: No recent activity (3) | I73: Yes (explain in findings and notes) (3) | J73: No, because community lacks permit for non-structural development (0) | R73: 0 | S73: 0 | X73: 0
B74: 15.2 | D74: 62 | E74: Yes | F74: 4.17 If the community has experienced a flood disaster event INSIDE the SFHA in the past 5 years resulting in damaged structures, did they do substantial Damage determinations? | H74: No (4) | I74: Yes (0) | J74: N/A-No events (4) | R74: 0 | S74: 0 | X74: 0
B75: 15.2 | D75: 63 | E75: Yes | F75: 4.18 If the community has experienced a non-flood disaster (e.g., fire, wind, earthquake) event INSIDE the SFHA in the past 5 years resulting in damaged structures, did they do substantial damage determinations? | H75: No (4) | I75: Yes (0) | J75: N/A-No events (4) | R75: 0 | S75: =IFERROR(RIGHT(LEFT(H75,LEN(H75)-1)),"")*R75 -> 0 | X75: 0
B76: 15.2 | D76: 64 | E76: =IFERROR(IF(OR(N74="0",N75="0"),"Yes",""),"") ->  | F76: 4.19 If yes to either 4.16 or 4.17, describe the type of event, the impacted area, damage estimates or summary, and any declared disaster level (state/federal) in the space shaded gold to the right. | N76: =ISBLANK(M76) -> TRUE | X76: =IF(OR(E76<>"Yes",AND(E76="yes",N76=FALSE)),1,0) -> 1
B77: 15.3 | D77: 65 | E77: Yes | F77: 4.20 Has the community experienced any disaster event OUTSIDE the SFHA in the past 5 years resulting in flood damaged structures? | H77: No (2) | I77: Yes (0) | J77: N/A-No events (2) | N77: =IFERROR(RIGHT(LEFT(M77,LEN(M77)-1)),"") ->  | R77: 0 | S77: 0 | X77: 0
B78: 15.3 | D78: 66 | E78: =IFERROR(IF(N77="0","Yes",""),"") ->  | F78: 4.21 If yes to 4.20, describe the type of event, the impacted area, summary of flood damages, and possible indicators of map change (or flood study) needs in the space shaded gold to the right. | N78: =ISBLANK(M78) -> TRUE | X78: =IF(OR(E78<>"Yes",AND(E78="yes",N78=FALSE)),1,0) -> 1
O79: Subtotals of:Standardized Processes (Section 4 above): | P79: =SUM(P55:P78) -> 0 | Q79: =SUM(Q55:Q78)*'Diagnostic Assessment Graphics'!S12*'Diagnostic Assessment Graphics'!W8 -> 0 | S79: =SUM(S55:S78)*'Diagnostic Assessment Graphics'!S12*'Diagnostic Assessment Graphics'!W8 -> 30 | V79: =SUM(V55,V60,V65,) -> 0 | W79: =SUM(W55,W60,W63,W65,W67) -> 0 | X79: =COUNTIF(X55:X78,"0") -> 20
O80: Diagnostic Assessment Total Score | Q80: ='Diagnostic Assessment Graphics'!K13 -> 0 | S80: ='Diagnostic Assessment Graphics'!L13 -> 100 | U80: Subtotal | V80: =SUM(V79,V53,V39,V24) -> 0 | W80: =SUM(W24,W39,W53,W79) -> 0 | X80: =SUM(X101,X79,X53,X39,X24) -> 54
D81: Enhanced Community Contact Record of Documents Reviewed and Recommend Next Steps
B82: 14.3, DR1 | D82: 66 | E82: Yes | F82: 5.1 The space to the right indicates the recommended number of permits to review during this assessment based on response to question 3.8 (i.e., approximately 10% ). | M82: =IF($M$52*0.1=0,0,IF($M$52*0.1>1,$M$52*0.1,1)) -> 0
B83: DR1 | D83: 67 | E83: Yes | F83: 5.1a Indicate number of permits reviewed during this assessment in space to the right. | N83: =ISBLANK(M83) -> TRUE | X83: =IF(OR(E83<>"Yes",AND(E83="yes",N83=FALSE)),1,0) -> 0
D84: 68 | E84: Yes | F84: 5.1b Of the permits reviewed, indicate how many are noncompliant in the space to the right. | N84: =ISBLANK(M84) -> TRUE | X84: =IF(OR(E84<>"Yes",AND(E84="yes",N84=FALSE)),1,0) -> 0
B85: 14.4 | D85: 69 | E85: Yes | F85: 5.2 The space to the right indicates the recommended number of variances to review during this assessment based on response to question 1.8b (i.e., approximately 50%). | M85: =ROUNDDOWN(IF($M$19*0.5<1, 1,$M$19*0.5),0) -> 1
B86: DR2 | D86: 70 | E86: Yes | F86: 5.2a Indicate the number of variances reviewed during this assessment in space to the right. | N86: =ISBLANK(M86) -> TRUE | X86: =IF(OR(E86<>"Yes",AND(E86="yes",N86=FALSE)),1,0) -> 0
D87: 71 | E87: Yes | F87: 5.2b Of the variances reviewed, indicate how many are noncompliant in the space to the right. | N87: =ISBLANK(M87) -> TRUE | X87: =IF(OR(E87<>"Yes",AND(E87="yes",N87=FALSE)),1,0) -> 0
B88: 14.2 | D88: 72 | E88: Yes | F88: 5.3 Describe the relative SFHA development pressure vs SFHA size in the community in the space to the right (e.g., 30% of the community is in the SFHA, but 75% of the building pressure exists there). | N88: TRUE | X88: 0
B89: DR3 | D89: 73 | E89: Yes | F89: 5.4 Indicate the number of documents reviewed of this type: Elevation Certificates. | N89: TRUE | X89: 0
D90: 74 | E90: Yes | F90: 5.4a Of ECs reviewed, indicate how many are noncompliant or indicate a potential violation in the space to the right (explain in findings and notes if needed). | N90: TRUE | X90: 0
B91: DR3 | D91: 75 | E91: Yes | F91: DR.5 Indicate the number of documents reviewed of this type: Hydrologic and Hydrodynamic (H&H) Analysis. | N91: TRUE | X91: 0
D92: 76 | E92: Yes | F92: DR.5a Indicate the number of documents reviewed of this type with issues: H&H Analysis. (explain in findings and notes if needed) | N92: TRUE | X92: 0
B93: DR3 | D93: 77 | E93: Yes | F93: 5.6 Indicate the number of documents reviewed of this type: No rise certifications. | N93: TRUE | X93: 0
D94: 78 | E94: Yes | F94: 5.6a Indicate the number of documents reviewed of this type with issues: No rise certifications (explain in findings and notes if needed). | N94: TRUE | X94: 0
B95: OQ2 | D95: 79 | E95: Yes | F95: 5.7 Does the community have any unresolved violations carried over from the last five-year period/last audit? | H95: No (4) | I95: Yes (0) | N95: =IFERROR(RIGHT(LEFT(M95,LEN(M95)-1)),"") ->  | P95: =N95 ->  | Q95: =IFERROR(P95*R95,"") ->  | R95: 0 | S95: =IFERROR(RIGHT(LEFT(H95,LEN(H95)-1)),"")*R95 -> 0 | X95: =IF(AND(E95="yes",OR(N95="0",N95="1",N95="2",N95="3",N95="4")),1,0) -> 0
B96: OQ2 | D96: 80 | E96: =IFERROR(IF(N95="4","Yes",""),"") ->  | F96: 5.7a Describe these violations in detail and provide any context in the space to the right. | N96: =ISBLANK(M96) -> TRUE | X96: =IF(OR(E96<>"Yes",AND(E96="yes",N96=FALSE)),1,0) -> 1
B97: OQ3 | D97: 81 | E97: Yes | F97: 5.8 Is the community requesting full audit (virtual or in-person)? | H97: Yes (4) | I97: No (0) | N97: =IFERROR(RIGHT(LEFT(M97,LEN(M97)-1)),"") ->  | P97: =N97 ->  | R97: 0 | S97: 0
B98: OQ3 | D98: 82 | E98: =IFERROR(IF(N97="4","Yes",""),"") ->  | F98: 5.8a Describe the nature and urgency of the request in the space to the right. | N98: =ISBLANK(M98) -> TRUE | X98: =IF(OR(E98<>"Yes",AND(E98="yes",N98=FALSE)),1,0) -> 1
B99: OQ4 | D99: 83 | E99: Yes | F99: 5.9 Has the community been non-responsive or could the POC not be reached? | H99: Yes (4) | I99: No (0) | N99: =IFERROR(RIGHT(LEFT(M99,LEN(M99)-1)),"") ->  | P99: =N99 ->  | R99: 0 | S99: 0
B100: OQ4 | D100: 84 | E100: =IFERROR(IF(N99="0","Yes",""),"") ->  | F100: 5.9a Indicate how many times attempted contact was made and any details from these attempted contacts, and provide additional details in Findings and Notes if needed. | N100: =ISBLANK(M100) -> TRUE | X100: =IF(OR(E100<>"Yes",AND(E100="yes",N100=FALSE)),1,0) -> 1
O101: Subtotals of: Document Review and Recommendations (Section 5 above): | P101: =SUM(P95:P100) -> 0 | Q101: =SUM(Q95:Q100)*'Diagnostic Assessment Graphics'!W8 -> 0 | S101: =SUM(S95:S100)*'Diagnostic Assessment Graphics'!W8 -> 0 | X101: =COUNTIF(X91:X100,"0") -> 5
U103: MAX Possible | V103: =SUM(V81,V54,V40,V25) -> 0
AR105: NFIP Severity Classification Schema The severity classification includes a single word identifier, a more detailed description and a numerical value to indicate severity. | AV105: Minor | AW105: Minor deficiencies are usually administrative in nature, even though those findings may possibly result in a notice of violation. This category may also include temporary or occasional instances of noncompliance. | AX105: 3
AR106: Significant | AS106: A problem categorized as significant requires immediate attention. It poses, or has a high likelihod to pose a direct and immediate threat to human health and safety. | AT106: 5 | AV106: Management Practice (MP) | AW106: MP findings are those for which there is no specific regulatory requirement. | AX106: 2
AR107: Major | AS107: A major deficiency requires action, but not necessarily immediate action. Major deficiencies may pose a threat to human health and safety. Any immediate threat, however, must be categorized as significant. | AT107: 4 | AV107: Positive | AW107: A positive finding is for a job, activity, or person who has gone above and beyond the regulatory requirements. | AX107: -2
B191: Pick Lists for Larger Responses: Do not Erase
B192: 1.1 How does the community accomplish permit development? Select the response that best fits the community's situation or current practices. option.
B193: The community permitting process is through the FPA's department or office
B194: The community permitting process is through a single department other than the FPA's department or office
B195: The community permitting process is through multiple departments or offices
B196: The community contracts out the permitting process
B197: The community does not have a permitting process (explain in findings and notes)

Sheet Diagnostic Assmnt Report NEW
B1: PRE-DECISIONAL DRAFT | D1: PRE-DECISIONAL DRAFT
B2: INSTRUCTIONS FOR USE: | D2: National Flood Insurance Program (NFIP) DIAGNOSTIC ASSESSMENT SUMMARY REPORT V2 | J2: Section Status Summary | AZ2: Critical Element and Area of Concern Section Summary
D4: Location: | E4: ='Administrative Info'!F6&" "&'Administrative Info'!F7&" "&'Administrative Info'!F11 -> <enter community name here> <enter county here> <enter 2-letter state ID here> | H4: ='Administrative Info'!E12&'Administrative Info'!F12 -> CID:<enter 6-digit CID here> | J4: Diagnostic Assessment Section Status is Provided Below | AZ4: Section | BB4: Critical Element | BD4: Area of Concern
D5: Floodplain Administrator: | E5: ='Administrative Info'!F13 -> <Enter FPA Name Here> | F5: Phone: | G5: ='Administrative Info'!F14 -> <enter FPA phone number> | H5: ='Administrative Info'!F15 -> <enter FPA email address> | J5: Section | L5: Status | BB5: Max | BC5: Scored | BD5: Max | BE5: Scored
D6: Agency Conducting Audit: | E6: ='Administrative Info'!F21 -> <enter name of agency> | J6: Section 1 - FPA Capability, Capacity and Institutional Support | L6: =IF('Diagnostic Assessment NEW'!X24=0, "Complete","Incomplete") -> Incomplete | AZ6: Section 1 - FPA Capability, Capacity and Institutional Support | BB6: 3 | BC6: ='Diagnostic Assessment NEW'!V24 -> 0 | BD6: 2 | BE6: ='Diagnostic Assessment NEW'!W24 -> 0
D7: Audit Conducted by: | E7: ='Administrative Info'!F22 -> <enter name of auditor and title> | F7: Phone: | G7: ='Administrative Info'!F23 -> <enter auditor phone> | H7: ='Administrative Info'!F24 -> <enter auditor email address>
D8: Audit Reviewed by: | E8: ='Administrative Info'!F25 -> <enter audit reviewer name> | F8: Phone: | G8: ='Administrative Info'!F26 -> <enter audit reviewer phone number> | H8: ='Administrative Info'!F27 -> <enter audit reviewer email address> | J8: Section 2 - Map Availability and Accuracy | L8: =IF('Diagnostic Assessment NEW'!X39=0,"Complete","Incomplete") -> Incomplete | AZ8: Section 2 - Map Availability and Accuracy | BB8: 1 | BC8: ='Diagnostic Assessment NEW'!V39 -> 0 | BD8: 4 | BE8: ='Diagnostic Assessment NEW'!W39 -> 0
D9: Community Contact Date: | E9: ='Administrative Info'!F9 -> <enter date of community contact MM/DD/YYYY> | G9: Diagnostic Assessment Date: | H9: ='Administrative Info'!F8 -> <enter diagnostic date MM/DD/YYYY>
D10: Date Audit Closed | E10: ='Administrative Info'!F31 -> <enter date audit closed> | G10: Overall Diagnostic Score | H10: ='Diagnostic Assessment NEW'!Q80 -> 0 | J10: Section 3 - Floodplain Management Regulations | L10: =IF('Diagnostic Assessment NEW'!X53=0,"Complete","Incomplete") -> Incomplete | AZ10: Section 3 - Floodplain Management Regulations | BB10: 1 | BC10: ='Diagnostic Assessment NEW'!V53 -> 0 | BD10: 2 | BE10: ='Diagnostic Assessment NEW'!W53 -> 0
D11: CRS Community: | E11: ='Administrative Info'!F32 -> <enter Yes/No> | G11: Overall Evaluation Score | H11: ='Evaluation Tool'!M74 -> 0
D12: Auditor Determination Summary of Auditor's Determination for Diagnostic Assessment Process | J12: Section 4 - Standardized Processes | L12: =IF('Diagnostic Assessment NEW'!X79=0,"Complete","Incomplete") -> Incomplete | AZ12: Section 4 - Standardized Processes | BB12: 4 | BC12: ='Diagnostic Assessment NEW'!V79 -> 0 | BD12: 6 | BE12: ='Diagnostic Assessment NEW'!W79 -> 0
D14: 1. Diagnostic Assessment Outcome. Select the most descriptive option: | G14: Provide additional details as needed: | J14: Section 5 - Document Review and Recommendations | L14: =IF('Diagnostic Assessment NEW'!X101=0,"Complete","Incomplete") -> Incomplete | AZ14: Totals | BB14: =SUM(BB6:BB13) -> 9 | BC14: =SUM(BC6:BC13) -> 0 | BD14: 14 | BE14: 0
D15: Compliance Determined at Community Contact (Off-Ramp)
D16: Compliance Determined at Enhanced Community Contact (Off-Ramp)
D17: Full Evaluation Needed | AZ17: Area of Concern | BA17: Applies to Community
D18: Other | AZ18: 1.1 | BA18: =IF('Diagnostic Assessment NEW'!W7=1,1,0) -> 0 | BB18: Q1.1 | BC18: AOC: The community does not have a permitting process for all development
D19: 2. If a full evaluation is needed select all that apply: | G19: Provide additional details as needed: | AZ19: 1.3 | BA19: =IF('Diagnostic Assessment NEW'!W12=1,1,0) -> 0 | BB19: Q1.3 | BC19: AOC: The FPM program's position in the organization is NOT appropriate to ensure effectiveness in carrying out its duties
D20: Diagnostic assessment scores indicated need for full evaluation | AZ20: 1.9 | BA20: =IF('Diagnostic Assessment NEW'!W20=1,1,0) -> 0 | BB20: Q1.9 | BC20: AOC: Records are not maintained indefinitely (are disposed at some determined interval); or are not accessible
D21: Significant Areas of Concern identified during the Assessment | AZ21: 2.1 | BA21: =IF('Diagnostic Assessment NEW'!W26=1,1,0) -> 0 | BB21: Q2.1 | BC21: AOC: BFE/flood height is not determined or the community does not determine it correctly
D22: Community Specifically requested a full evaluation | AZ22: 2.7 | BA22: =IF('Diagnostic Assessment NEW'!W35=1,1,0) -> 0 | BB22: Q2.7 | BC22: AOC: The community is using other maps or studies for regulating the floodplain and they are LESS restrictive than the FEMA maps
D23: Post Disaster Substantial Damage | AZ23: 2.8 | BA23: =IF('Diagnostic Assessment NEW'!W36=1,1,0) -> 0 | BB23: Q2.8 | BC23: AOC: There has been a recent change to the community’s territorial or extraterritorial boundaries that affected SFHA and the correct maps were not adopted
D24: 3. Does the community require follow-up or technical assistance following completion of the diagnostic Assessment? | G24: Provide additional details as needed: | AZ24: 2.9 | BA24: =IF('Diagnostic Assessment NEW'!W37=1,1,0) -> 0 | BB24: Q2.9 | BC24: AOC: The community does NOT require and initiate Letters of Map Change (LOMC) when appropriate
D25: Yes | AZ25: 3.1 | BA25: =IF('Diagnostic Assessment NEW'!W41=1,1,0) -> 0 | BB25: Q3.1 | BC25: AOC: As-built information is not collected or used
D26: No | AZ26: 3.4 | BA26: =IF('Diagnostic Assessment NEW'!W44=1,1,0) -> 0 | BB26: Q3.4 | BC26: AOC: An ordinance review was completed, and Significant errors were identified or sections were missing (e.g., subdivisions, V zone certificates, RV standards)
AZ27: 3.7 | BA27: =IF('Diagnostic Assessment NEW'!W50=1,1,0) -> 0 | BB27: Q3.7 | BC27: AOC Certain classes of development are exempt from NFIP regulations, at state/county/local level
D28: Diagnostic Assessment Summary Scores | AZ28: 4.1 | BA28: =IF('Diagnostic Assessment NEW'!W55=1,1,0) -> 0 | BB28: Q4.1 | BC28: AOC: The permitting process is incomplete, e.g., the community does not permit or review all types of development
D29: Category | E29: Community Score | F29: Baseline | G29: Area of Concern Total | H29: Questions of Concern | AZ29: 4.4 | BA29: =IF('Diagnostic Assessment NEW'!W60=1,1,0) -> 0 | BB29: Q4.4 | BC29: AOC: The community's Substantial Improvement, Substantial Damage (SI/SD) administration is partially compliant: one is calculated regularly but the other is not (e.g., SI is calculated regularly, but SD determinations are not done)
D30: Total Diagnostic Score | E30: ='Diagnostic Assessment NEW'!Q80 -> 0 | F30: =0.7*'Diagnostic Assessment NEW'!S80 -> 70 | G30: =_xlfn.TEXTJOIN(" ",TRUE,BB50,"out of 14") -> 0 out of 14 | H30: =IF(BB50=0,"No Concern",IF(BB50<=5,"Low Concern",IF(BB50<=7,"Moderate Concern",IF(BB50<=9,"High Concern", "Very High Concern")))) -> No Concern | AZ30: 4.6 | BA30: =IF('Diagnostic Assessment NEW'!W63=1,1,0) -> 0 | BB30: Q4.6 | BC30: AOC: The BFE and or the regulatory flood height is not checked during plan review
D31: FPA Capability | E31: ='Diagnostic Assessment NEW'!Q24 -> 0 | F31: =0.7*'Diagnostic Assessment NEW'!S24 -> 10 | G31: =_xlfn.TEXTJOIN(" ",TRUE,BB35,"out of 3") -> 0 out of 3 | H31: =IFERROR(_xlfn.TEXTJOIN(" ",TRUE,_xlfn.ANCHORARRAY(AZ35)),"None Identified") -> None Identified | AZ31: 4.8 | BA31: =IF('Diagnostic Assessment NEW'!W65=1,1,0) -> 0 | BB31: Q4.8 | BC31: AOC: No floodplain inspections are performed
D32: Maps | E32: ='Diagnostic Assessment NEW'!Q39 -> 0 | F32: =0.7*'Diagnostic Assessment NEW'!S39 -> 10 | G32: =_xlfn.TEXTJOIN(" ",TRUE,BB39,"out of 4") -> 0 out of 4 | H32: =IFERROR(_xlfn.TEXTJOIN(" ",TRUE,_xlfn.ANCHORARRAY(AZ39)),"None Identified") -> None Identified
D33: Regulations | E33: ='Diagnostic Assessment NEW'!Q53 -> 0 | F33: =0.7*'Diagnostic Assessment NEW'!S53 -> 28 | G33: =_xlfn.TEXTJOIN(" ",TRUE,BB44,"out of 3") -> 0 out of 3 | H33: =IFERROR(_xlfn.TEXTJOIN(" ",TRUE,_xlfn.ANCHORARRAY(AZ44)),"None Identified") -> None Identified
D34: Processes | E34: ='Diagnostic Assessment NEW'!Q79 -> 0 | F34: =0.7*'Diagnostic Assessment NEW'!S79 -> 21 | G34: =_xlfn.TEXTJOIN(" ",TRUE,BB49,"out of 4") -> 0 out of 4 | H34: =IFERROR(_xlfn.TEXTJOIN(" ",TRUE,_xlfn.ANCHORARRAY(AZ49)),"None Identified") -> None Identified | AZ34: Section 1 FPA | BA34: Question | BB34: Count
AZ35: =_xlfn._xlws.FILTER(BB18:BB20,BA18:BA20=1) ->  | BA35: =_xlfn._xlws.FILTER(BC18:BC20,BA18:BA20=1) ->  | BB35: =SUM(BA18:BA20) -> 0
AZ38: Section 2 Maps | BA38: Question | BB38: Count | BD38: FPA Capability | BE38: =BB35 -> 0 | BF38: 3
AZ39: =_xlfn._xlws.FILTER(BB21:BB24,BA21:BA24=1) ->  | BA39: =_xlfn._xlws.FILTER(BC21:BC24,BA21:BA24=1) ->  | BB39: =SUM(BA21:BA24) -> 0 | BD39: Maps | BE39: =BB39 -> 0 | BF39: 4
BD40: Regulations | BE40: =BB44 -> 0 | BF40: 3
BD41: Processes | BE41: =BB49 -> 0 | BF41: 4
BD42: Overall Score | BE42: =BB50 -> 0 | BF42: =SUM(BF38:BF41) -> 14
AZ43: Section 3 Regs | BA43: Question | BB43: Count
AZ44: =_xlfn._xlws.FILTER(BB25:BB27,BA25:BA27=1) ->  | BA44: =_xlfn._xlws.FILTER(BC25:BC27,BA25:BA27=1) ->  | BB44: =SUM(BA25:BA27) -> 0
D45: Floodplain Administrator Capability, Capacity, and Institutional Support SCORE: | G45: Section Score: | H45: ='Diagnostic Assessment NEW'!Q24 -> 0
D46: Question | E46: Response | F46: Score | G46: Findings and Notes | H46: Recommendations
D47: 1.1 How does the community accomplish permit development? | E47: ='Diagnostic Assessment NEW'!M7 -> 0 | F47: ='Diagnostic Assessment NEW'!Q7 ->  | G47: =IF(BA18=1,BC18,'Diagnostic Assessment NEW'!O7) -> 0 | H47: ='Diagnostic Assessment NEW'!Y7 -> 0
D48: 1.1a If the community permitting process is through multiple departments or offices, list the departments/offices. | E48: =IF('Diagnostic Assessment NEW'!E8="YES",'Diagnostic Assessment NEW'!M8,"Answer Not Required") -> Answer Not Required | G48: ='Diagnostic Assessment NEW'!O8 -> 0 | H48: ='Diagnostic Assessment NEW'!Y8 -> 0 | AZ48: Section 4 Processes | BA48: Question | BB48: Count | BC48: Total
D49: 1.1.b If the community contracts out the permitting process indicate how this contract is managed. | E49: =IF('Diagnostic Assessment NEW'!E9="YES",'Diagnostic Assessment NEW'!M9,"Answer Not Required") -> Answer Not Required | G49: ='Diagnostic Assessment NEW'!O9 -> 0 | H49: ='Diagnostic Assessment NEW'!Y9 -> 0 | AZ49: =_xlfn._xlws.FILTER(BB28:BB31,BA28:BA31=1) ->  | BA49: =_xlfn._xlws.FILTER(BB28:BB32,BA28:BA32=1) ->  | BB49: =SUM(BA28:BA31) -> 0
D50: 1.2 How does the community coordinate permit development? | E50: ='Diagnostic Assessment NEW'!M10 -> 0 | F50: ='Diagnostic Assessment NEW'!Q10 ->  | G50: ='Diagnostic Assessment NEW'!O10 -> 0 | H50: ='Diagnostic Assessment NEW'!Y10 -> 0 | BB50: =SUM(BB35,BB39,BB44,BB49) -> 0
D51: 1.2a If the coordination is across departments or via contract, does the FPA receive notice of floodplain permit changes by other departments and reviews for compliance? | E51: =IF('Diagnostic Assessment NEW'!E11="YES",'Diagnostic Assessment NEW'!M11,"Answer Not Required") -> Answer Not Required | F51: ='Diagnostic Assessment NEW'!Q11 ->  | G51: ='Diagnostic Assessment NEW'!O11 -> 0 | H51: ='Diagnostic Assessment NEW'!Y11 -> 0
D52: 1.3 Is the FPM program's position in the organization appropriate to ensure effectiveness in carrying out its duties? | E52: ='Diagnostic Assessment NEW'!M12 -> 0 | F52: ='Diagnostic Assessment NEW'!Q12 ->  | G52: =IF(BA19=1,BC19,'Diagnostic Assessment NEW'!O12) -> 0 | H52: ='Diagnostic Assessment NEW'!Y12 -> 0
D53: 1.4 With regard to enforcement, are stop work orders issued if any significant problems are identified? | E53: ='Diagnostic Assessment NEW'!M13 -> 0 | F53: ='Diagnostic Assessment NEW'!Q13 ->  | G53: ='Diagnostic Assessment NEW'!O13 -> 0 | H53: ='Diagnostic Assessment NEW'!Y13 -> 0
D54: 1.5 With regard to enforcement, does the FPA have code enforcement authority? | E54: ='Diagnostic Assessment NEW'!M14 -> 0 | F54: ='Diagnostic Assessment NEW'!Q14 ->  | G54: ='Diagnostic Assessment NEW'!O14 -> 0 | H54: ='Diagnostic Assessment NEW'!Y14 -> 0 | AZ54: Scoring Table - Summary (Hidden/Locked from user view)
D55: 1.6 With regard to enforcement, does the FPA review or is otherwise involved in appeals? | E55: ='Diagnostic Assessment NEW'!M15 -> 0 | F55: ='Diagnostic Assessment NEW'!Q15 ->  | G55: ='Diagnostic Assessment NEW'!O15 -> 0 | H55: ='Diagnostic Assessment NEW'!Y15 -> 0 | AZ55: Diagnostic Assessment | BA55: Value
D56: 1.7 With regard to enforcement, does the FPA review variance request reviews or approvals? | E56: ='Diagnostic Assessment NEW'!M16 -> 0 | F56: ='Diagnostic Assessment NEW'!Q16 ->  | G56: ='Diagnostic Assessment NEW'!O16 -> 0 | H56: ='Diagnostic Assessment NEW'!Y16 -> 0 | AZ56: Com Contact | BA56: FALSE
D57: 1.8 Have there been any variances from local floodplain management ordinances in the SFHA for new and substantial improvement to structures in the last three (3) years? | E57: ='Diagnostic Assessment NEW'!M17 -> 0 | F57: ='Diagnostic Assessment NEW'!Q17 ->  | G57: ='Diagnostic Assessment NEW'!O17 -> 0 | H57: ='Diagnostic Assessment NEW'!Y17 -> 0 | AZ57: Enhanced Com Contact | BA57: FALSE
D58: 1.8a If yes to Q 1.8, what were the reasons? (e.g., Historic Structures, Agricultural Structures, Accessory Structures, other). | E58: =IF('Diagnostic Assessment NEW'!E18="YES",'Diagnostic Assessment NEW'!M18,"Answer Not Required") -> Answer Not Required | G58: ='Diagnostic Assessment NEW'!O18 -> 0 | H58: ='Diagnostic Assessment NEW'!Y18 -> 0 | AZ58: Full Evaluation | BA58: FALSE
D59: 1.8b If yes to Q 1.8, if there were variances, indicate the approximate number of variances from local floodplain management criteria in the SFHA. | E59: =IF('Diagnostic Assessment NEW'!E19="YES",'Diagnostic Assessment NEW'!M19,"Answer Not Required") -> Answer Not Required | G59: ='Diagnostic Assessment NEW'!O19 -> 0 | H59: ='Diagnostic Assessment NEW'!Y19 -> 0 | AZ59: Other | BA59: FALSE
D60: 1.9 How does the community maintain records of floodplain development? | E60: ='Diagnostic Assessment NEW'!M20 -> 0 | F60: ='Diagnostic Assessment NEW'!Q20 ->  | G60: =IF(BA20=1,BC20,'Diagnostic Assessment NEW'!O20) -> 0 | H60: ='Diagnostic Assessment NEW'!Y20 -> 0 | AZ60: Full Evaluation | BA60: Value
D61: 1.10 How does the community describe the support (direct and indirect) from the CEO and officials to enforce its ordinances? | E61: ='Diagnostic Assessment NEW'!M21 -> 0 | G61: ='Diagnostic Assessment NEW'!O21 -> 0 | H61: ='Diagnostic Assessment NEW'!Y21 -> 0 | AZ61: Scores | BA61: FALSE
D62: 1.11 Where applicable, does the community use historic FIRM and FIS for permitting to verify the structure was built in compliance at the time of new construction? | E62: ='Diagnostic Assessment NEW'!M22 -> 0 | G62: ='Diagnostic Assessment NEW'!O22 -> 0 | H62: ='Diagnostic Assessment NEW'!Y22 -> 0 | AZ62: AOCs | BA62: FALSE
D63: 1.12 Does the community maintain copies of Letters of Map Changes (LOMCs)? | E63: ='Diagnostic Assessment NEW'!M23 -> 0 | G63: ='Diagnostic Assessment NEW'!O23 -> 0 | H63: ='Diagnostic Assessment NEW'!Y23 -> 0 | AZ63: Requested | BA63: FALSE
D64: Map Availability and Accuracy | G64: Section Score: | H64: ='Diagnostic Assessment NEW'!Q39 -> 0 | AZ64: Disaster | BA64: FALSE
D65: Question | E65: Response | F65: Score | G65: Findings and Notes | H65: Recommendations | AZ65: Follow Up
D66: 2.1 During permitting, how are the flood zone and Base Flood Elevation (BFE), or regulatory flood height determined by the FPA or designee? | E66: ='Diagnostic Assessment NEW'!M26 -> 0 | F66: ='Diagnostic Assessment NEW'!Q26 ->  | G66: =IF(BA21=1,BC21,'Diagnostic Assessment NEW'!O26) -> 0 | H66: ='Diagnostic Assessment NEW'!Y26 -> 0 | AZ66: Yes | BA66: FALSE
D67: 2.2 In reference to how the BFE and regulatory flood are height checked during plan review: is the BFE determined by the FPA office and provided to the applicant at permit initiation? | E67: ='Diagnostic Assessment NEW'!M27 -> 0 | F67: ='Diagnostic Assessment NEW'!Q27 ->  | G67: ='Diagnostic Assessment NEW'!O27 -> 0 | H67: ='Diagnostic Assessment NEW'!Y27 -> 0 | AZ67: No | BA67: FALSE
D68: 2.3 In reference to how the BFE and regulatory flood height are checked during plan review: is the BFE generated by the applicant/surveyor and verified before the permit is issued? | E68: ='Diagnostic Assessment NEW'!M28 -> 0 | F68: ='Diagnostic Assessment NEW'!Q28 ->  | G68: ='Diagnostic Assessment NEW'!O28 -> 0 | H68: ='Diagnostic Assessment NEW'!Y28 -> 0
D69: 2.4 Is there no Base Flood Elevation (BFE) in this community (e.g., only zone A)? | E69: ='Diagnostic Assessment NEW'!M29 -> 0 | G69: ='Diagnostic Assessment NEW'!O29 -> 0 | H69: ='Diagnostic Assessment NEW'!Y29 -> 0
D70: 2.4a. If yes to Q 2.4, describe how the community assures elevations are appropriate relative to adjacent ground level. | E70: =IF('Diagnostic Assessment NEW'!E30="YES",'Diagnostic Assessment NEW'!M30,"Answer Not Required") -> Answer Not Required | G70: ='Diagnostic Assessment NEW'!O30 -> 0 | H70: ='Diagnostic Assessment NEW'!Y30 -> 0
D71: 2.5 Are the most recent FIRMs and or FIS cited in the ordinance? | E71: ='Diagnostic Assessment NEW'!M31 -> 0 | G71: ='Diagnostic Assessment NEW'!O31 -> 0 | H71: ='Diagnostic Assessment NEW'!Y31 -> 0
D72: 2.5a. If the most recent FIRMs are cited, please indicate the date. | E72: =IF('Diagnostic Assessment NEW'!E32="YES",'Diagnostic Assessment NEW'!M32,"Answer Not Required") -> Answer Not Required | G72: ='Diagnostic Assessment NEW'!O32 -> 0 | H72: ='Diagnostic Assessment NEW'!Y32 -> 0
D73: 2.5b. If the most recent FISs are cited, please indicate the date. | E73: =IF('Diagnostic Assessment NEW'!E33="YES",'Diagnostic Assessment NEW'!M33,"Answer Not Required") -> Answer Not Required | G73: ='Diagnostic Assessment NEW'!O33 -> 0 | H73: ='Diagnostic Assessment NEW'!Y33 -> 0
D74: 2.6 Does the FPA use the MSC and/or NFHL when working with flood hazard map products, in addition to digital/paper FIRMs & FIS (where present)? | E74: ='Diagnostic Assessment NEW'!M34 -> 0 | G74: ='Diagnostic Assessment NEW'!O34 -> 0 | H74: ='Diagnostic Assessment NEW'!Y34 -> 0
D75: 2.7 Is the community using other maps or studies for regulating the floodplain? | E75: ='Diagnostic Assessment NEW'!M35 -> 0 | G75: =IF(BA22=1,BC22,'Diagnostic Assessment NEW'!O35) -> 0 | H75: ='Diagnostic Assessment NEW'!Y35 -> 0
D76: 2.8 Has there been a recent change to the community’s territorial or extraterritorial boundaries that affected SFHA? | E76: ='Diagnostic Assessment NEW'!M36 -> 0 | G76: =IF(BA23=1,BC23,'Diagnostic Assessment NEW'!O36) -> 0 | H76: ='Diagnostic Assessment NEW'!Y36 -> 0
D77: 2.9 Does the community require and initiate Letters of Map Change (LOMC) when appropriate? | E77: ='Diagnostic Assessment NEW'!M37 -> 0 | F77: ='Diagnostic Assessment NEW'!Q37 ->  | G77: =IF(BA24=1,BC24,'Diagnostic Assessment NEW'!O37) -> 0 | H77: ='Diagnostic Assessment NEW'!Y37 -> 0
D78: 2.9a if Yes or Sometimes was selected in 2.9, indicate those instances when they are used. | E78: =IF('Diagnostic Assessment NEW'!E38="YES",'Diagnostic Assessment NEW'!M38,"Answer Not Required") -> Answer Not Required | G78: ='Diagnostic Assessment NEW'!O38 -> 0 | H78: ='Diagnostic Assessment NEW'!Y38 -> 0
D79: Floodplain Management Regulations | G79: Section Score: | H79: ='Diagnostic Assessment NEW'!Q53 -> 0
D80: Question | E80: Response | F80: Score | G80: Findings and Notes | H80: Recommendations
D81: 3.1 Is the community actively ensuring as-built elevations are collected and reviewed? | E81: ='Diagnostic Assessment NEW'!M41 -> 0 | F81: ='Diagnostic Assessment NEW'!Q41 ->  | G81: =IF(BA25=1,BC25,'Diagnostic Assessment NEW'!O41) -> 0 | H81: ='Diagnostic Assessment NEW'!Y41 -> 0
D82: 3.2 Are other state and federal permits obtained and checked by the FPA office? | E82: ='Diagnostic Assessment NEW'!M42 -> 0 | F82: ='Diagnostic Assessment NEW'!Q42 ->  | G82: ='Diagnostic Assessment NEW'!O42 -> 0 | H82: ='Diagnostic Assessment NEW'!Y42 -> 0
D83: 3.3 During permit review, are lowest floor and utilities checked against BFE (or grade) to ensure proper elevation is proposed? | E83: ='Diagnostic Assessment NEW'!M43 -> 0 | F83: ='Diagnostic Assessment NEW'!Q43 ->  | G83: ='Diagnostic Assessment NEW'!O43 -> 0 | H83: ='Diagnostic Assessment NEW'!Y43 -> 0
D84: 3.4 An ordinance review was completed and can best be summarized as: | E84: ='Diagnostic Assessment NEW'!M44 -> 0 | F84: ='Diagnostic Assessment NEW'!Q44 ->  | G84: =IF(BA26=1,BC26,'Diagnostic Assessment NEW'!O44) -> 0 | H84: ='Diagnostic Assessment NEW'!Y44 -> 0
D85: 3.4a Briefly summarize ordinance review findings. | E85: ='Diagnostic Assessment NEW'!M45 -> 0 | G85: ='Diagnostic Assessment NEW'!O45 -> 0 | H85: ='Diagnostic Assessment NEW'!Y45 -> 0
D86: 3.5 For ordinances, does the state require higher standards than FEMA? | E86: ='Diagnostic Assessment NEW'!M46 -> 0 | G86: ='Diagnostic Assessment NEW'!O46 -> 0 | H86: ='Diagnostic Assessment NEW'!Y46 -> 0
D87: 3.5a If Yes to 3.5, has the community adopted these higher standards? | E87: =IF('Diagnostic Assessment NEW'!E47="YES",'Diagnostic Assessment NEW'!M47,"Answer Not Required") -> Answer Not Required | G87: ='Diagnostic Assessment NEW'!O47 -> 0 | H87: ='Diagnostic Assessment NEW'!Y47 -> 0
D88: 3.6 Are other regulations in the community coordinated with the floodplain ordinance(s)? | E88: ='Diagnostic Assessment NEW'!M48 -> 0 | G88: ='Diagnostic Assessment NEW'!O48 -> 0 | H88: ='Diagnostic Assessment NEW'!Y48 -> 0
D89: 3.6a If yes to 3.6, describe how these regulations are related/interrelated. | E89: =IF('Diagnostic Assessment NEW'!E49="YES",'Diagnostic Assessment NEW'!M49,"Answer Not Required") -> Answer Not Required | G89: ='Diagnostic Assessment NEW'!O49 -> 0 | H89: ='Diagnostic Assessment NEW'!Y49 -> 0
D90: 3.7 Are certain classes of development exempted from NFIP regulations (at state/county/local level)? | E90: ='Diagnostic Assessment NEW'!M50 -> 0 | F90: ='Diagnostic Assessment NEW'!Q50 ->  | G90: =IF(BA27=1,BC27,'Diagnostic Assessment NEW'!O50) -> 0 | H90: ='Diagnostic Assessment NEW'!Y50 -> 0
D91: 3.7a If yes to 3.7, describe these exemptions. | E91: =IF('Diagnostic Assessment NEW'!E51="YES",'Diagnostic Assessment NEW'!M51,"Answer Not Required") -> Answer Not Required | G91: ='Diagnostic Assessment NEW'!O51 -> 0 | H91: ='Diagnostic Assessment NEW'!Y51 -> 0
D92: 3.8 Indicate the approximate number of permits granted for development in the SFHA in the last three (3) years. | E92: ='Diagnostic Assessment NEW'!M52 -> 0 | G92: ='Diagnostic Assessment NEW'!O52 -> 0 | H92: ='Diagnostic Assessment NEW'!Y52 -> 0
D93: Standardized Processes | G93: Section Score: | H93: ='Diagnostic Assessment NEW'!Q79 -> 0
D94: Question | E94: Response | F94: Score | G94: Findings | H94: Recommendations
D95: 4.1 Which option best describes the community's permitting process? | E95: ='Diagnostic Assessment NEW'!M55 -> 0 | F95: ='Diagnostic Assessment NEW'!Q55 ->  | G95: =IF(BA28=1,BC28,'Diagnostic Assessment NEW'!O55) -> 0 | H95: ='Diagnostic Assessment NEW'!Y55 -> 0
D96: 4.1a Describe the permitting process narrative and coordination. | E96: ='Diagnostic Assessment NEW'!M56 -> 0 | G96: ='Diagnostic Assessment NEW'!O56 -> 0 | H96: ='Diagnostic Assessment NEW'!Y56 -> 0
D97: 4.2 With regard to the community permitting process, and if the zones apply to the community, are floodway proposals reviewed and documented correctly? | E97: ='Diagnostic Assessment NEW'!M57 -> 0 | F97: ='Diagnostic Assessment NEW'!Q57 ->  | G97: ='Diagnostic Assessment NEW'!O57 -> 0 | H97: ='Diagnostic Assessment NEW'!Y57 -> 0
D98: 4.3 With regard to the community permitting process, and if the zones apply to the community, are coastal high hazard areas V zones foundation and design standards met? | E98: ='Diagnostic Assessment NEW'!M58 -> 0 | F98: ='Diagnostic Assessment NEW'!Q58 ->  | G98: ='Diagnostic Assessment NEW'!O58 -> 0 | H98: ='Diagnostic Assessment NEW'!Y58 -> 0
D99: 4.3a If yes to question 4.3, please indicate specifics. | E99: =IF('Diagnostic Assessment NEW'!E59="YES",'Diagnostic Assessment NEW'!M59,"Answer Not Required") -> Answer Not Required | G99: ='Diagnostic Assessment NEW'!O59 -> 0 | H99: ='Diagnostic Assessment NEW'!Y59 -> 0
D100: 4.4 Which option best describes the community's Substantial Improvement, Substantial Damage (SI/SD) administration? | E100: ='Diagnostic Assessment NEW'!M60 -> 0 | F100: ='Diagnostic Assessment NEW'!Q60 ->  | G100: =IF(BA29=1,BC29,'Diagnostic Assessment NEW'!O60) -> 0 | H100: ='Diagnostic Assessment NEW'!Y60 -> 0
D101: 4.4a Describe the community's SI/SD administration. | E101: ='Diagnostic Assessment NEW'!M61 -> 0 | G101: ='Diagnostic Assessment NEW'!O61 -> 0 | H101: ='Diagnostic Assessment NEW'!Y61 -> 0
D102: 4.5 With regard to the market value source that the community uses or requires from applicant for SI/SD, what source does the community use? | E102: ='Diagnostic Assessment NEW'!M62 -> 0 | G102: ='Diagnostic Assessment NEW'!O62 -> 0 | H102: ='Diagnostic Assessment NEW'!Y62 -> 0
D103: 4.6 How are the BFE and or the regulatory flood height checked during plan review? | E103: ='Diagnostic Assessment NEW'!M63 -> 0 | F103: ='Diagnostic Assessment NEW'!Q63 ->  | G103: =IF(BA30=1,BC30,'Diagnostic Assessment NEW'!O63) -> 0 | H103: ='Diagnostic Assessment NEW'!Y63 -> 0
D104: 4.7 Does the community have engineering staff or similar capacity at the permit review process, including floodway development reviews (H&H Study and supporting no-rise documentation) as applicable? | E104: ='Diagnostic Assessment NEW'!M64 -> 0 | F104: ='Diagnostic Assessment NEW'!Q64 ->  | G104: ='Diagnostic Assessment NEW'!O64 -> 0 | H104: ='Diagnostic Assessment NEW'!Y64 -> 0
D105: 4.8 When are inspections of floodplain development performed by responsible community officials? | E105: ='Diagnostic Assessment NEW'!M65 -> 0 | F105: ='Diagnostic Assessment NEW'!Q65 ->  | G105: =IF(BA31=1,BC31,'Diagnostic Assessment NEW'!O65) -> 0 | H105: ='Diagnostic Assessment NEW'!Y65 -> 0
D106: 4.9 Are floodproofing certifications collected for non-residential structures? | E106: ='Diagnostic Assessment NEW'!M66 -> 0 | F106: ='Diagnostic Assessment NEW'!Q66 ->  | G106: ='Diagnostic Assessment NEW'!O66 -> 0 | H106: ='Diagnostic Assessment NEW'!Y66 -> 0
D107: 4.10 Does the community have recent watercourse alterations that change the BFE and/or location of SFHA?(within the last five years, or since the last audit)? | E107: ='Diagnostic Assessment NEW'!M67 -> 0 | G107: ='Diagnostic Assessment NEW'!O66 -> 0 | H107: ='Diagnostic Assessment NEW'!Y66 -> 0
D108: 4.11 Does the community have recent capital improvement projects (e.g., roads and bridges, etc.,)(within the last five years, or since the last audit) that may require review: ? | E108: ='Diagnostic Assessment NEW'!M68 -> 0 | G108: ='Diagnostic Assessment NEW'!O67 -> 0 | H108: ='Diagnostic Assessment NEW'!Y67 -> 0
D109: 4.12 Does the community have recent other large construction projects (within the last five years, or since the last audit)? | E109: ='Diagnostic Assessment NEW'!M69 -> 0 | G109: ='Diagnostic Assessment NEW'!O68 -> 0 | H109: ='Diagnostic Assessment NEW'!Y68 -> 0
D110: 4.13 Does the community have recent critical facilities projects (within the last five years, or since the last audit)? | E110: ='Diagnostic Assessment NEW'!M70 -> 0 | G110: ='Diagnostic Assessment NEW'!O69 -> 0 | H110: ='Diagnostic Assessment NEW'!Y69 -> 0
D111: 4.14 With regard to the community permitting process, and if the zones apply to the community, are subdivisions and large developments in Zone A checked for 50 lot/5 acre threshold? | E111: ='Diagnostic Assessment NEW'!M72 -> 0 | F111: ='Diagnostic Assessment NEW'!Q72 ->  | G111: ='Diagnostic Assessment NEW'!O70 -> 0 | H111: ='Diagnostic Assessment NEW'!Y70 -> 0
D112: 4.15 Does the community have recent (within the last five years, or since the last audit) non-structural development - items not typically covered by building permit (e.g., fill/grading, storage of equipment/materials, paving) that may require review? | E112: ='Diagnostic Assessment NEW'!M73 -> 0 | G112: ='Diagnostic Assessment NEW'!O72 -> 0 | H112: ='Diagnostic Assessment NEW'!Y72 -> 0
D113: 4.16 Has the community experienced a flood disaster event INSIDE the SFHA in the past 5 years resulting in damaged structures? | E113: ='Diagnostic Assessment NEW'!M74 -> 0 | G113: ='Diagnostic Assessment NEW'!O73 -> 0 | H113: ='Diagnostic Assessment NEW'!Y73 -> 0
D114: 4.17 Has the community experienced a non-flood disaster (e.g., fire, wind, earthquake) event INSIDE the SFHA in the past 5 years resulting in damaged structures? | E114: ='Diagnostic Assessment NEW'!M75 -> 0 | G114: ='Diagnostic Assessment NEW'!O74 -> 0 | H114: ='Diagnostic Assessment NEW'!Y74 -> 0
D115: 4.18 If yes to either 4.16 or 4.17, describe the type of event, the impacted area, damage estimates or summary, and any declared disaster level (state/federal) in the space shaded gold to the right. | E115: =IF('Diagnostic Assessment NEW'!E76="YES",'Diagnostic Assessment NEW'!M76,"Answer Not Required") -> Answer Not Required | G115: ='Diagnostic Assessment NEW'!O75 -> 0 | H115: ='Diagnostic Assessment NEW'!Y75 -> 0
D116: 4.19 Has the community experienced any disaster event OUTSIDE the SFHA in the past 5 years resulting in flood damaged structures? | E116: ='Diagnostic Assessment NEW'!M77 -> 0 | G116: ='Diagnostic Assessment NEW'!O76 -> 0 | H116: ='Diagnostic Assessment NEW'!Y76 -> 0
D117: 4.20 If yes to 4.19, describe the type of event, the impacted area, summary of flood damages, and possible indicators of map change (or flood study) needs in the space shaded gold to the right. | E117: =IF('Diagnostic Assessment NEW'!E78="YES",'Diagnostic Assessment NEW'!M78,"Answer Not Required") -> Answer Not Required | G117: ='Diagnostic Assessment NEW'!O77 -> 0 | H117: ='Diagnostic Assessment NEW'!Y77 -> 0
H118: ='Diagnostic Assessment NEW'!Q97 -> 
BB246: TRUE

Sheet Diagnostic Assessment Graphics
E1: PRE-DECISIONAL DRAFT
D2: National Floodplain Insurance Program (NFIP) | L2: Diagnostic Assessment Summary V2
J6: Table 1: Audit Score Summary by FPM Program Category | Q6: Do Not Modify | V6: Do Not Modify
J8: Theme | K8: Your Community's Score | L8: Max Score | M8: Percent Contribution (current) | N8: Percent Contribution (goal) | O8: Number of Questions | Q8: Change in % Cont. To meet Goal | S8: Multiple to adjust % Contribution | V8: Multiplier to Standardize Score to 100% | W8: 1.02
J9: Floodplain Administrator Capability, Capacity, and Institutional Support | K9: ='Diagnostic Assessment NEW'!Q24 -> 0 | L9: ='Diagnostic Assessment NEW'!S24 -> 15 | M9: =(L9/'Diagnostic Assessment NEW'!$S$80) -> 15% | N9: 15% | O9: =COUNTIF('Diagnostic Assessment NEW'!D7:D23,">0") -> 17 | Q9: =N9-M9 -> 0% | S9: 0.42
J10: Map Availability and Accuracy | K10: ='Diagnostic Assessment NEW'!Q39 -> 0 | L10: ='Diagnostic Assessment NEW'!S39 -> 15 | M10: =(L10/'Diagnostic Assessment NEW'!$S$80) -> 15% | N10: 15% | O10: =COUNTIF('Diagnostic Assessment NEW'!D26:D38,">0") -> 13 | Q10: =N10-M10 -> 0% | S10: 0.60
J11: Floodplain Management Regulations | K11: ='Diagnostic Assessment NEW'!Q53 -> 0 | L11: ='Diagnostic Assessment NEW'!S53 -> 40 | M11: =(L11/'Diagnostic Assessment NEW'!$S$80) -> 40% | N11: 40% | O11: =COUNTIF('Diagnostic Assessment NEW'!D41:D52,">0") -> 12 | Q11: -0% | S11: 1.52
J12: Standardized Processes | K12: ='Diagnostic Assessment NEW'!Q79 -> 0 | L12: ='Diagnostic Assessment NEW'!S79 -> 30 | M12: =(L12/'Diagnostic Assessment NEW'!$S$80) -> 30% | N12: 30% | O12: =COUNTIF('Diagnostic Assessment NEW'!D55:D78,">0") -> 24 | Q12: -0% | S12: 0.70
J13: Total Score | K13: =SUM(K9:K12) -> 0 | L13: =SUM(L9:L12) -> 100 | M13: =SUM(M9:M12) -> 100% | N13: =SUM(N9:N12) -> 100% | O13: =SUM(O9:O12) -> 66
J16: Table 2: Audit Score Summary
J17: =J8 -> Theme | L17: =K8 -> Your Community's Score | M17: Max Score | N17: Percent | Q17: 90% | R17: 80% | S17: 70% | T17: 60% | U17: 50%
J18: =J9 -> Floodplain Administrator Capability, Capacity, and Institutional Support | L18: 0 | M18: 15 | N18: =IFERROR(L18/M18, "Section Incomplete") -> 0% | Q18: =M18*0.9 -> 13.3 | R18: =0.8*M18 -> 11.82384 | S18: =0.7*M18 -> 10.34586 | T18: =0.6*M18 -> 8.86788 | U18: =0.5*M18 -> 7.3899
J19: Map Availability and Accuracy | L19: 0 | M19: 15 | N19: =IFERROR(L19/M19, "Section Incomplete") -> 0% | Q19: =M19*0.9 -> 13.2 | R19: =0.8*M19 -> 11.7504 | S19: =0.7*M19 -> 10.2816 | T19: =0.6*M19 -> 8.8128 | U19: =0.5*M19 -> 7.344
J20: Floodplain Management Regulations | L20: 0 | M20: 40 | N20: =IFERROR(L20/M20, "Section Incomplete") -> 0% | Q20: 36.3 | R20: 32.24832 | S20: 28.21728 | T20: 24.18624 | U20: 20.1552
J21: Standardized Processes | L21: 0 | M21: 30 | N21: =IFERROR(L21/M21, "Section Incomplete") -> 0% | Q21: 27.3 | R21: 24.24132 | S21: 21.211155 | T21: 18.18099 | U21: 15.150825
J22: Total Score | L22: 0 | M22: 100 | N22: =L22/M22 -> 0%

Sheet Evaluation Tool
C1: Evaluation Tool V2.0 PRE-DECISIONAL DRAFT | F1: 4 | G1: 3 | H1: 2 | I1: 1 | J1: 0
C2: # | D2: Theme | E2: Question | F2: Minimal to No Impact to Compliance (4) | G2: Low Impact to Compliance (3) | H2: Moderate Impact to Compliance (2) | I2: High Impact to Compliance (1) | J2: Very High Impact to Compliance (0) | K2: Your Response (Auditor Data Entry) | L2: Raw Score | M2: Weighted Score | N2: Max Possible Weighted Score | O2: Assigned Weight | P2: Findings (Auditor Data Entry) | Q2: Reference(s) (Auditor Data Entry) | R2: Recommendation(s) (Auditor Data Entry) | S2: Estimated Close Out Date (Auditor Data Entry)
C3: FPA Capability, Capacity and Institutional Support: (Does the official responsible for regulating/enforcing the NFIP have the required expertise, knowledge, technical capabilities and institutional support?)
C4: 1 | D4: Floodplain Administrator Capability, Capacity, and Institutional Support | E4: 1.1: How many years of floodplain management experience does the Floodplain Administrator have ? | F4: More than 10 years | G4: 5-10 years | H4: 2-5 years | I4: Less than 2 years | J4: No one is currently in this role | L4: =(_xlfn.IFS(K4="More than 10 years",4,K4="5-10 years",3,K4="2-5 years",2,K4="Less than 2 years and at least 5 years total relevant experience",2,K4="Less than 2 years",1,K4="No one is currently in this role",0)) ->  | M4: =L4*O4 ->  | N4: =4*O4 -> 4 | O4: 1
C5: 2 | E5: 1.2: Is the Floodplain Administrator a Certified Floodplain Manager (CFM)? | F5: Yes | G5: No | L5: =(_xlfn.IFS(K5="Yes",4,K5="No",3)) ->  | M5: =L5*O5 ->  | N5: =4*O5 -> 2 | O5: 0.5
C6: 3 | E6: 1.3: What is the Floodplain Administrator’s familiarity with FEMA maps and study data? Specifically, what products are being used when reviewing permits? For each type/row in question 1.3.1-1.3.5 please select one response. MULTIPART QUESTION, SEE 1.3.1 - 1.3.5 BELOW | L6: Raw Score | M6: Weighted Score
D7: Floodplain Administrator Capability, Capacity, and Institutional Support | E7: 1.3.1: Are effective flood insurance rate maps (digital or paper) used? | F7: Yes | J7: No | L7: =IF(K7="Yes",4,IF(K7="No",0)) -> FALSE | M7: =L7*O7 -> 0 | N7: =4*O7 -> 2 | O7: 0.5
E8: 1.3.2: Are effective flood insurance study (digital or paper) used? | F8: Yes | J8: No | L8: =IF(K8="Yes",4,IF(K8="No",0)) -> FALSE | M8: =L8*O8 -> 0 | N8: =4*O8 -> 2 | O8: 0.5
E9: 1.3.3: Are historic FIS or FIRMs used? | F9: Yes | J9: No | L9: FALSE | M9: =L9*O9 -> 0 | N9: =4*O9 -> 2 | O9: 0.5
E10: 1.3.4: Are letters of map change (digital or paper) used? | F10: Yes | J10: No | L10: FALSE | M10: =L10*O10 -> 0 | N10: =4*O10 -> 2 | O10: 0.5
E11: 1.3.5: Are other best available data used? | F11: Yes | J11: No | L11: FALSE | M11: =L11*O11 -> 0 | N11: 2 | O11: 0.5
C12: 4 | E12: 1.4: What sources does the FPA use when working with FEMA map products and study data? | L12: Raw Score | M12: Weighted Score
D13: Floodplain Administrator Capability, Capacity, and Institutional Support | E13: 1.4.1: FEMA Map Service Center (MSC) and/or National Flood Hazard Layer (NFHL) tool | F13: Yes uses these tools | J13: No does not use these tools | L13: =IF(K13="Yes uses these tools",4,IF(K13="No does not use these tools",0)) -> FALSE | M13: =L13*O13 -> 0 | N13: =4*O13 -> 2 | O13: 0.5
E14: 1.4.2: Local GIS Software | F14: Yes uses these tools | J14: No does not use these tools | L14: FALSE | M14: 0 | N14: =4*O14 -> 2 | O14: 0.5
C15: 5 | E15: 1.5: Is the Floodplain Management program adequately staffed? | F15: FPM is staffed to meet current and expected future needs | G15: FPM is staffed to meet current but not future needs | H15: FPM is staffed to meet periodic or emergent needs only | I15: FPM is rarely adequately staffed | J15: FPM is not adequately staffed | L15: =(_xlfn.IFS(K15="FPM is staffed to meet current and expected future needs",4,K15="FPM is staffed to meet current but not future needs",3,K15="FPM is staffed to meet periodic or emergent needs only",2,K15="FPM is rarely adequately staffed",1,K15="FPM is not adequately staffed ",0)) ->  | N15: 4 | O15: 1
C16: 6 | E16: 1.6: Is the Floodplain Management program adequately resourced (i.e., has sufficient budget)? | F16: FPM is resourced to meet current and expected future needs | G16: FPM is resourced to meet current but not future needs | H16: FPM is resourced to meet periodic or emergent needs only | I16: FPM is rarely adequately resourced | J16: FPM is not adequately resourced | L16: =(_xlfn.IFS(K16="FPM is resourced to meet current and expected future needs",4,K16="FPM is resourced to meet current but not future needs",3,K16="FPM is resourced to meet periodic or emergent needs only",2,K16="FPM is rarely adequately resourced",1,K16="FPM is not adequately resourced",0)) ->  | N16: 2 | O16: 0.5
C17: 7 | E17: 1.7: Is the FPM program's position in the organization appropriate to ensure effectiveness in carrying out its duties? | F17: Yes | J17: No | L17: =(_xlfn.IFS(K17="Yes",4,K17="No",0)) ->  | N17: 4 | O17: 1
C18: 8 | E18: 1.8: Does the FPA sufficiently interact/communicate with the mayor/council/CEO to ensure continued community support for the FPM program? | F18: Yes | J18: No | L18: =(_xlfn.IFS(K18="Yes",4,K18="No",0)) ->  | N18: 4 | O18: 1
C19: Subtotal from Section 1 Above | L19: =_xlfn.IFNA(SUM(L4:L18),"Section Incomplete") -> Section Incomplete | M19: =_xlfn.IFNA(SUM(M4:M18)*'Evaluation Tool Graphics'!S9*'Evaluation Tool Graphics'!W8,"Section Incomplete") -> Section Incomplete | N19: =SUM(N4:N18)*'Evaluation Tool Graphics'!S9*'Evaluation Tool Graphics'!W8 -> 15
C20: Map Availability and Accuracy: (Is the community regulating/enforcing against its most accurate risk assessment?)
C21: 9 | D21: Map Availability and Accuracy | E21: 2.1: In the past 3-5 years has the community experienced significant flooding outside of the mapped SFHA and provided that information to FEMA? | F21: No | J21: Yes | L21: =(_xlfn.IFS(K21="No",4,K21="Yes",0)) ->  | M21: =L21*O21 ->  | N21: =4*O21 -> 2 | O21: 0.5
C22: 10 | E22: 2.2: Has the community adopted the correct FIRMs and FIS for the entirety of its community boundary (including any recent annexations)? | F22: Yes | J22: No | L22: =(_xlfn.IFS(K22="No",0,K22="Yes",4)) ->  | M22: =L22*O22 ->  | N22: =4*O22 -> 2 | O22: 0.5
C23: 11 | E23: 2.3: Is the community properly obtaining LOMCs to reflect current or changing flood risk? | F23: Yes or NA - No Recent Development Pressure Requiring LOMCs | J23: No | L23: =(_xlfn.IFS(K23="Yes",4,K23="No",0,K23="NA no recent development pressure requiring LOMCs",4)) ->  | M23: =L23*O23 ->  | N23: =4*O23 -> 4 | O23: 1
D24: Subtotal from Section 2 Above | L24: =_xlfn.IFNA(SUM(L21:L23),"Section Incomplete") -> Section Incomplete | M24: =_xlfn.IFNA(SUM(M21:M23)*'Evaluation Tool Graphics'!S10*'Evaluation Tool Graphics'!W8,"Section Incomplete") -> Section Incomplete | N24: =SUM(N21:N23)*'Evaluation Tool Graphics'!S10*'Evaluation Tool Graphics'!W8 -> 15
D25: Floodplain Management Regulations: (Is the community's ordinance up to date and how is it being enforced?)
C26: 12 | D26: Floodplain Management Regulations | E26: 3.1: Since the last audit (CAV or CAC), has there been any development in the SFHA or is any currently planned? | F26: No | J26: Yes | K26: Yes | L26: =(_xlfn.IFS(K26="Yes",0,K26="No",4)) -> 0 | M26: =L26*O26 -> 0 | N26: 2 | O26: 0.5
C27: 13 | E27: 3.2: If yes to question 3.1 above, how many permits has the Floodplain Administrator issued for development (both structural and non-structural) in the SFHA since the last audit? | F27: Less than 10 or NA | G27: 10 to 99 | H27: 100 to 499 | I27: 500 to 999 | J27: 1000 or more | L27: =(_xlfn.IFS(K27="Less than 10 or NA",4,K27="10 to 99",3,K27="100 to 499",2,K27="500 to 999",1,K27="1000 or more",0)) ->  | M27: =L27*O27 ->  | N27: 4 | O27: 1
C28: 14 | E28: 3.3: How does the community maintain as-built elevation data? | F28: As built data is maintained with ECs | H28: As built data is maintained but do not use ECs | J28: As built elevation data not maintained or unknown | L28: =(_xlfn.IFS(K28="As built data is maintained with ECs",4,K28="As built data is maintained but do not use ECs",2,K28="As built data not maintained or unknown",0)) ->  | M28: =L28*O28 ->  | N28: 4 | O28: 1
C29: 15 | E29: 3.4: Is the community's current FPM Regulation compliant with NFIP minimum standards? (Auditor to complete Floodplain Management Regulations Review Checklist) | F29: Yes | J29: No | L29: =(_xlfn.IFS(K29="Yes",4,K29="No",0)) ->  | M29: =L29*O29 ->  | N29: 10 | O29: 2.5
C30: 16 | E30: 3.5: How many compliance issues does the community currently have by category? (Multi-part question: enter whole numbers for 3.5.1 - 3.5.14 below; a blank indicates zero/none for that category) | K30: Your Response: (Auditor Data Entry) How many current compliance issues have been identified in each area | L30: =SUM(L31:L44) -> 0 | M30: =MAX(M31+M32+M33+M34+M35+M36+M37+M38+M39+M40+M42+M43+M44+12,0) -> 12 | N30: 12
D31: Floodplain Management Regulations | E31: 3.5.1 Floodways (unpermitted encroachments, permitted without no-rise analysis, or no-rise analysis inaccurate/insufficient) | L31: =K31 -> 0 | M31: =L31*O31 -> 0 | O31: -2
E32: 3.5.2 V Zone standards not met (foundation type, breakaway walls, V Zone certification) | L32: 0 | M32: =L32*O32 -> 0 | O32: -2
E33: 3.5.3 Basements (new construction or SI) | L33: 0 | M33: 0 | O33: -1
E34: 3.5.4 Insufficient elevation of residential structures | L34: 0 | M34: 0 | O34: -1
E35: 3.5.5 Insufficient elevation/floodproofing of non-residential structures | L35: 0 | M35: 0 | O35: -1
E36: 3.5.6 Insufficient flood openings (all structure types) | L36: 0 | M36: 0 | O36: -1
E37: 3.5.7 As-built elevation information lacking (all structure types) | L37: 0 | M37: 0 | O37: -0.5
E38: 3.5.8 Lacking SI/SD assessments | L38: 0 | M38: 0 | O38: -0.5
E39: 3.5.9 Not following Letter of Map Change (LOMC) procedures (changing drainages or streams, undocumented watercourse alterations) | L39: 0 | M39: 0 | O39: -0.25
E40: 3.5.10 In Zone A, developments (>50 lots or 5 acres) lacking development of BFEs | L40: 0 | M40: 0 | O40: -0.25
E41: 3.5.11 In AO-Zone, developments (>50 lots or 5 acres) lacking development of BFEs | L41: =K41 -> 0 | M41: =L41*O41 -> 0 | O41: -0.25
E42: 3.5.12 Unpermitted fill/grading | L42: 0 | M42: 0 | O42: -0.25
E43: 3.5.13 Other (non-structural) development (e.g., dredging, storage of materials, insufficient drainage, non-compliant RVs) | L43: 0 | M43: 0 | O43: -0.25
E44: 3.5.14 Insufficient elevation or floodproofing of building service machinery in non-residential structures | L44: =K44 -> 0 | M44: 0 | O44: -0.25
C45: 17 | D45: Floodplain Management Regulations | E45: 3.6: How many variances (non-complaint 44CFR 60.6) has the community granted to its floodplain management standards? | L45: 0 | M45: =L45*O45 -> 0 | O45: -0.25
C46: 18 | E46: 3.7 How many of the variances in question 3.6 above are not in accordance with the community's own floodplain management policies/standards? | F46: 0 | G46: 1 | H46: 2 | I46: 3 | J46: 4 or more | L46: =(IF(K46=0,4,IF(K46=1,3,IF(K46=2,2,IF(K46=3,1,0))))) -> 4 | M46: =L46*O46 -> 4 | N46: 4 | O46: 1
C47: 19 | E47: 3.8 When you encounter conflicting regulations do you always enforce the stricter regulation? | F47: Yes | J47: No | L47: =(_xlfn.IFS(K47="Yes",4,K47="No",0)) ->  | M47: =L47*O47 ->  | N47: =4*O47 -> 4 | O47: 1
C48: Subtotal from Section 3 Above | L48: =_xlfn.IFNA(SUM(L26:L30,L45:L47),"Section Incomplete") -> Section Incomplete | M48: =_xlfn.IFNA(SUM(M26:M30,M45:M47)*'Evaluation Tool Graphics'!S11*'Evaluation Tool Graphics'!W8,"Section Incomplete") -> Section Incomplete | N48: =SUM(N26:N30,N45:N47)*'Evaluation Tool Graphics'!S11*'Evaluation Tool Graphics'!W8 -> 33
D49: Standardized Processes: (Does the community have an effective record-keeping process?)
C50: 20 | D50: Standardized Processes | E50: 4.1. Does the Floodplain Management Program have a permitting process developed and in use for the following options within the SFHA? | K50: Your Response (Auditor Data Entry) - Select All that Apply | L50: =SUM(L51:L64) -> 0 | M50: =SUM(M51:M64) -> 0.0 | N50: 8
E51: 4.1.1 Residential structures (including subdivisions) | L51: =IF(OR(K51="yes", K51="N/A"),1,0) -> 0 | M51: =L51*O51 -> 0 | O51: 1
E52: 4.1.2 V Zone construction (certification, review) | L52: =IF(OR(K52="yes", K52="N/A"),1,0) -> 0 | M52: 0 | O52: 1
E53: 4.1.3 Floodway encroachment (no-rise analysis review) | L53: 0 | M53: 0 | O53: 1
E54: 4.1.4 Commercial/non-residential structures | L54: 0 | M54: 0 | O54: 1
E55: 4.1.5 Substantial Improvement (SI) of structures | L55: 0 | M55: 0 | O55: 1
E56: 4.1.6 Substantial Damage (SD) of structures | L56: 0 | M56: 0 | O56: 1
E57: 4.1.7 Variances | L57: 0 | M57: 0 | O57: 1
E58: 4.1.8 CLOMR/LOMR (e.g., watercourse alterations, floodway development, culverts) | L58: 0 | M58: 0 | O58: 0.143
E59: 4.1.9 Recreational Vehicles | L59: 0 | M59: 0 | O59: 0.143
E60: 4.1.10 Accessory structures | L60: 0 | M60: 0 | O60: 0.143
E61: 4.1.11 Agricultural structures | L61: =IF(OR(K61="yes", K61="N/A"),1,0) -> 0 | M61: =L61*O61 -> 0 | O61: 0.143
E62: 4.1.12 Fill/grading | L62: 0 | M62: 0 | O62: 0.143
E63: 4.1.13 Other non-structural development as defined in 59.1 | L63: 0 | M63: 0 | O63: 0.143
E64: 4.1.14 Other federal/state/local necessary permits | L64: 0 | M64: 0 | O64: 0.143
C65: 21 | D65: Standardized Processes | E65: 4.2: Does the community conduct inspections to ensure that every structure is built in accordance with floodplain management regulations? | F65: Yes | H65: Sometimes | J65: No | L65: =(_xlfn.IFS(K65="Yes",4,K65="Sometimes",2,K65="No",0)) ->  | M65: =L65*O65 ->  | N65: 4 | O65: 1
C66: 22 | E66: 4.3 When does the community conduct inspections to ensure that structures are built as required for flood regulations? | F66: BOTH at foundation completion before beginning vertical AND at as builts before certificate of occupancy | G66: At as builts before certificate of occupancy | I66: At foundation completion before beginning vertical | J66: Never | L66: =(_xlfn.IFS(K66="BOTH at foundation completion before beginning vertical AND at as builts before certificate of occupancy",4,K66="At as builts before certificate of occupancy",3,K66="At foundation completion before beginning vertical",1,K66="Never",0)) ->  | N66: 4 | O66: 1
C67: 23 | E67: 4.4: Are the Floodplain Management program's SOPs and processes/procedures consistently used to perform the functions of the FPM program? | F67: Used for all activities | G67: Used for most activities with some gaps | I67: Not used for most activities | J67: Not used for any activities or unknown | L67: =(_xlfn.IFS(K67="Used for all Activities",4,K67="Used for most activities with some gaps",3,K67="Not used for most activities",1,K67="Not used for any activities or unknown",0)) ->  | N67: 4 | O67: 1
C68: 24 | E68: 4.5 Are permit records well organized and easily accessible? | F68: Permits are accessible within 1 business day | G68: Permits are accessible within 2-5 business days | I68: Permits are accessible within 6-10 business days | J68: Permits are accessible after 10 business days | L68: =(_xlfn.IFS(K68="Permits are accessible within 1 business day",4,K68="Permits are accessible within 2-5 business days",3,K68="Permits are accessible within 6-10 business days",1,K68="Permits are accessible after 10 business days",0)) ->  | N68: 4 | O68: 1
C69: 25 | E69: 4.6 Are variance records well organized and easily accessible? | F69: Variances are accessible within 1 business day | G69: Variances are accessible within 2-5 business days | I69: Variances are accessible within 6-10 business days | J69: Variances are accessible after 10 business days | L69: =(_xlfn.IFS(K69="Variances are accessible within 1 business day",4,K69="Variances are accessible within 2-5 business days",3,K69="Variances are accessible within 6-10 business days",1,K69="Variances are accessible after 10 business days",0)) ->  | M69: =L69*O69 ->  | N69: 4 | O69: 1
C70: 26 | E70: 4.7: Are the Floodplain Management program's SOPs and processes/procedures reviewed and updated on a regular basis (e.g., every 3 years)? | F70: All undergo regular review and update | G70: Many undergo regular review and update | I70: Few undergo regular review and update or only update in response to a process change | J70: No SOPs exist or none undergo regular review and update | L70: =(_xlfn.IFS(K70="All undergo regular review and update",4,K70="Many undergo regular review and update",3,K70="Few undergo regular review and update or only update in response to a process change",1,K70="No SOPs exist or none undergo regular review and update",0)) ->  | N70: 4 | O70: 1
C71: 27 | E71: 4.8: Does the community coordinate with other departments on floodplain management regulations? | F71: Full coordination across all other departments | H71: Coordination across some but not all departments | J71: No coordination outside the planning department | L71: =(_xlfn.IFS(K71="Full coordination across all other departments",4,K71="Coordination across some but not all departments",2,K71="No coordination outside the planning department",0)) ->  | N71: 4 | O71: 1
C72: Subtotal from Section 4 Above | L72: =_xlfn.IFNA(SUM(L50,L65:L71),"Section Incomplete") -> Section Incomplete | M72: =_xlfn.IFNA(SUM(M50,M65:M71)*'Evaluation Tool Graphics'!S12*'Evaluation Tool Graphics'!W8,"Section Incomplete") -> Section Incomplete | N72: =SUM(N50:N71)*'Evaluation Tool Graphics'!S12*'Evaluation Tool Graphics'!W8 -> 31
C73: =MID(CELL("filename"),SEARCH("[",CELL("filename"))+1, SEARCH("]",CELL("filename"))-SEARCH("[",CELL("filename"))-1) -> NFIP Compliance Audit Tools V2.0-Final_Rev_06132022.xlsm | K73: Weighted Total Score | M73: =SUM(M72,M48,M24,M19)*'Evaluation Tool Graphics'!W8 -> 0 | N73: =SUM(N72,N48,N24,N19)*'Evaluation Tool Graphics'!W8 -> 94

Sheet Evaluation Tool Report
B1: PRE-DECISIONAL DRAFT | D1: PRE-DECISIONAL DRAFT
B2: Note to Auditor: The fields on this report are automatically filled in from: Administrative Info Tab Evaluation Tool Tab This report can be saved as a PDF or printed in its entirety | D2: National Flood Insurance Program (NFIP) EVALUATION TOOL SUMMARY REPORT V2.0 | H2: ='Administrative Info'!F10 -> <enter audit date MM/DD/YYYY> | J2: Section Status Summary
D4: Location: | E4: ='Administrative Info'!F6&'Administrative Info'!F7&'Administrative Info'!F11 -> <enter community name here><enter county here><enter 2-letter state ID here> | H4: ='Administrative Info'!E12&'Administrative Info'!F12 -> CID:<enter 6-digit CID here> | J4: Evaluation Tool Section Status is Provided Below
D5: Floodplain Administrator: | E5: ='Administrative Info'!F13 -> <Enter FPA Name Here> | F5: ='Administrative Info'!F14&'Administrative Info'!F15 -> <enter FPA phone number><enter FPA email address> | J5: Section | L5: Satus
D6: Agency Conducting Audit: | E6: ='Administrative Info'!F21 -> <enter name of agency> | J6: Section 1 - FPA Capabillity, Capacity and Institutional Support | L6: =IF('Evaluation Tool'!M19="Section Incomplete",'Evaluation Tool'!M19, "Complete") -> Section Incomplete
D7: Audit POC: | E7: ='Administrative Info'!F22 -> <enter name of auditor and title> | F7: ='Administrative Info'!F23 -> <enter auditor phone> | H7: ='Administrative Info'!F24 -> <enter auditor email address>
D8: Audit Reviewer: | E8: ='Administrative Info'!F25 -> <enter audit reviewer name> | F8: ='Administrative Info'!F26 -> <enter audit reviewer phone number> | H8: ='Administrative Info'!F27 -> <enter audit reviewer email address> | J8: Section 2 - Map Availability and Accuracy | L8: =IF('Evaluation Tool'!M24="Section Incomplete",'Evaluation Tool'!M24, "Complete") -> Section Incomplete
D9: Community Contact Date: | E9: ='Administrative Info'!F9 -> <enter date of community contact MM/DD/YYYY> | G9: Diagnostic Assessment Date: | H9: ='Administrative Info'!F8 -> <enter diagnostic date MM/DD/YYYY>
D10: Date Audit Closed | E10: ='Administrative Info'!F31 -> <enter date audit closed> | G10: Overall Diagnostic Score | H10: ='Diagnostic Assessment NEW'!Q80 -> 0
D11: CRS Candidate: | E11: ='Administrative Info'!F33 -> <enter Yes/No> | G11: Overall Evaluation Score | H11: ='Evaluation Tool'!M73 -> 0 | J11: Section 3 - Floodplain Management Regulations | L11: =IF('Evaluation Tool'!M48="Section Incomplete",'Evaluation Tool'!M48, "Complete") -> Section Incomplete
D12: The following are from the Audit Evaluation Tool and represent input and observations from the Auditor organized and summarized for this report
J13: Section 4 - Standardized Processes | L13: =IF('Evaluation Tool'!M72="Section Incomplete",'Evaluation Tool'!M72, "Complete") -> Section Incomplete
D14: Audit Follow Up and Assistance
D15: Does the community require follow-up or technical assistance following completion of the audit? (Drop down) | H15: No
D27: Floodplain Administrator Capability, Capacity, and Institutional Support SCORE: | G27: Section Score: | H27: ='Evaluation Tool'!M19 -> Section Incomplete
D28: Question | E28: Response | F28: Score | G28: Findings | H28: Recommendations
D29: ='Evaluation Tool'!E4 -> 1.1: How many years of floodplain management experience does the Floodplain Administrator have ? | E29: ='Evaluation Tool'!K4 -> 0 | F29: ='Evaluation Tool'!M4 ->  | G29: ='Evaluation Tool'!P4 -> 0 | H29: ='Evaluation Tool'!R4 -> 0
D30: ='Evaluation Tool'!E5 -> 1.2: Is the Floodplain Administrator a Certified Floodplain Manager (CFM)? | E30: ='Evaluation Tool'!K5 -> 0 | F30: ='Evaluation Tool'!M5 ->  | G30: ='Evaluation Tool'!P5 -> 0 | H30: ='Evaluation Tool'!R5 -> 0
D31: 1.3: What is the Floodplain Administrator’s familiarity with FEMA maps and study data, and what products are used when reviewing permits?
D32: ='Evaluation Tool'!E7 -> 1.3.1: Are effective flood insurance rate maps (digital or paper) used? | E32: ='Evaluation Tool'!K7 -> 0 | F32: ='Evaluation Tool'!M7 -> 0 | G32: ='Evaluation Tool'!P7 -> 0 | H32: ='Evaluation Tool'!R7 -> 0
D33: ='Evaluation Tool'!E8 -> 1.3.2: Are effective flood insurance study (digital or paper) used? | E33: ='Evaluation Tool'!K8 -> 0 | F33: ='Evaluation Tool'!M8 -> 0 | G33: ='Evaluation Tool'!P8 -> 0 | H33: ='Evaluation Tool'!R8 -> 0
D34: ='Evaluation Tool'!E9 -> 1.3.3: Are historic FIS or FIRMs used? | E34: ='Evaluation Tool'!K9 -> 0 | F34: ='Evaluation Tool'!M9 -> 0 | G34: ='Evaluation Tool'!P9 -> 0 | H34: ='Evaluation Tool'!R9 -> 0
D35: ='Evaluation Tool'!E10 -> 1.3.4: Are letters of map change (digital or paper) used? | E35: ='Evaluation Tool'!K10 -> 0 | F35: ='Evaluation Tool'!M10 -> 0 | G35: ='Evaluation Tool'!P10 -> 0 | H35: ='Evaluation Tool'!R10 -> 0
D36: ='Evaluation Tool'!E11 -> 1.3.5: Are other best available data used? | E36: ='Evaluation Tool'!K11 -> 0 | F36: ='Evaluation Tool'!M11 -> 0 | G36: ='Evaluation Tool'!P11 -> 0 | H36: ='Evaluation Tool'!R11 -> 0
D37: ='Evaluation Tool'!E12 -> 1.4: What sources does the FPA use when working with FEMA map products and study data?
D38: ='Evaluation Tool'!E13 -> 1.4.1: FEMA Map Service Center (MSC) and/or National Flood Hazard Layer (NFHL) tool | E38: ='Evaluation Tool'!K13 -> 0 | F38: ='Evaluation Tool'!M13 -> 0 | G38: ='Evaluation Tool'!P13 -> 0 | H38: ='Evaluation Tool'!R13 -> 0
D39: ='Evaluation Tool'!E14 -> 1.4.2: Local GIS Software | E39: ='Evaluation Tool'!K14 -> 0 | F39: ='Evaluation Tool'!M14 -> 0 | G39: ='Evaluation Tool'!P14 -> 0 | H39: ='Evaluation Tool'!R14 -> 0
D40: ='Evaluation Tool'!E15 -> 1.5: Is the Floodplain Management program adequately staffed? | E40: ='Evaluation Tool'!K15 -> 0 | F40: ='Evaluation Tool'!M15 ->  | G40: ='Evaluation Tool'!P15 -> 0 | H40: ='Evaluation Tool'!R15 -> 0
D41: ='Evaluation Tool'!E16 -> 1.6: Is the Floodplain Management program adequately resourced (i.e., has sufficient budget)? | E41: ='Evaluation Tool'!K16 -> 0 | F41: ='Evaluation Tool'!M16 ->  | G41: ='Evaluation Tool'!P16 -> 0 | H41: ='Evaluation Tool'!R16 -> 0
D42: ='Evaluation Tool'!E17 -> 1.7: Is the FPM program's position in the organization appropriate to ensure effectiveness in carrying out its duties? | E42: ='Evaluation Tool'!K17 -> 0 | F42: ='Evaluation Tool'!M17 ->  | G42: ='Evaluation Tool'!P17 -> 0 | H42: ='Evaluation Tool'!R17 -> 0
D43: ='Evaluation Tool'!E18 -> 1.8: Does the FPA sufficiently interact/communicate with the mayor/council/CEO to ensure continued community support for the FPM program? | E43: ='Evaluation Tool'!K18 -> 0 | F43: ='Evaluation Tool'!M18 ->  | G43: ='Evaluation Tool'!P18 -> 0 | H43: ='Evaluation Tool'!R18 -> 0
D44: Map Availability and Accuracy | G44: Section Score: | H44: ='Evaluation Tool'!M24 -> Section Incomplete
D45: Question | E45: Response | F45: Score | G45: Findings | H45: Recommendations
D46: ='Evaluation Tool'!E21 -> 2.1: In the past 3-5 years has the community experienced significant flooding outside of the mapped SFHA and provided that information to FEMA? | E46: ='Evaluation Tool'!K21 -> 0 | F46: ='Evaluation Tool'!M21 ->  | G46: ='Evaluation Tool'!P21 -> 0 | H46: ='Evaluation Tool'!R21 -> 0
D47: ='Evaluation Tool'!E22 -> 2.2: Has the community adopted the correct FIRMs and FIS for the entirety of its community boundary (including any recent annexations)? | E47: ='Evaluation Tool'!K22 -> 0 | F47: ='Evaluation Tool'!M22 ->  | G47: ='Evaluation Tool'!P22 -> 0 | H47: ='Evaluation Tool'!R22 -> 0
D48: ='Evaluation Tool'!E23 -> 2.3: Is the community properly obtaining LOMCs to reflect current or changing flood risk? | E48: ='Evaluation Tool'!K23 -> 0 | F48: ='Evaluation Tool'!M23 ->  | G48: ='Evaluation Tool'!P23 -> 0 | H48: ='Evaluation Tool'!R23 -> 0
D49: Floodplain Management Regulations | G49: Section Score: | H49: ='Evaluation Tool'!M48 -> Section Incomplete
D50: Question | E50: Response | F50: Score | G50: Findings | H50: Recommendations
D51: ='Evaluation Tool'!E26 -> 3.1: Since the last audit (CAV or CAC), has there been any development in the SFHA or is any currently planned? | E51: ='Evaluation Tool'!K26 -> Yes | F51: ='Evaluation Tool'!M26 -> 0 | G51: ='Evaluation Tool'!P26 -> 0 | H51: ='Evaluation Tool'!R26 -> 0
D52: ='Evaluation Tool'!E27 -> 3.2: If yes to question 3.1 above, how many permits has the Floodplain Administrator issued for development (both structural and non-structural) in the SFHA since the last audit? | E52: ='Evaluation Tool'!K27 -> 0 | F52: ='Evaluation Tool'!M27 ->  | G52: ='Evaluation Tool'!P27 -> 0 | H52: ='Evaluation Tool'!R27 -> 0
D53: ='Evaluation Tool'!E28 -> 3.3: How does the community maintain as-built elevation data? | E53: ='Evaluation Tool'!K28 -> 0 | F53: ='Evaluation Tool'!M28 ->  | G53: ='Evaluation Tool'!P28 -> 0 | H53: ='Evaluation Tool'!R28 -> 0
D54: ='Evaluation Tool'!E29 -> 3.4: Is the community's current FPM Regulation compliant with NFIP minimum standards? (Auditor to complete Floodplain Management Regulations Review Checklist) | E54: ='Evaluation Tool'!K29 -> 0 | F54: ='Evaluation Tool'!M29 ->  | G54: ='Evaluation Tool'!P29 -> 0 | H54: ='Evaluation Tool'!R29 -> 0
D55: 3.5: How many compliance issues does the community currently have by category?
D56: Question | E56: Response | F56: Score | G56: Findings | H56: Recommendations
D57: ='Evaluation Tool'!E31 -> 3.5.1 Floodways (unpermitted encroachments, permitted without no-rise analysis, or no-rise analysis inaccurate/insufficient) | E57: ='Evaluation Tool'!K31 -> 0 | F57: ='Evaluation Tool'!M31 -> 0 | G57: ='Evaluation Tool'!P31 -> 0 | H57: ='Evaluation Tool'!R31 -> 0
D58: ='Evaluation Tool'!E32 -> 3.5.2 V Zone standards not met (foundation type, breakaway walls, V Zone certification) | E58: ='Evaluation Tool'!K32 -> 0 | F58: ='Evaluation Tool'!M32 -> 0 | G58: ='Evaluation Tool'!P32 -> 0 | H58: ='Evaluation Tool'!R32 -> 0
D59: ='Evaluation Tool'!E33 -> 3.5.3 Basements (new construction or SI) | E59: ='Evaluation Tool'!K33 -> 0 | F59: ='Evaluation Tool'!M33 -> 0 | G59: ='Evaluation Tool'!P33 -> 0 | H59: ='Evaluation Tool'!R33 -> 0
D60: ='Evaluation Tool'!E34 -> 3.5.4 Insufficient elevation of residential structures | E60: ='Evaluation Tool'!K34 -> 0 | F60: ='Evaluation Tool'!M34 -> 0 | G60: ='Evaluation Tool'!P34 -> 0 | H60: ='Evaluation Tool'!R34 -> 0
D61: ='Evaluation Tool'!E35 -> 3.5.5 Insufficient elevation/floodproofing of non-residential structures | E61: ='Evaluation Tool'!K35 -> 0 | F61: ='Evaluation Tool'!M35 -> 0 | G61: ='Evaluation Tool'!P35 -> 0 | H61: ='Evaluation Tool'!R35 -> 0
D62: ='Evaluation Tool'!E36 -> 3.5.6 Insufficient flood openings (all structure types) | E62: ='Evaluation Tool'!K36 -> 0 | F62: ='Evaluation Tool'!M36 -> 0 | G62: ='Evaluation Tool'!P36 -> 0 | H62: ='Evaluation Tool'!R36 -> 0
D63: ='Evaluation Tool'!E37 -> 3.5.7 As-built elevation information lacking (all structure types) | E63: ='Evaluation Tool'!K37 -> 0 | F63: ='Evaluation Tool'!M37 -> 0 | G63: ='Evaluation Tool'!P37 -> 0 | H63: ='Evaluation Tool'!R37 -> 0
D64: ='Evaluation Tool'!E38 -> 3.5.8 Lacking SI/SD assessments | E64: ='Evaluation Tool'!K38 -> 0 | F64: ='Evaluation Tool'!M38 -> 0 | G64: ='Evaluation Tool'!P38 -> 0 | H64: ='Evaluation Tool'!R38 -> 0
D65: ='Evaluation Tool'!E39 -> 3.5.9 Not following Letter of Map Change (LOMC) procedures (changing drainages or streams, undocumented watercourse alterations) | E65: ='Evaluation Tool'!K39 -> 0 | F65: ='Evaluation Tool'!M39 -> 0 | G65: ='Evaluation Tool'!P39 -> 0 | H65: ='Evaluation Tool'!R39 -> 0
D66: ='Evaluation Tool'!E40 -> 3.5.10 In Zone A, developments (>50 lots or 5 acres) lacking development of BFEs | E66: ='Evaluation Tool'!K40 -> 0 | F66: ='Evaluation Tool'!M40 -> 0 | G66: ='Evaluation Tool'!P40 -> 0 | H66: ='Evaluation Tool'!R40 -> 0
D67: ='Evaluation Tool'!E41 -> 3.5.11 In AO-Zone, developments (>50 lots or 5 acres) lacking development of BFEs | E67: ='Evaluation Tool'!K41 -> 0 | F67: ='Evaluation Tool'!M41 -> 0 | G67: ='Evaluation Tool'!P41 -> 0 | H67: ='Evaluation Tool'!R41 -> 0
D68: ='Evaluation Tool'!E42 -> 3.5.12 Unpermitted fill/grading | E68: ='Evaluation Tool'!K42 -> 0 | F68: ='Evaluation Tool'!M42 -> 0 | G68: ='Evaluation Tool'!P42 -> 0 | H68: ='Evaluation Tool'!R42 -> 0
D69: ='Evaluation Tool'!E43 -> 3.5.13 Other (non-structural) development (e.g., dredging, storage of materials, insufficient drainage, non-compliant RVs) | E69: ='Evaluation Tool'!K43 -> 0 | F69: ='Evaluation Tool'!M43 -> 0 | G69: ='Evaluation Tool'!P43 -> 0 | H69: ='Evaluation Tool'!R43 -> 0
D70: ='Evaluation Tool'!E44 -> 3.5.14 Insufficient elevation or floodproofing of building service machinery in non-residential structures | E70: ='Evaluation Tool'!K44 -> 0 | F70: ='Evaluation Tool'!M44 -> 0 | G70: ='Evaluation Tool'!P44 -> 0 | H70: ='Evaluation Tool'!R44 -> 0
D71: ='Evaluation Tool'!E45 -> 3.6: How many variances (non-complaint 44CFR 60.6) has the community granted to its floodplain management standards? | E71: ='Evaluation Tool'!K45 -> 0 | F71: ='Evaluation Tool'!M45 -> 0 | G71: ='Evaluation Tool'!P45 -> 0 | H71: ='Evaluation Tool'!R45 -> 0
D72: ='Evaluation Tool'!E46 -> 3.7 How many of the variances in question 3.6 above are not in accordance with the community's own floodplain management policies/standards? | E72: ='Evaluation Tool'!K46 -> 0 | F72: ='Evaluation Tool'!M46 -> 4 | G72: ='Evaluation Tool'!P46 -> 0 | H72: ='Evaluation Tool'!R46 -> 0
D73: ='Evaluation Tool'!E47 -> 3.8 When you encounter conflicting regulations do you always enforce the stricter regulation? | E73: ='Evaluation Tool'!K47 -> 0 | F73: ='Evaluation Tool'!M47 ->  | G73: ='Evaluation Tool'!P47 -> 0 | H73: ='Evaluation Tool'!R47 -> 0
D74: Standardized Processes | G74: Section Score: | H74: ='Evaluation Tool'!M72 -> Section Incomplete
D75: Question | E75: Response | F75: Score | G75: Findings | H75: Recommendations
D76: 4.1. Does the Floodplain Management Program have a permitting process developed and in use for these options within the SFHA?
D77: ='Evaluation Tool'!E51 -> 4.1.1 Residential structures (including subdivisions) | E77: ='Evaluation Tool'!K51 -> 0 | F77: ='Evaluation Tool'!M51 -> 0 | G77: ='Evaluation Tool'!P51 -> 0 | H77: ='Evaluation Tool'!R51 -> 0
D78: ='Evaluation Tool'!E52 -> 4.1.2 V Zone construction (certification, review) | E78: ='Evaluation Tool'!K52 -> 0 | F78: ='Evaluation Tool'!M52 -> 0 | G78: ='Evaluation Tool'!P52 -> 0 | H78: ='Evaluation Tool'!R52 -> 0
D79: ='Evaluation Tool'!E53 -> 4.1.3 Floodway encroachment (no-rise analysis review) | E79: ='Evaluation Tool'!K53 -> 0 | F79: ='Evaluation Tool'!M53 -> 0 | G79: ='Evaluation Tool'!P53 -> 0 | H79: ='Evaluation Tool'!R53 -> 0
D80: ='Evaluation Tool'!E54 -> 4.1.4 Commercial/non-residential structures | E80: ='Evaluation Tool'!K54 -> 0 | F80: ='Evaluation Tool'!M54 -> 0 | G80: ='Evaluation Tool'!P54 -> 0 | H80: ='Evaluation Tool'!R54 -> 0
D81: ='Evaluation Tool'!E55 -> 4.1.5 Substantial Improvement (SI) of structures | E81: ='Evaluation Tool'!K55 -> 0 | F81: ='Evaluation Tool'!M55 -> 0 | G81: ='Evaluation Tool'!P55 -> 0 | H81: ='Evaluation Tool'!R55 -> 0
D82: ='Evaluation Tool'!E56 -> 4.1.6 Substantial Damage (SD) of structures | E82: ='Evaluation Tool'!K56 -> 0 | F82: ='Evaluation Tool'!M56 -> 0 | G82: ='Evaluation Tool'!P56 -> 0 | H82: ='Evaluation Tool'!R56 -> 0
D83: ='Evaluation Tool'!E57 -> 4.1.7 Variances | E83: ='Evaluation Tool'!K57 -> 0 | F83: ='Evaluation Tool'!M57 -> 0 | G83: ='Evaluation Tool'!P57 -> 0 | H83: ='Evaluation Tool'!R57 -> 0
D84: ='Evaluation Tool'!E58 -> 4.1.8 CLOMR/LOMR (e.g., watercourse alterations, floodway development, culverts) | E84: ='Evaluation Tool'!K58 -> 0 | F84: ='Evaluation Tool'!M58 -> 0 | G84: ='Evaluation Tool'!P58 -> 0 | H84: ='Evaluation Tool'!R58 -> 0
D85: ='Evaluation Tool'!E59 -> 4.1.9 Recreational Vehicles | E85: ='Evaluation Tool'!K59 -> 0 | F85: ='Evaluation Tool'!M59 -> 0 | G85: ='Evaluation Tool'!P59 -> 0 | H85: ='Evaluation Tool'!R59 -> 0
D86: ='Evaluation Tool'!E60 -> 4.1.10 Accessory structures | E86: ='Evaluation Tool'!K60 -> 0 | F86: ='Evaluation Tool'!M60 -> 0 | G86: ='Evaluation Tool'!P60 -> 0 | H86: ='Evaluation Tool'!R60 -> 0
D87: ='Evaluation Tool'!E61 -> 4.1.11 Agricultural structures | E87: ='Evaluation Tool'!K61 -> 0 | F87: ='Evaluation Tool'!M61 -> 0 | G87: ='Evaluation Tool'!P61 -> 0 | H87: ='Evaluation Tool'!R61 -> 0
D88: ='Evaluation Tool'!E62 -> 4.1.12 Fill/grading | E88: ='Evaluation Tool'!K62 -> 0 | F88: ='Evaluation Tool'!M62 -> 0 | G88: ='Evaluation Tool'!P62 -> 0 | H88: ='Evaluation Tool'!R62 -> 0
D89: ='Evaluation Tool'!E63 -> 4.1.13 Other non-structural development as defined in 59.1 | E89: ='Evaluation Tool'!K63 -> 0 | F89: ='Evaluation Tool'!M63 -> 0 | G89: ='Evaluation Tool'!P63 -> 0 | H89: ='Evaluation Tool'!R63 -> 0
D90: ='Evaluation Tool'!E64 -> 4.1.14 Other federal/state/local necessary permits | E90: ='Evaluation Tool'!K64 -> 0 | F90: ='Evaluation Tool'!M64 -> 0 | G90: ='Evaluation Tool'!P64 -> 0 | H90: ='Evaluation Tool'!R64 -> 0
D91: ='Evaluation Tool'!E65 -> 4.2: Does the community conduct inspections to ensure that every structure is built in accordance with floodplain management regulations? | E91: ='Evaluation Tool'!K65 -> 0 | F91: ='Evaluation Tool'!M65 ->  | G91: ='Evaluation Tool'!P65 -> 0 | H91: ='Evaluation Tool'!R65 -> 0
D92: ='Evaluation Tool'!E66 -> 4.3 When does the community conduct inspections to ensure that structures are built as required for flood regulations? | E92: ='Evaluation Tool'!K66 -> 0 | F92: ='Evaluation Tool'!M66 ->  | G92: ='Evaluation Tool'!P66 -> 0 | H92: ='Evaluation Tool'!R66 -> 0
D93: ='Evaluation Tool'!E67 -> 4.4: Are the Floodplain Management program's SOPs and processes/procedures consistently used to perform the functions of the FPM program? | E93: ='Evaluation Tool'!K67 -> 0 | F93: ='Evaluation Tool'!M67 ->  | G93: ='Evaluation Tool'!P67 -> 0 | H93: ='Evaluation Tool'!R67 -> 0
D94: ='Evaluation Tool'!E68 -> 4.5 Are permit records well organized and easily accessible? | E94: ='Evaluation Tool'!K68 -> 0 | F94: ='Evaluation Tool'!M68 ->  | G94: ='Evaluation Tool'!P68 -> 0 | H94: ='Evaluation Tool'!R68 -> 0
D95: ='Evaluation Tool'!E70 -> 4.7: Are the Floodplain Management program's SOPs and processes/procedures reviewed and updated on a regular basis (e.g., every 3 years)? | E95: ='Evaluation Tool'!K70 -> 0 | F95: ='Evaluation Tool'!M70 ->  | G95: ='Evaluation Tool'!P70 -> 0 | H95: ='Evaluation Tool'!R70 -> 0
D96: ='Evaluation Tool'!E71 -> 4.8: Does the community coordinate with other departments on floodplain management regulations? | E96: ='Evaluation Tool'!K71 -> 0 | F96: ='Evaluation Tool'!M71 ->  | G96: ='Evaluation Tool'!P71 -> 0 | H96: ='Evaluation Tool'!R71 -> 0

Sheet Evaluation Tool Blank (hidden)
B1: Evaluation Tool- Printable PRE-DECISIONAL DRAFT (v1.0)
B2: No. | C2: Category | D2: Question | E2: Score represents Impact to Compliance Enter score from ( ) in "Raw Score" Column Minimal to no impact (Score 4) Low Impact (Score 3) Moderate Impact (Score 2) Hight Impact (Score 1) Very High Impact (Score 0) | F2: Enter Score Value | G2: Multiplier | H2: Weighted Score (Score Value times Multipler) | I2: Findings (Auditor Data Entry) | J2: Reference(s) (Auditor Data Entry) | K2: Recommendation(s) (Auditor Data Entry) | L2: Estimated Close Out Date (Auditor Data Entry)
B3: 1 | C3: Floodplain Administrator Capability, Capacity, and Institutional Support | D3: 1.1: How long has the Floodplain Administrator been in this role? | E3: ☐ More than 10 years (4) ☐ 5-10 years (3) ☐ 2-5 years (2) ☐ Less than 2 years (1) ☐ No one is currently in role (0) | G3: 1
B4: 2 | D4: 1.2: Is the Floodplain Administrator a Certified Floodplain Manager (CFM)? | E4: ☐ Yes (4) ☐ No (3) | G4: 0.5
B5: 3 | D5: 1.3: What is the Floodplain Administrator’s familiarity with FEMA maps and study data, and what products are used when reviewing permits? For each data type/row please select one response. MULTIPART QUESTION, SEE 1.3.1 - 1.3.5 BELOW
D6: 1.3.1: Effective Flood Insurance Rate Maps (Digital or Paper) | E6: ☐ Yes uses these tools (4) ☐ No does not use these tools (0) | G6: 0.5
D7: 1.3.2: Effective Flood Insurance Study (Digital or Paper) | E7: ☐ Yes uses these tools or NA (4) ☐ No does not use these tools (0) | G7: 0.5
D8: 1.3.3: Historic FIS or FIRMs | E8: ☐ Yes uses these tools or NA (4) ☐ No does not use these tools (0) | G8: 0.5
D9: 1.3.4: Letters of Map Change (Digital or Paper) | E9: ☐ Yes uses these tools or NA (4) ☐ No does not use these tools (0) | G9: 0.5
D10: 1.3.5: Other best available data | E10: ☐ Yes uses these tools or NA (4) ☐ No does not use these tools (0) | G10: 0.5
B11: 4 | D11: 1.4: What sources does the FPA use when working with FEMA map products and study data?
D12: 1.4.1: FEMA Map Service Center (MSC) and/or National Flood Hazard Layer (NFH) tool | E12: ☐ Yes uses these tools (4) ☐ No does not use these tools (0) | G12: 0.5
D13: 1.4.2: Local GIS Software | E13: ☐ Yes uses these tools (4) ☐ No does not use these tools (0) | G13: 0.5
B14: 5 | D14: 1.5: Is the Floodplain Management program adequately staffed? | E14: ☐ FPM is staffed to meet current and expected future needs (4) ☐ FPM is staffed to meet current but not future needs (3) ☐ FPM is staffed to meet periodic or emergent needs only (2) ☐ FPM is rarely adequately staffed (1) ☐ FPM is not adequately staffed (0) | G14: 1
B15: 6 | D15: 1.6: Is the Floodplain Management program adequately resourced (i.e., has sufficient budget)? | E15: ☐ FPM is resourced to meet current and expected future needs (4) ☐ FPM is resourced to meet current but not future needs (3) ☐ FPM is resourced to meet periodic or emergent needs only (2) ☐ FPM is rarely adequately resourced (1) ☐ FPM is not adequately resourced (0) | G15: 0.5
B16: 7 | D16: 1.7: Is the FPM program's position in the organization appropriate to ensure effectiveness in carrying out its duties? | E16: ☐ Yes (4) ☐ No (0) | G16: 1
B17: 8 | D17: 1.8: Does the FPA sufficiently interact/communicate with the mayor/council/CEO to ensure continued community support for the FPM program | E17: ☐ Yes (4) ☐ No (0) | G17: 1
F18: Subtotal From Section 1 Above:
B19: No. | C19: Category | D19: Question | E19: Score represents Impact to Compliance Enter score from ( ) in "Raw Score" Column Minimal to no impact (Score 4) Low Impact (Score 3) Moderate Impact (Score 2) Hight Impact (Score 1) Very High Impact (Score 0) | F19: Enter Score Value | G19: Multiplier | H19: Multiply Score Value times Multipler | I19: Findings (Auditor Data Entry) | J19: Reference(s) (Auditor Data Entry) | K19: Recommendation(s) (Auditor Data Entry) | L19: Estimated Close Out Date (Auditor Data Entry)
B20: 9 | C20: Map Availability and Accuracy | D20: 2.1: In the past 3-5 years has the community experienced significant flooding outside of the mapped SFHA, and informed that information to FEMA? | E20: ☐ No (4) ☐ Yes (0) | G20: 1
B21: 10 | D21: 2.2: Has the community adopted the correct FIRMs and FIS for the entirety of its community boundary (including any recent annexations)? | E21: ☐ Yes (4) ☐ No (0) | G21: 0.5
B22: 11 | D22: 2.3: Is the community properly obtaining LOMCs to reflect current or changing flood risk? | E22: ☐ Yes or NA - No Recent Development Pressure Requiring LOMCs (4) ☐ No (0) | G22: 1
F23: Subtotal From Section 2 Above:
B24: No. | C24: Category | D24: Question | E24: Score represents Impact to Compliance Enter score from ( ) in "Raw Score" Column Minimal to no impact (Score 4) Low Impact (Score 3) Moderate Impact (Score 2) Hight Impact (Score 1) Very High Impact (Score 0) | F24: Enter Score Value | G24: Multiplier | H24: Multiply Score Value times Multipler | I24: Findings (Auditor Data Entry) | J24: Reference(s) (Auditor Data Entry) | K24: Recommendation(s) (Auditor Data Entry) | L24: Estimated Close Out Date (Auditor Data Entry)
B25: 12 | C25: Floodplain Management Regulations | D25: 3.1: Since the last audit (CAV or CAC), has there been any development activity in the SFHA, or is any activity currently planned? | E25: ☐ No (4) ☐ Yes (0) | G25: 0.5
B26: 13 | D26: 3.2: If yes to question 3.1 above, how many permits has the Floodplain Administrator issued for development (both structural and non-structural) in the SFHA since the last audit? | E26: ☐ Less than 10 or N/A (4) ☐ 10 to 99 (3) ☐ 100 to 499 (2) ☐ 500 to 999 (1) ☐ 1000 or more (0) | G26: 1
B27: 14 | D27: 3.3: How does the community maintain as-built elevation data? | E27: ☐ As built data is maintained with ECs ☐ As built data is maintained but do not use ECs ☐ As built elevation data not maintained or unknown | G27: 1
B28: 15 | D28: 3.4: Is the community's current FPM ordinance compliant with NFIP minimum standards? (Auditor to complete Ordinance Review Checklist) | E28: ☐ Yes (4) ☐ No (0) | G28: 2.5
B29: No. | C29: Category | D29: Question | E29: Score represents Impact to Compliance Enter score from ( ) in "Raw Score" Column Minimal to no impact (Score 4) Low Impact (Score 3) Moderate Impact (Score 2) Hight Impact (Score 1) Very High Impact (Score 0) | I29: Findings (Auditor Data Entry) | J29: Reference(s) (Auditor Data Entry) | K29: Recommendation(s) (Auditor Data Entry) | L29: Estimated Close Out Date (Auditor Data Entry)
B30: 16 | C30: Floodplain Management Regulations | D30: 3.5: How many compliance issues does the community currently have by category? (Multi-part question: enter whole numbers for 3.5.1 - 3.5.13 below; a blank indicates zero/none for that category) (Enter WHOLE number) | F30: Enter Number | G30: Multiplier | H30: Multiply Number times Multipler
D31: 3.5.1 Floodways (unpermitted encroachments, permitted without no-rise analysis, or no-rise analysis inaccurate/insufficient) | G31: -2
D32: 3.5.2 V Zone standards not met (foundation type, breakaway walls, V Zone certification) | G32: -2
D33: 3.5.3 Basements (new construction or SI) | G33: -1
D34: 3.5.4 Insufficient elevation of residential structures | G34: -1
D35: 3.5.5 Insufficient elevation/floodproofing of non-residential structures | G35: -1
D36: 3.5.6 Insufficient flood openings (all structure types) | G36: -1
D37: 3.5.7 As-built elevation information lacking (all structure types) | G37: -0.5
D38: 3.5.8 Lacking SI/SD assessments | G38: -0.5
D39: 3.5.9 Not following Letter of Map Change (LOMC) procedures (changing drainages or streams, undocumented watercourse alterations) | G39: -0.25
D40: 3.5.10 In Zone A, developments (>50 lots or 5 acres) lacking BFE creation | G40: -0.25
D41: 3.5.11 In AO-Zone, developments (>50 lots or 5 acres) lacking BFE creation | G41: -0.25
D42: 3.5.12 Unpermitted fill/grade | G42: -0.25
D43: 3.5.13 Other (non-structural) development (e.g., dredging, storage of materials, insufficient drainage, non-compliant RVs) | G43: -0.25
D44: 3.5.14 Insufficient elevation or floodproofing of building service machinery | G44: -0.25
D45: Add up all the negative values from the number of compliance issues and the multiplier | F45: Add total Scores (May be Zero or Negative)
D46: Use this to arrive at a score for section 3.6: The score can be 0-12 | F46: Add Score to 12. Enter value to right
B47: 18 | D47: 3.6: How many variances has the community granted to its floodplain management standards since its last audit? | E47: ☐ 0 Variances (4) ☐ 1 Variance (3) ☐ 2 Variances (2) ☐ 3 Variances (1) ☐ 4 or more Variances (0) | G47: 2
B48: 19 | D48: 3.7 How many of the variances in question 3.6 above are not in accordance with the community's own floodplain management policies/standards? | E48: ☐ 0 Variances (4) ☐ 1 Variance (3) ☐ 2 Variances (2) ☐ 3 Variances (1) ☐ 4 or more Variances (0) | G48: 1
B49: 20 | D49: 3.8 When you encounter conflicting regulations do you always enforce the stricter regulation? | E49: ☐ Yes (4) ☐ No (0) | G49: 1
F50: Subtotal From Section 3 Above:
B51: No. | C51: Category | D51: Question | E51: Score represents Impact to Compliance Enter score from ( ) in "Raw Score" Column Minimal to no impact (Score 4) Low Impact (Score 3) Moderate Impact (Score 2) Hight Impact (Score 1) Very High Impact (Score 0) | F51: Enter Score Value | G51: Multiplier | H51: Multiply Score Value times Multipler | I51: Findings (Auditor Data Entry) | J51: Reference(s) (Auditor Data Entry) | K51: Recommendation(s) (Auditor Data Entry) | L51: Estimated Close Out Date (Auditor Data Entry)
B52: 21 | C52: Standardized Processes | D52: 4.1. Does the Floodplain Management Program have a permitting process developed and in use for these options within the SFHA?
D53: 4.1.1 Residential structures (including subdivisions) | E53: ☐ Yes or N/A (1) ☐ No (0) | G53: 1
D54: 4.1.4 V Zone construction (certification, review) | E54: ☐ Yes or N/A (1) ☐ No (0) | G54: 1
D55: 4.1.3 Floodway encroachment (no-rise analysis review) | E55: ☐ Yes or N/A (1) ☐ No (0) | G55: 1
D56: 4.1.4 Commercial/non-residential structures | E56: ☐ Yes or N/A (1) ☐ No (0) | G56: 1
D57: 4.1.5 Substantial Improvement (SI) of structures | E57: ☐ Yes or N/A (1) ☐ No (0) | G57: 1
D58: 4.1.6 Substantial Damage (SD) of structures | E58: ☐ Yes or N/A (1) ☐ No (0) | G58: 1
D59: 4.1.7 Variances | E59: ☐ Yes or N/A (1) ☐ No (0) | G59: 1
D60: 4.1.8 CLOMR/LOMR (e.g., watercourse alterations, floodway development, culverts) | E60: ☐ Yes or N/A (1) ☐ No (0) | G60: 0.143
D61: 4.1.9 Recreational Vehicles | E61: ☐ Yes or N/A (1) ☐ No (0) | G61: 0.143
D62: 4.1.10 Accessory structures | E62: ☐ Yes or N/A (1) ☐ No (0) | G62: 0.143
D63: 4.1.11 Agricultural structures | E63: ☐ Yes or N/A (1) ☐ No (0) | G63: 0.143
D64: 4.1.12 Fill/grade | E64: ☐ Yes or N/A (1) ☐ No (0) | G64: 0.143
D65: 4.1.13 Other non-structural development (e.g., dredging, storage of materials, drainage paths around structures, etc.) | E65: ☐ Yes or N/A (1) ☐ No (0) | G65: 0.143
D66: 4.1.14 Other federal/state/local permits | E66: ☐ Yes or N/A (1) ☐ No (0) | G66: 0.143
D67: Use this to arrive at a score for section 4.1: The score can be 0-8 | F67: Sum scores above and enter to right.
B68: No. | C68: Category | D68: Question | E68: Score represents Impact to Compliance Enter score from ( ) in "Raw Score" Column Minimal to no impact (Score 4) Low Impact (Score 3) Moderate Impact (Score 2) Hight Impact (Score 1) Very High Impact (Score 0) | F68: Enter Score Value | G68: Multiplier | H68: Multiply Score Value times Multipler | I68: Findings (Auditor Data Entry) | J68: Reference(s) (Auditor Data Entry) | K68: Recommendation(s) (Auditor Data Entry) | L68: Estimated Close Out Date (Auditor Data Entry)
B69: 22 | C69: Standardized Processes | D69: 4.2: Does the community conduct inspections to ensure that every structure is built in accordance with floodplain management regulations? | E69: ☐ Yes (4) ☐ Sometimes (2) ☐ No (0) | G69: 1
B70: 23 | D70: 4.3 When does the community conduct inspections to ensure that structures are built as required for flood regulations? | E70: ☐ BOTH at foundation completion before beginning vertical AND at as builts before certificate of occupancy (4) ☐ At as builts before certificate of occupancy (3) ☐ At foundation completion before beginning vertical (1) ☐ Never (1) | G70: 1
B71: 24 | D71: 4.4: Are the Floodplain Management program's SOPs and processes/procedures consistently used to perform the functions of the FPM program? | E71: ☐ Used for all activities (4) ☐ Used for most activities with some gaps (3) ☐ Not used for most activities (1) ☐ Not used for any activities or unknown (0) | G71: 1
B72: 25 | D72: 4.5 Are permit and variance records well organized and easily accessible? | E72: ☐ Permits are accessible within 1 business day (4) ☐ Permits are accessible within 2-5 business days (3) ☐ Permits are accessible within 6-10 business days (1) ☐ Permits are accessible after 10 business days (0) | G72: 1
B73: 26 | D73: 4.6: Are the Floodplain Management program's SOPs and processes/procedures reviewed and updated on a regular basis (e.g., every 3 years)? | E73: ☐ All undergo regular review and update (4) ☐ Many undergo regular review and update (3) ☐ Few undergo regular review and update or only update in response to a process change (1) ☐ No SOPs exist or none undergo regular review and update (0) | G73: 1
B74: 27 | D74: 4.7: Does the community coordinate with other departments on floodplain management regulations? | E74: ☐ Full coordination across all other departments (4) ☐ Coordination across some but not all departments (2) ☐ No coordination outside the planning department (0) | G74: 1
F75: Subtotal From Section 4 Above:
F76: Grand Total (Sections 1-4)

Sheet Evaluation Tool Graphics
E1: PRE-DECISIONAL DRAFT
D2: National Floodplain Insurance Program (NFIP) | L2: Evaluation Tool Summary
B6: Example Figure 1: Evaluation Score Summary by FPM Program Theme | J6: Example Table 1: Audit Score Summary by FPM Program Category | Q6: Do Not Modify | V6: Do Not Modify
J8: Theme | K8: Your Community's Score | L8: Max Score | M8: Percent Contribution (current) | N8: Percent Contribution (goal) | O8: Number of Questions | Q8: Change in % Cont. To meet Goal | S8: Multiple to adjust % Contribution | V8: Multiplier to Standardize Score to 100% | W8: 0.999
J9: Floodplain Administrator Capability, Capacity, and Institutional Support | K9: ='Evaluation Tool'!M19 -> Section Incomplete | L9: ='Evaluation Tool'!N19 -> 15 | M9: =(L9/'Evaluation Tool'!$N$73) -> 16% | N9: 15% | O9: =COUNTIF('Evaluation Tool'!C4:C18,">0") -> 8 | Q9: =N9-M9 -> -1% | S9: 0.44
J10: Map Availability and Accuracy | K10: ='Evaluation Tool'!M24 -> Section Incomplete | L10: ='Evaluation Tool'!N24 -> 15 | M10: =(L10/'Evaluation Tool'!$N$73) -> 16% | N10: 15% | O10: =COUNTIF('Evaluation Tool'!C21:C23,">0") -> 3 | Q10: =N10-M10 -> -1% | S10: 1.88
J11: Floodplain Management Regulations | K11: ='Evaluation Tool'!M48 -> Section Incomplete | L11: ='Evaluation Tool'!N48 -> 33 | M11: =(L11/'Evaluation Tool'!$N$73) -> 35% | N11: 40% | O11: =COUNTIF('Evaluation Tool'!C26:C47,">0") -> 8 | Q11: 5% | S11: 0.83
J12: Standardized Processes | K12: ='Evaluation Tool'!M72 -> Section Incomplete | L12: ='Evaluation Tool'!N72 -> 31 | M12: =(L12/'Evaluation Tool'!$N$73) -> 33% | N12: 30% | O12: =COUNTIF('Evaluation Tool'!C50:C71,">0") -> 8 | Q12: -3% | S12: 0.85
J13: Total Score | K13: =SUM(K9:K12) -> 0 | L13: =SUM(L9:L12) -> 94 | M13: =SUM(M9:M12) -> 100% | N13: =SUM(N9:N12) -> 100% | O13: =SUM(O9:O12) -> 27
J16: Example Table 2: Audit Score Summary
J17: =J8 -> Theme | L17: =K8 -> Your Community's Score | M17: Max Score | N17: Percent | Q17: 90% | R17: 80% | S17: 70% | T17: 60% | U17: 50%
J18: =J9 -> Floodplain Administrator Capability, Capacity, and Institutional Support | L18: Section Incomplete | M18: 15 | N18: =IFERROR(L18/M18, "Section Incomplete") -> Section Incomplete | Q18: =M18*0.9 -> 13.5 | R18: =0.8*M18 -> 11.956032 | S18: =0.7*M18 -> 10.461528 | T18: =0.6*M18 -> 8.967024 | U18: =0.5*M18 -> 7.47252
J19: Map Availability and Accuracy | L19: Section Incomplete | M19: 15 | N19: =IFERROR(L19/M19, "Section Incomplete") -> Section Incomplete | Q19: =M19*0.9 -> 13.5 | R19: =0.8*M19 -> 12.019968 | S19: =0.7*M19 -> 10.517472 | T19: =0.6*M19 -> 9.014976 | U19: =0.5*M19 -> 7.51248
J20: Floodplain Management Regulations | L20: Section Incomplete | M20: 33 | N20: =IFERROR(L20/M20, "Section Incomplete") -> Section Incomplete | Q20: 29.9 | R20: 26.53344 | S20: 23.21676 | T20: 19.90008 | U20: 16.5834
J21: Standardized Processes | L21: Section Incomplete | M21: 31 | N21: =IFERROR(L21/M21, "Section Incomplete") -> Section Incomplete | Q21: 27.5 | R21: 24.45552 | S21: 21.39858 | T21: 18.34164 | U21: 15.2847
J22: Total Score | L22: 0 | M22: 94 | N22: =L22/M22 -> 0%

Sheet EvalScoringMap (hidden)
B4: FPA Capability, Capacity and Institutional Support: (Does the official responsible for regulating/enforcing the NFIP have the required expertise, knowledge, technical capabilities and institutional support?) | D4: Map Availability and Accuracy: (Is the community regulating/ enforcing against its most accurate risk assessment?) | F4: Floodplain Management Regulations: (Is the community's ordinance up to date and how is it being enforced?) | H4: Standardized Processes: (Does the community have an effective record-keeping process?)
I5: Total
A6: % Contribution to Total Score | B6: 15% | D6: 15% | F6: 40% | H6: 30% | I6: =SUM(A6:H6) -> 100%
K7: Question 3.5 | O7: Question 4.1
A8: Questions (Weighting) | B8: 8 Questions: 1.1 (1) 1.2 (0.5) 1.3 (0.5 for each of 5 subparts) 1.4 (0.5 for each of 2 subparts) 1.5 (1) 1.6 (1.5) 1.7 (1) 1.8 (1) | D8: 3 Questions: 2.1 (0.5) 2.2 (0.5) 2.3 (1) | F8: 8 Questions: 3.1 (0.5) 3.2 (1) 3.3 (1) 3.4 (2.5) 3.5 (There are 14 Sub Questions-See 3.5 explanation to right) 3.6 (2) 3.7 (1) 3.8 (1) | H8: 8 Questions: 4.1 (There are 14 Sub Questions, see 4.1 explanation to right) 4.2 (1) 4.3 (1) 4.4 (1) 4.5 (1) 4.6 (1) 4.7 (1) 4.8 (1) | K8: Detailed Explanation for 3.5: There are 14 sub questions or types, each with an assigned a negative weighting. There are a total of 12 points available for the section. Each non-zero entry reduces the score. Minimum score is 0. | O8: Detailed explanation for 4.1: There are 14 sub questions. 7 of them are weigthed 1, 7 have a total weighting of 1 (i.e., they are weighted 0.143 each). Total value for the section is 8 points if all 14 items are responded with a "yes" answer.
A11: Maximum Weighted Score | B11: 15 | D11: 15 | F11: 40 | H11: 30 | I11: =SUM(A11:H11) -> 100
